{"text_format":"1","workbook":"xlsx","n_sheets":8,"sheets":["Instructions","April","May","June","July","August","September","October"],"not_rendered":{"charts":0,"images":0,"macros":1,"external_links":0,"defined_names":7,"comments":1,"pivot_tables":0},"unopened":[],"bounds":{"document_bytes":16777216,"sheet_cells":100000,"rows_first":2000,"rows_last":500,"rows_between":2000,"halvings":0,"cell_chars":16384,"cell_head_chars":4096},"cells_cut":0,"cells_raw":0,"read":"whole","date_system":"1900"}

{"sheet":"Instructions","index":0,"n_rows":1048576,"n_cols":16384,"rows_kept":4500,"cut":true,"hidden":false,"merged":[],"bounds":{"rows_first":2000,"rows_last":500,"rows_between":2000,"halvings":0}}
["Instructions to Permit Writer"]
[" + Unlock the April sheet with the password"]
[" + Enter the Permitte Name and appropriate data from Appendix 4.5"]
["    of the Willamette TMDL on the April tab (green cells)"]
[" + Hover cursor over each cell to find location of values to enter into cells"]
[" + Lock the April sheet with the password"]
[]
["Instructions to Permittee"]
[" + This spreadsheet contains macros that must be active"]
[" + The spreadsheet is password protected"]
[" + Only enter data in the white boxes"]
[" + Enter the year in the cell below the month in the first column of the"]
["     April worksheet (i.e. 2011)"]
[" + Enter the effluent flow and temperature"]
[" + Enter the river flow, average and maximum temperature as appropriate"]
[" + If no river data is entered, the option 1 thermal load limit applies"]
[" + If only river flow data is entered, the option 2 thermal load limit applies"]
[" + If river flow and temperature data is entered, the option 3"]
["     thermal load limit applies"]
[" + The exceedance column will display a positive number if the thermal"]
["     load limit is exceeded"]
[" + ETL = Excess Thermal Load discharged from treatment facility"]
[]
[]
[]
[]
[]
[]
[]
[]
[]
[]
[]
[]
[]
[]
[]
[]
[]
[]
[]
[]
[]
[]
[]
[]
[]
[]
[]
[]
[]
[]
[]
[]
[]
[]
[]
[]
[]
[]
[]
[]
[]
[]
[]
[]
[]
[]
[]
[]
[]
[]
[]
[]
[]
[]
[]
[]
[]
[]
[]
[]
[]
[]
[]
[]
[]
[]
[]
[]
[]
[]
[]
[]
[]
[]
[]
[]
[]
[]
[]
[]
[]
[]
[]
[]
[]
[]
[]
[]
[]
[]
[]
[]
[]
[]
[]
[]
[]
[]
[]
[]
[]
[]
[]
[]
[]
[]
[]
[]
[]
[]
[]
[]
[]
[]
[]
[]
[]
[]
[]
[]
[]
[]
[]
[]
[]
[]
[]
[]
[]
[]
[]
[]
[]
[]
[]
[]
[]
[]
[]
[]
[]
[]
[]
[]
[]
[]
[]
[]
[]
[]
[]
[]
[]
[]
[]
[]
[]
[]
[]
[]
[]
[]
[]
[]
[]
[]
[]
[]
[]
[]
[]
[]
[]
[]
[]
[]
[]
[]
[]
[]
[]
[]
[]
[]
[]
[]
[]
[]
[]
[]
[]
[]
[]
[]
[]
[]
[]
[]
[]
[]
[]
[]
[]
[]
[]
[]
[]
[]
[]
[]
[]
[]
[]
[]
[]
[]
[]
[]
[]
[]
[]
[]
[]
[]
[]
[]
[]
[]
[]
[]
[]
[]
[]
[]
[]
[]
[]
[]
[]
[]
[]
[]
[]
[]
[]
[]
[]
[]
[]
[]
[]
[]
[]
[]
[]
[]
[]
[]
[]
[]
[]
[]
[]
[]
[]
[]
[]
[]
[]
[]
[]
[]
[]
[]
[]
[]
[]
[]
[]
[]
[]
[]
[]
[]
[]
[]
[]
[]
[]
[]
[]
[]
[]
[]
[]
[]
[]
[]
[]
[]
[]
[]
[]
[]
[]
[]
[]
[]
[]
[]
[]
[]
[]
[]
[]
[]
[]
[]
[]
[]
[]
[]
[]
[]
[]
[]
[]
[]
[]
[]
[]
[]
[]
[]
[]
[]
[]
[]
[]
[]
[]
[]
[]
[]
[]
[]
[]
[]
[]
[]
[]
[]
[]
[]
[]
[]
[]
[]
[]
[]
[]
[]
[]
[]
[]
[]
[]
[]
[]
[]
[]
[]
[]
[]
[]
[]
[]
[]
[]
[]
[]
[]
[]
[]
[]
[]
[]
[]
[]
[]
[]
[]
[]
[]
[]
[]
[]
[]
[]
[]
[]
[]
[]
[]
[]
[]
[]
[]
[]
[]
[]
[]
[]
[]
[]
[]
[]
[]
[]
[]
[]
[]
[]
[]
[]
[]
[]
[]
[]
[]
[]
[]
[]
[]
[]
[]
[]
[]
[]
[]
[]
[]
[]
[]
[]
[]
[]
[]
[]
[]
[]
[]
[]
[]
[]
[]
[]
[]
[]
[]
[]
[]
[]
[]
[]
[]
[]
[]
[]
[]
[]
[]
[]
[]
[]
[]
[]
[]
[]
[]
[]
[]
[]
[]
[]
[]
[]
[]
[]
[]
[]
[]
[]
[]
[]
[]
[]
[]
[]
[]
[]
[]
[]
[]
[]
[]
[]
[]
[]
[]
[]
[]
[]
[]
[]
[]
[]
[]
[]
[]
[]
[]
[]
[]
[]
[]
[]
[]
[]
[]
[]
[]
[]
[]
[]
[]
[]
[]
[]
[]
[]
[]
[]
[]
[]
[]
[]
[]
[]
[]
[]
[]
[]
[]
[]
[]
[]
[]
[]
[]
[]
[]
[]
[]
[]
[]
[]
[]
[]
[]
[]
[]
[]
[]
[]
[]
[]
[]
[]
[]
[]
[]
[]
[]
[]
[]
[]
[]
[]
[]
[]
[]
[]
[]
[]
[]
[]
[]
[]
[]
[]
[]
[]
[]
[]
[]
[]
[]
[]
[]
[]
[]
[]
[]
[]
[]
[]
[]
[]
[]
[]
[]
[]
[]
[]
[]
[]
[]
[]
[]
[]
[]
[]
[]
[]
[]
[]
[]
[]
[]
[]
[]
[]
[]
[]
[]
[]
[]
[]
[]
[]
[]
[]
[]
[]
[]
[]
[]
[]
[]
[]
[]
[]
[]
[]
[]
[]
[]
[]
[]
[]
[]
[]
[]
[]
[]
[]
[]
[]
[]
[]
[]
[]
[]
[]
[]
[]
[]
[]
[]
[]
[]
[]
[]
[]
[]
[]
[]
[]
[]
[]
[]
[]
[]
[]
[]
[]
[]
[]
[]
[]
[]
[]
[]
[]
[]
[]
[]
[]
[]
[]
[]
[]
[]
[]
[]
[]
[]
[]
[]
[]
[]
[]
[]
[]
[]
[]
[]
[]
[]
[]
[]
[]
[]
[]
[]
[]
[]
[]
[]
[]
[]
[]
[]
[]
[]
[]
[]
[]
[]
[]
[]
[]
[]
[]
[]
[]
[]
[]
[]
[]
[]
[]
[]
[]
[]
[]
[]
[]
[]
[]
[]
[]
[]
[]
[]
[]
[]
[]
[]
[]
[]
[]
[]
[]
[]
[]
[]
[]
[]
[]
[]
[]
[]
[]
[]
[]
[]
[]
[]
[]
[]
[]
[]
[]
[]
[]
[]
[]
[]
[]
[]
[]
[]
[]
[]
[]
[]
[]
[]
[]
[]
[]
[]
[]
[]
[]
[]
[]
[]
[]
[]
[]
[]
[]
[]
[]
[]
[]
[]
[]
[]
[]
[]
[]
[]
[]
[]
[]
[]
[]
[]
[]
[]
[]
[]
[]
[]
[]
[]
[]
[]
[]
[]
[]
[]
[]
[]
[]
[]
[]
[]
[]
[]
[]
[]
[]
[]
[]
[]
[]
[]
[]
[]
[]
[]
[]
[]
[]
[]
[]
[]
[]
[]
[]
[]
[]
[]
[]
[]
[]
[]
[]
[]
[]
[]
[]
[]
[]
[]
[]
[]
[]
[]
[]
[]
[]
[]
[]
[]
[]
[]
[]
[]
[]
[]
[]
[]
[]
[]
[]
[]
[]
[]
[]
[]
[]
[]
[]
[]
[]
[]
[]
[]
[]
[]
[]
[]
[]
[]
[]
[]
[]
[]
[]
[]
[]
[]
[]
[]
[]
[]
[]
[]
[]
[]
[]
[]
[]
[]
[]
[]
[]
[]
[]
[]
[]
[]
[]
[]
[]
[]
[]
[]
[]
[]
[]
[]
[]
[]
[]
[]
[]
[]
[]
[]
[]
[]
[]
[]
[]
[]
[]
[]
[]
[]
[]
[]
[]
[]
[]
[]
[]
[]
[]
[]
[]
[]
[]
[]
[]
[]
[]
[]
[]
[]
[]
[]
[]
[]
[]
[]
[]
[]
[]
[]
[]
[]
[]
[]
[]
[]
[]
[]
[]
[]
[]
[]
[]
[]
[]
[]
[]
[]
[]
[]
[]
[]
[]
[]
[]
[]
[]
[]
[]
[]
[]
[]
[]
[]
[]
[]
[]
[]
[]
[]
[]
[]
[]
[]
[]
[]
[]
[]
[]
[]
[]
[]
[]
[]
[]
[]
[]
[]
[]
[]
[]
[]
[]
[]
[]
[]
[]
[]
[]
[]
[]
[]
[]
[]
[]
[]
[]
[]
[]
[]
[]
[]
[]
[]
[]
[]
[]
[]
[]
[]
[]
[]
[]
[]
[]
[]
[]
[]
[]
[]
[]
[]
[]
[]
[]
[]
[]
[]
[]
[]
[]
[]
[]
[]
[]
[]
[]
[]
[]
[]
[]
[]
[]
[]
[]
[]
[]
[]
[]
[]
[]
[]
[]
[]
[]
[]
[]
[]
[]
[]
[]
[]
[]
[]
[]
[]
[]
[]
[]
[]
[]
[]
[]
[]
[]
[]
[]
[]
[]
[]
[]
[]
[]
[]
[]
[]
[]
[]
[]
[]
[]
[]
[]
[]
[]
[]
[]
[]
[]
[]
[]
[]
[]
[]
[]
[]
[]
[]
[]
[]
[]
[]
[]
[]
[]
[]
[]
[]
[]
[]
[]
[]
[]
[]
[]
[]
[]
[]
[]
[]
[]
[]
[]
[]
[]
[]
[]
[]
[]
[]
[]
[]
[]
[]
[]
[]
[]
[]
[]
[]
[]
[]
[]
[]
[]
[]
[]
[]
[]
[]
[]
[]
[]
[]
[]
[]
[]
[]
[]
[]
[]
[]
[]
[]
[]
[]
[]
[]
[]
[]
[]
[]
[]
[]
[]
[]
[]
[]
[]
[]
[]
[]
[]
[]
[]
[]
[]
[]
[]
[]
[]
[]
[]
[]
[]
[]
[]
[]
[]
[]
[]
[]
[]
[]
[]
[]
[]
[]
[]
[]
[]
[]
[]
[]
[]
[]
[]
[]
[]
[]
[]
[]
[]
[]
[]
[]
[]
[]
[]
[]
[]
[]
[]
[]
[]
[]
[]
[]
[]
[]
[]
[]
[]
[]
[]
[]
[]
[]
[]
[]
[]
[]
[]
[]
[]
[]
[]
[]
[]
[]
[]
[]
[]
[]
[]
[]
[]
[]
[]
[]
[]
[]
[]
[]
[]
[]
[]
[]
[]
[]
[]
[]
[]
[]
[]
[]
[]
[]
[]
[]
[]
[]
[]
[]
[]
[]
[]
[]
[]
[]
[]
[]
[]
[]
[]
[]
[]
[]
[]
[]
[]
[]
[]
[]
[]
[]
[]
[]
[]
[]
[]
[]
[]
[]
[]
[]
[]
[]
[]
[]
[]
[]
[]
[]
[]
[]
[]
[]
[]
[]
[]
[]
[]
[]
[]
[]
[]
[]
[]
[]
[]
[]
[]
[]
[]
[]
[]
[]
[]
[]
[]
[]
[]
[]
[]
[]
[]
[]
[]
[]
[]
[]
[]
[]
[]
[]
[]
[]
[]
[]
[]
[]
[]
[]
[]
[]
[]
[]
[]
[]
[]
[]
[]
[]
[]
[]
[]
[]
[]
[]
[]
[]
[]
[]
[]
[]
[]
[]
[]
[]
[]
[]
[]
[]
[]
[]
[]
[]
[]
[]
[]
[]
[]
[]
[]
[]
[]
[]
[]
[]
[]
[]
[]
[]
[]
[]
[]
[]
[]
[]
[]
[]
[]
[]
[]
[]
[]
[]
[]
[]
[]
[]
[]
[]
[]
[]
[]
[]
[]
[]
[]
[]
[]
[]
[]
[]
[]
[]
[]
[]
[]
[]
[]
[]
[]
[]
[]
[]
[]
[]
[]
[]
[]
[]
[]
[]
[]
[]
[]
[]
[]
[]
[]
[]
[]
[]
[]
[]
[]
[]
[]
[]
[]
[]
[]
[]
[]
[]
[]
[]
[]
[]
[]
[]
[]
[]
[]
[]
[]
[]
[]
[]
[]
[]
[]
[]
[]
[]
[]
[]
[]
[]
[]
[]
[]
[]
[]
[]
[]
[]
[]
[]
[]
[]
[]
[]
[]
[]
[]
[]
[]
[]
[]
[]
[]
[]
[]
[]
[]
[]
[]
[]
[]
[]
[]
[]
[]
[]
[]
[]
[]
[]
[]
[]
[]
[]
[]
[]
[]
[]
[]
[]
[]
[]
[]
[]
[]
[]
[]
[]
[]
[]
[]
[]
[]
[]
[]
[]
[]
[]
[]
[]
[]
[]
[]
[]
[]
[]
[]
[]
[]
[]
[]
[]
[]
[]
[]
[]
[]
[]
[]
[]
[]
[]
[]
[]
[]
[]
[]
[]
[]
[]
[]
[]
[]
[]
[]
[]
[]
[]
[]
[]
[]
[]
[]
[]
[]
[]
[]
[]
[]
[]
[]
[]
[]
[]
[]
[]
[]
[]
[]
[]
[]
[]
[]
[]
[]
[]
[]
[]
[]
[]
[]
[]
[]
[]
[]
[]
[]
[]
[]
[]
[]
[]
[]
[]
[]
[]
[]
[]
[]
[]
[]
[]
[]
[]
[]
[]
[]
[]
[]
[]
[]
[]
[]
[]
[]
[]
[]
[]
[]
[]
[]
[]
[]
[]
[]
[]
[]
[]
[]
[]
[]
[]
[]
[]
[]
[]
[]
[]
[]
[]
[]
[]
[]
[]
[]
[]
[]
[]
[]
[]
[]
[]
[]
[]
[]
[]
[]
[]
[]
[]
[]
[]
[]
[]
[]
[]
[]
[]
[]
[]
[]
[]
[]
[]
[]
[]
[]
[]
[]
[]
[]
[]
[]
[]
[]
[]
[]
[]
[]
[]
[]
[]
[]
[]
[]
[]
[]
[]
[]
[]
[]
[]
[]
[]
[]
[]
[]
[]
[]
[]
[]
[]
[]
[]
[]
[]
[]
[]
[]
[]
[]
[]
[]
[]
[]
[]
[]
[]
[]
[]
[]
[]
[]
[]
[]
[]
[]
[]
[]
[]
[]
[]
[]
[]
[]
[]
[]
[]
[]
[]
[]
[]
[]
[]
[]
[]
[]
[]
[]
[]
[]
[]
[]
[]
[]
[]
[]
[]
[]
[]
[]
[]
[]
[]
[]
[]
[]
[]
[]
[]
[]
[]
[]
[]
[]
[]
[]
[]
[]
[]
[]
[]
[]
[]
[]
[]
[]
[]
[]
[]
[]
[]
[]
[]
[]
[]
[]
[]
[]
[]
[]
[]
[]
[]
[]
[]
[]
[]
[]
[]
[]
[]
[]
[]
[]
[]
[]
[]
[]
[]
[]
[]
[]
[]
[]
[]
[]
[]
[]
[]
[]
[]
[]
[]
[]
[]
[]
[]
[]
[]
[]
[]
[]
[]
[]
[]
[]
[]
[]
[]
[]
[]
[]
[]
[]
[]
[]
[]
[]
[]
[]
[]
[]
[]
[]
[]
[]
[]
[]
[]
[]
[]
[]
[]
[]
[]
[]
[]
[]
[]
[]
[]
[]
[]
[]
[]
[]
[]
[]
[]
[]
[]
[]
[]
[]
[]
[]
[]
[]
[]
[]
[]
[]
[]
[]
[]
[]
[]
[]
[]
[]
[]
[]
[]
[]
[]
[]
[]
[]
[]
[]
[]
[]
[]
[]
[]
[]
[]
[]
[]
[]
[]
[]
[]
[]
[]
[]
[]
[]
[]
[]
[]
[]
[]
[]
[]
[]
[]
[]
[]
[]
[]
[]
[]
[]
[]
[]
[]
[]
[]
[]
[]
[]
[]
[]
[]
[]
[]
[]
[]
[]
[]
[]
[]
[]
[]
[]
[]
[]
[]
[]
[]
[]
[]
[]
[]
[]
[]
[]
[]
[]
[]
[]
[]
[]
[]
[]
[]
[]
[]
[]
[]
[]
[]
[]
[]
[]
[]
[]
[]
[]
[]
[]
[]
[]
[]
[]
[]
[]
[]
[]
[]
[]
[]
[]
[]
[]
[]
[]
[]
[]
[]
[]
[]
[]
[]
[]
[]
[]
[]
[]
[]
[]
[]
[]
[]
[]
[]
[]
[]
[]
[]
[]
[]
[]
[]
[]
[]
[]
[]
[]
[]
[]
[]
[]
[]
[]
[]
[]
[]
[]
[]
[]
[]
[]
[]
[]
[]
[]
[]
[]
[]
[]
[]
[]
[]
[]
[]
[]
[]
[]
[]
[]
[]
[]
[]
[]
[]
[]
[]
[]
[]
[]
[]
[]
[]
[]
[]
[]
[]
[]
[]
[]
[]
[]
[]
[]
[]
[]
[]
[]
[]
[]
[]
[]
[]
[]
[]
[]
[]
[]
[]
[]
[]
[]
[]
[]
[]
[]
[]
[]
[]
[]
[]
[]
[]
[]
[]
[]
[]
[]
[]
[]
[]
[]
[]
[]
[]
[]
[]
[]
[]
[]
[]
[]
[]
[]
[]
[]
[]
[]
[]
[]
[]
[]
[]
[]
[]
[]
[]
[]
[]
[]
[]
[]
[]
[]
[]
[]
[]
[]
[]
[]
[]
[]
[]
[]
[]
[]
[]
[]
[]
[]
[]
[]
[]
[]
[]
[]
[]
[]
[]
[]
[]
[]
[]
[]
[]
[]
[]
[]
[]
[]
[]
[]
[]
[]
[]
[]
[]
[]
[]
[]
[]
[]
[]
[]
[]
[]
[]
[]
[]
[]
[]
[]
[]
[]
[]
[]
[]
[]
[]
[]
[]
[]
[]
[]
[]
[]
[]
[]
[]
[]
[]
[]
[]
[]
[]
[]
[]
[]
[]
[]
[]
[]
[]
[]
[]
[]
[]
[]
[]
[]
[]
[]
[]
[]
[]
[]
[]
[]
[]
[]
[]
[]
[]
[]
[]
[]
[]
[]
[]
[]
[]
[]
[]
[]
[]
[]
[]
[]
[]
[]
[]
[]
[]
[]
[]
[]
[]
[]
[]
[]
[]
[]
[]
[]
[]
[]
[]
[]
[]
[]
[]
[]
[]
[]
[]
[]
[]
[]
[]
[]
[]
[]
[]
[]
[]
[]
[]
[]
[]
[]
[]
[]
[]
[]
[]
[]
[]
[]
[]
[]
[]
[]
[]
[]
[]
[]
[]
[]
[]
[]
[]
[]
[]
[]
[]
[]
[]
[]
[]
[]
[]
[]
[]
[]
[]
[]
[]
[]
[]
[]
[]
[]
[]
[]
[]
[]
[]
[]
[]
[]
[]
[]
[]
[]
[]
[]
[]
[]
[]
[]
[]
[]
[]
[]
[]
[]
[]
[]
[]
[]
[]
[]
[]
[]
[]
[]
[]
[]
[]
[]
[]
[]
[]
[]
[]
[]
[]
[]
[]
[]
[]
[]
[]
[]
[]
[]
[]
[]
[]
[]
[]
[]
[]
[]
[]
[]
[]
[]
[]
[]
[]
[]
[]
[]
[]
[]
[]
[]
[]
[]
[]
[]
[]
[]
[]
[]
[]
[]
[]
[]
[]
[]
[]
[]
[]
[]
[]
[]
[]
[]
[]
[]
[]
[]
[]
[]
[]
[]
[]
[]
[]
[]
[]
[]
[]
[]
[]
[]
[]
[]
[]
[]
[]
[]
[]
[]
[]
[]
[]
[]
[]
[]
[]
[]
[]
[]
[]
[]
[]
[]
[]
[]
[]
[]
[]
[]
[]
[]
[]
[]
[]
[]
[]
[]
[]
[]
[]
[]
[]
[]
[]
[]
[]
[]
[]
[]
[]
[]
[]
[]
[]
[]
[]
[]
[]
[]
[]
[]
[]
[]
[]
[]
[]
[]
[]
[]
[]
[]
[]
[]
[]
[]
[]
[]
[]
[]
[]
[]
[]
[]
[]
[]
[]
[]
[]
[]
[]
[]
[]
[]
[]
[]
[]
[]
[]
[]
[]
[]
[]
[]
[]
[]
[]
[]
[]
[]
[]
[]
[]
[]
[]
[]
[]
[]
[]
[]
[]
[]
[]
[]
[]
[]
[]
[]
[]
[]
[]
[]
[]
[]
[]
[]
[]
[]
[]
[]
[]
[]
[]
[]
[]
[]
[]
[]
[]
[]
[]
[]
[]
[]
[]
[]
[]
[]
[]
[]
[]
[]
[]
[]
[]
[]
[]
[]
[]
[]
[]
[]
[]
[]
[]
[]
[]
[]
[]
[]
[]
[]
[]
[]
[]
[]
[]
[]
[]
[]
[]
[]
[]
[]
[]
[]
[]
[]
[]
[]
[]
[]
[]
[]
[]
[]
[]
[]
[]
[]
[]
[]
[]
[]
[]
[]
[]
[]
[]
[]
[]
[]
[]
[]
[]
[]
[]
[]
[]
[]
[]
[]
[]
[]
[]
[]
[]
[]
[]
[]
[]
[]
[]
[]
[]
[]
[]
[]
[]
[]
[]
[]
[]
[]
[]
[]
[]
[]
[]
[]
[]
[]
[]
[]
[]
[]
[]
[]
[]
[]
[]
[]
[]
[]
[]
[]
[]
[]
[]
[]
[]
[]
[]
[]
[]
[]
[]
[]
[]
[]
[]
[]
[]
[]
[]
[]
[]
[]
[]
[]
[]
[]
[]
[]
[]
[]
[]
[]
[]
[]
[]
[]
[]
[]
[]
[]
[]
[]
[]
[]
[]
[]
[]
[]
[]
[]
[]
[]
[]
[]
[]
[]
[]
[]
[]
[]
[]
[]
[]
[]
[]
[]
[]
[]
[]
[]
[]
[]
[]
[]
[]
[]
[]
[]
[]
[]
[]
[]
[]
[]
[]
[]
[]
[]
[]
[]
[]
[]
[]
[]
[]
[]
[]
[]
[]
[]
[]
[]
[]
[]
[]
[]
[]
[]
[]
[]
[]
[]
[]
[]
[]
[]
[]
[]
[]
[]
[]
[]
[]
[]
[]
[]
[]
[]
[]
[]
[]
[]
[]
[]
[]
[]
[]
[]
[]
[]
[]
[]
[]
[]
[]
[]
[]
[]
[]
[]
[]
[]
[]
[]
[]
[]
[]
[]
[]
[]
[]
[]
[]
[]
[]
[]
[]
[]
[]
[]
[]
[]
[]
[]
[]
[]
[]
[]
[]
[]
[]
[]
[]
[]
[]
[]
[]
[]
[]
[]
[]
[]
[]
[]
[]
[]
[]
[]
[]
[]
[]
[]
[]
[]
[]
[]
[]
[]
[]
[]
[]
[]
[]
[]
[]
[]
[]
[]
[]
[]
[]
[]
[]
[]
[]
[]
[]
[]
[]
[]
[]
[]
[]
[]
[]
[]
[]
[]
[]
[]
[]
[]
[]
[]
[]
[]
[]
[]
[]
[]
[]
[]
[]
[]
[]
[]
[]
[]
[]
[]
[]
[]
[]
[]
[]
[]
[]
[]
[]
[]
[]
[]
[]
[]
[]
[]
[]
[]
[]
[]
[]
[]
[]
[]
[]
[]
[]
[]
[]
[]
[]
[]
[]
[]
[]
[]
[]
[]
[]
[]
[]
[]
[]
[]
[]
[]
[]
[]
[]
[]
[]
[]
[]
[]
[]
[]
[]
[]
[]
[]
[]
[]
[]
[]
[]
[]
[]
[]
[]
[]
[]
[]
[]
[]
[]
[]
[]
[]
[]
[]
[]
[]
[]
[]
[]
[]
[]
[]
[]
[]
[]
[]
[]
[]
[]
[]
[]
[]
[]
[]
[]
[]
[]
[]
[]
[]
[]
[]
[]
[]
[]
[]
[]
[]
[]
[]
[]
[]
[]
[]
[]
[]
[]
[]
[]
[]
[]
[]
[]
[]
[]
[]
[]
[]
[]
[]
[]
[]
[]
[]
[]
[]
[]
[]
[]
[]
[]
[]
[]
[]
[]
[]
[]
[]
[]
[]
[]
[]
[]
[]
[]
[]
[]
[]
[]
[]
[]
[]
[]
[]
[]
[]
[]
[]
[]
[]
[]
[]
[]
[]
[]
[]
[]
[]
[]
[]
[]
[]
[]
[]
[]
[]
[]
[]
[]
[]
[]
[]
[]
[]
[]
[]
[]
[]
[]
[]
[]
[]
[]
[]
[]
[]
[]
[]
[]
[]
[]
[]
[]
[]
[]
[]
[]
[]
[]
[]
[]
[]
[]
[]
[]
[]
[]
[]
[]
[]
[]
[]
[]
[]
[]
[]
[]
[]
[]
[]
[]
[]
[]
[]
[]
[]
[]
[]
[]
[]
[]
[]
[]
[]
[]
[]
[]
[]
[]
[]
[]
[]
[]
[]
[]
[]
[]
[]
[]
[]
[]
[]
[]
[]
[]
[]
[]
[]
[]
[]
[]
[]
[]
[]
[]
[]
[]
[]
[]
[]
[]
[]
[]
[]
[]
[]
[]
[]
[]
[]
[]
[]
[]
[]
[]
[]
[]
[]
[]
[]
[]
[]
[]
[]
[]
[]
[]
[]
[]
[]
[]
[]
[]
[]
[]
[]
[]
[]
[]
[]
[]
[]
[]
[]
[]
[]
[]
[]
[]
[]
[]
[]
[]
[]
[]
[]
[]
[]
[]
[]
[]
[]
[]
[]
[]
[]
[]
[]
[]
[]
[]
[]
[]
[]
[]
[]
[]
[]
[]
[]
[]
[]
[]
[]
[]
[]
[]
[]
[]
[]
[]
[]
[]
[]
[]
[]
[]
[]
[]
[]
[]
[]
[]
[]
[]
[]
[]
[]
[]
[]
[]
[]
[]
[]
[]
[]
[]
[]
[]
[]
[]
[]
[]
[]
[]
[]
[]
[]
[]
[]
[]
[]
[]
[]
[]
[]
[]
[]
[]
[]
[]
[]
[]
[]
[]
[]
[]
[]
[]
[]
[]
[]
[]
[]
[]
[]
[]
[]
[]
[]
[]
[]
[]
[]
[]
[]
[]
[]
[]
[]
[]
[]
[]
[]
[]
[]
[]
[]
[]
[]
[]
[]
[]
[]
[]
[]
[]
[]
[]
[]
[]
[]
[]
[]
[]
[]
[]
[]
[]
[]
[]
[]
[]
[]
[]
[]
[]
[]
[]
[]
[]
[]
[]
[]
[]
[]
[]
[]
[]
[]
[]
[]
[]
[]
[]
[]
[]
[]
[]
[]
[]
[]
[]
[]
[]
[]
[]
[]
[]
[]
[]
[]
[]
[]
[]
[]
[]
[]
[]
[]
[]
[]
[]
[]
[]
[]
[]
[]
[]
[]
[]
[]
[]
[]
[]
[]
[]
[]
[]
[]
[]
[]
[]
[]
[]
[]
[]
[]
[]
[]
[]
[]
[]
[]
[]
[]
[]
[]
[]
[]
[]
[]
[]
[]
[]
[]
[]
[]
[]
[]
[]
[]
[]
[]
[]
[]
[]
[]
[]
[]
[]
[]
[]
[]
[]
[]
[]
[]
[]
[]
[]
[]
[]
[]
[]
[]
[]
[]
[]
[]
[]
[]
[]
[]
[]
[]
[]
[]
[]
[]
[]
[]
[]
[]
[]
[]
[]
[]
[]
[]
[]
[]
[]
[]
[]
[]
[]
[]
[]
[]
[]
[]
[]
[]
[]
[]
[]
[]
[]
[]
[]
[]
[]
[]
[]
[]
[]
[]
[]
[]
[]
[]
[]
[]
[]
[]
[]
[]
[]
[]
[]
[]
[]
[]
[]
[]
[]
[]
[]
[]
[]
[]
[]
[]
[]
[]
[]
[]
[]
[]
[]
[]
[]
[]
[]
[]
[]
[]
[]
[]
[]
[]
[]
[]
[]
[]
[]
[]
[]
[]
[]
[]
[]
[]
[]
[]
[]
[]
[]
[]
[]
[]
[]
[]
[]
[]
[]
[]
[]
[]
[]
[]
[]
[]
[]
[]
[]
[]
[]
[]
[]
[]
[]
[]
[]
[]
[]
[]
[]
[]
[]
[]
[]
[]
[]
[]
[]
[]
[]
[]
[]
[]
[]
[]
[]
[]
[]
[]
[]
[]
[]
[]
[]
[]
[]
[]
[]
[]
[]
[]
[]
[]
[]
[]
[]
[]
[]
[]
[]
[]
[]
[]
[]
[]
[]
[]
[]
[]
[]
[]
[]
[]
[]
[]
[]
[]
[]
[]
[]
[]
[]
[]
[]
[]
[]
[]
[]
[]
[]
[]
[]
[]
[]
[]
[]
[]
[]
[]
[]
[]
[]
[]
[]
[]
[]
[]
[]
[]
[]
[]
[]
[]
[]
[]
[]
[]
[]
[]
[]
[]
[]
[]
[]
[]
[]
[]
[]
[]
[]
[]
[]
[]
[]
[]
[]
[]
[]
[]
[]
[]
[]
[]
[]
[]
[]
[]
[]
[]
[]
[]
[]
[]
[]
[]
[]
[]
[]
[]
[]
[]
[]
[]
[]
[]
[]
[]
[]
[]
[]
[]
[]
[]
[]
[]
[]
[]
[]
[]
[]
[]
[]
[]
[]
[]
[]
[]
[]
[]
[]
[]
[]
[]
[]
[]
[]
[]
[]
[]
[]
[]
[]
[]
[]
[]
[]
[]
[]
[]
[]
[]
[]
[]
[]
[]
[]
[]
[]
[]
[]
[]
[]
[]
[]
[]
[]
[]
[]
[]
[]
[]
[]
[]
[]
[]
[]
[]
[]
[]
[]
[]
[]
[]
[]
[]
[]
[]
[]
[]
[]
[]
[]
[]
[]
[]
[]
[]
[]
[]
[]
[]
[]
[]
[]
[]
[]
[]
[]
[]
[]
[]
[]
[]
[]
[]
[]
[]
[]
[]
[]
[]
[]
[]
[]
[]
[]
[]
[]
[]
[]
[]
[]
[]
[]
[]
[]
[]
[]
[]
[]
[]
[]
[]
[]
[]
[]
[]
[]
[]
[]
[]
[]
[]
[]
[]
[]
[]
[]
[]
[]
[]
[]
[]
[]
[]
[]
[]
[]
[]
[]
[]
[]
[]
[]
[]
[]
[]
[]
[]
[]
[]
[]
[]
[]
[]
[]
[]
[]
[]
[]
[]
[]
[]
[]
[]
[]
[]
[]
[]
[]
[]
[]
[]
[]
[]
[]
[]
[]
[]
[]
[]
[]
[]
[]
[]
[]
[]
[]
[]
[]
[]
[]
[]
[]
[]
[]
[]
[]
[]
[]
[]
[]
[]
[]
[]
[]
[]
[]
[]
[]
[]
[]
[]
[]
[]
[]
[]
[]
[]
[]
[]
[]
[]
[]
[]
[]
[]
[]
[]
[]
[]
[]
[]
[]
[]
[]
[]
[]
[]
[]
[]
[]
[]
[]
[]
[]
[]
[]
[]
[]
[]
[]
[]
[]
[]
[]
[]
[]
[]
[null,null,null,null,null,null,null,null,null,null,null,null,null,null,null,null,null,null,null,null,null,null,null,null,null,null,null,null,null,null,null,null,null,null,null,null,null,null,null,null,null,null,null,null,null,null,null,null,null,null,null,null,null,null,null,null,null,null,null,null,null,null,null,null,null,null,null,null,null,null,null,null,null,null,null,null,null,null,null,null,null,null,null,null,null,null,null,null,null,null,null,null,null,null,null,null,null,null,null,null,null,null,null,null,null,null,null,null,null,null,null,null,null,null,null,null,null,null,null,null,null,null,null,null,null,null,null,null,null,null,null,null,null,null,null,null,null,null,null,null,null,null,null,null,null,null,null,null,null,null,null,null,null,null,null,null,null,null,null,null,null,null,null,null,null,null,null,null,null,null,null,null,null,null,null,null,null,null,null,null,null,null,null,null,null,null,null,null,null,null,null,null,null,null,null,null,null,null,null,null,null,null,null,null,null,null,null,null,null,null,null,null,null,null,null,null,null,null,null,null,null,null,null,null,null,null,null,null,null,null,null,null,null,null,null,null,null,null,null,null,null,null,null,null,null,null,null,null,null,null,null,null,null,null,null,null,null,null,null,null,null,null,null,null,null,null,null,null,null,null,null,null,null,null,null,null,null,null,null,null,null,null,null,null,null,null,null,null,null,null,null,null,null,null,null,null,null,null,null,null,null,null,null,null,null,null,null,null,null,null,null,null,null,null,null,null,null,null,null,null,null,null,null,null,null,null,null,null,null,null,null,null,null,null,null,null,null,null,null,null,null,null,null,null,null,null,null,null,null,null,null,null,null,null,null,null,null,null,null,null,null,null,null,null,null,null,null,null,null,null,null,null,null,null,null,null,null,null,null,null,null,null,null,null,null,null,null,null,null,null,null,null,null,null,null,null,null,null,null,null,null,null,null,null,null,null,null,null,null,null,null,null,null,null,null,null,null,null,null,null,null,null,null,null,null,null,null,null,null,null,null,null,null,null,null,null,null,null,null,null,null,null,null,null,null,null,null,null,null,null,null,null,null,null,null,null,null,null,null,null,null,null,null,null,null,null,null,null,null,null,null,null,null,null,null,null,null,null,null,null,null,null,null,null,null,null,null,null,null,null,null,null,null,null,null,null,null,null,null,null,null,null,null,null,null,null,null,null,null,null,null,null,null,null,null,null,null,null,null,null,null,null,null,null,null,null,null,null,null,null,null,null,null,null,null,null,null,null,null,null,null,null,null,null,null,null,null,null,null,null,null,null,null,null,null,null,null,null,null,null,null,null,null,null,null,null,null,null,null,null,null,null,null,null,null,null,null,null,null,null,null,null,null,null,null,null,null,null,null,null,null,null,null,null,null,null,null,null,null,null,null,null,null,null,null,null,null,null,null,null,null,null,null,null,null,null,null,null,null,null,null,null,null,null,null,null,null,null,null,null,null,null,null,null,null,null,null,null,null,null,null,null,null,null,null,null,null,null,null,null,null,null,null,null,null,null,null,null,null,null,null,null,null,null,null,null,null,null,null,null,null,null,null,null,null,null,null,null,null,null,null,null,null,null,null,null,null,null,null,null,null,null,null,null,null,null,null,null,null,null,null,null,null,null,null,null,null,null,null,null,null,null,null,null,null,null,null,null,null,null,null,null,null,null,null,null,null,null,null,null,null,null,null,null,null,null,null,null,null,null,null,null,null,null,null,null,null,null,null,null,null,null,null,null,null,null,null,null,null,null,null,null,null,null,null,null,null,null,null,null,null,null,null,null,null,null,null,null,null,null,null,null,null,null,null,null,null,null,null,null,null,null,null,null,null,null,null,null,null,null,null,null,null,null,null,null,null,null,null,null,null,null,null,null,null,null,null,null,null,null,null,null,null,null,null,null,null,null,null,null,null,null,null,null,null,null,null,null,null,null,null,null,null,null,null,null,null,null,null,null,null,null,null,null,null,null,null,null,null,null,null,null,null,null,null,null,null,null,null,null,null,null,null,null,null,null,null,null,null,null,null,null,null,null,null,null,null,null,null,null,null,null,null,null,null,null,null,null,null,null,null,null,null,null,null,null,null,null,null,null,null,null,null,null,null,null,null,null,null,null,null,null,null,null,null,null,null,null,null,null,null,null,null,null,null,null,null,null,null,null,null,null,null,null,null,null,null,null,null,null,null,null,null,null,null,null,null,null,null,null,null,null,null,null,null,null,null,null,null,null,null,null,null,null,null,null,null,null,null,null,null,null,null,null,null,null,null,null,null,null,null,null,null,null,null,null,null,null,null,null,null,null,null,null,null,null,null,null,null,null,null,null,null,null,null,null,null,null,null,null,null,null,null,null,null,null,null,null,null,null,null,null,null,null,null,null,null,null,null,null,null,null,null,null,null,null,null,null,null,null,null,null,null,null,null,null,null,null,null,null,null,null,null,null,null,null,null,null,null,null,null,null,null,null,null,null,null,null,null,null,null,null,null,null,null,null,null,null,null,null,null,null,null,null,null,null,null,null,null,null,null,null,null,null,null,null,null,null,null,null,null,null,null,null,null,null,null,null,null,null,null,null,null,null,null,null,null,null,null,null,null,null,null,null,null,null,null,null,null,null,null,null,null,null,null,null,null,null,null,null,null,null,null,null,null,null,null,null,null,null,null,null,null,null,null,null,null,null,null,null,null,null,null,null,null,null,null,null,null,null,null,null,null,null,null,null,null,null,null,null,null,null,null,null,null,null,null,null,null,null,null,null,null,null,null,null,null,null,null,null,null,null,null,null,null,null,null,null,null,null,null,null,null,null,null,null,null,null,null,null,null,null,null,null,null,null,null,null,null,null,null,null,null,null,null,null,null,null,null,null,null,null,null,null,null,null,null,null,null,null,null,null,null,null,null,null,null,null,null,null,null,null,null,null,null,null,null,null,null,null,null,null,null,null,null,null,null,null,null,null,null,null,null,null,null,null,null,null,null,null,null,null,null,null,null,null,null,null,null,null,null,null,null,null,null,null,null,null,null,null,null,null,null,null,null,null,null,null,null,null,null,null,null,null,null,null,null,null,null,null,null,null,null,null,null,null,null,null,null,null,null,null,null,null,null,null,null,null,null,null,null,null,null,null,null,null,null,null,null,null,null,null,null,null,null,null,null,null,null,null,null,null,null,null,null,null,null,null,null,null,null,null,null,null,null,null,null,null,null,null,null,null,null,null,null,null,null,null,null,null,null,null,null,null,null,null,null,null,null,null,null,null,null,null,null,null,null,null,null,null,null,null,null,null,null,null,null,null,null,null,null,null,null,null,null,null,null,null,null,null,null,null,null,null,null,null,null,null,null,null,null,null,null,null,null,null,null,null,null,null,null,null,null,null,null,null,null,null,null,null,null,null,null,null,null,null,null,null,null,null,null,null,null,null,null,null,null,null,null,null,null,null,null,null,null,null,null,null,null,null,null,null,null,null,null,null,null,null,null,null,null,null,null,null,null,null,null,null,null,null,null,null,null,null,null,null,null,null,null,null,null,null,null,null,null,null,null,null,null,null,null,null,null,null,null,null,null,null,null,null,null,null,null,null,null,null,null,null,null,null,null,null,null,null,null,null,null,null,null,null,null,null,null,null,null,null,null,null,null,null,null,null,null,null,null,null,null,null,null,null,null,null,null,null,null,null,null,null,null,null,null,null,null,null,null,null,null,null,null,null,null,null,null,null,null,null,null,null,null,null,null,null,null,null,null,null,null,null,null,null,null,null,null,null,null,null,null,null,null,null,null,null,null,null,null,null,null,null,null,null,null,null,null,null,null,null,null,null,null,null,null,null,null,null,null,null,null,null,null,null,null,null,null,null,null,null,null,null,null,null,null,null,null,null,null,null,null,null,null,null,null,null,null,null,null,null,null,null,null,null,null,null,null,null,null,null,null,null,null,null,null,null,null,null,null,null,null,null,null,null,null,null,null,null,null,null,null,null,null,null,null,null,null,null,null,null,null,null,null,null,null,null,null,null,null,null,null,null,null,null,null,null,null,null,null,null,null,null,null,null,null,null,null,null,null,null,null,null,null,null,null,null,null,null,null,null,null,null,null,null,null,null,null,null,null,null,null,null,null,null,null,null,null,null,null,null,null,null,null,null,null,null,null,null,null,null,null,null,null,null,null,null,null,null,null,null,null,null,null,null,null,null,null,null,null,null,null,null,null,null,null,null,null,null,null,null,null,null,null,null,null,null,null,null,null,null,null,null,null,null,null,null,null,null,null,null,null,null,null,null,null,null,null,null,null,null,null,null,null,null,null,null,null,null,null,null,null,null,null,null,null,null,null,null,null,null,null,null,null,null,null,null,null,null,null,null,null,null,null,null,null,null,null,null,null,null,null,null,null,null,null,null,null,null,null,null,null,null,null,null,null,null,null,null,null,null,null,null,null,null,null,null,null,null,null,null,null,null,null,null,null,null,null,null,null,null,null,null,null,null,null,null,null,null,null,null,null,null,null,null,null,null,null,null,null,null,null,null,null,null,null,null,null,null,null,null,null,null,null,null,null,null,null,null,null,null,null,null,null,null,null,null,null,null,null,null,null,null,null,null,null,null,null,null,null,null,null,null,null,null,null,null,null,null,null,null,null,null,null,null,null,null,null,null,null,null,null,null,null,null,null,null,null,null,null,null,null,null,null,null,null,null,null,null,null,null,null,null,null,null,null,null,null,null,null,null,null,null,null,null,null,null,null,null,null,null,null,null,null,null,null,null,null,null,null,null,null,null,null,null,null,null,null,null,null,null,null,null,null,null,null,null,null,null,null,null,null,null,null,null,null,null,null,null,null,null,null,null,null,null,null,null,null,null,null,null,null,null,null,null,null,null,null,null,null,null,null,null,null,null,null,null,null,null,null,null,null,null,null,null,null,null,null,null,null,null,null,null,null,null,null,null,null,null,null,null,null,null,null,null,null,null,null,null,null,null,null,null,null,null,null,null,null,null,null,null,null,null,null,null,null,null,null,null,null,null,null,null,null,null,null,null,null,null,null,null,null,null,null,null,null,null,null,null,null,null,null,null,null,null,null,null,null,null,null,null,null,null,null,null,null,null,null,null,null,null,null,null,null,null,null,null,null,null,null,null,null,null,null,null,null,null,null,null,null,null,null,null,null,null,null,null,null,null,null,null,null,null,null,null,null,null,null,null,null,null,null,null,null,null,null,null,null,null,null,null,null,null,null,null,null,null,null,null,null,null,null,null,null,null,null,null,null,null,null,null,null,null,null,null,null,null,null,null,null,null,null,null,null,null,null,null,null,null,null,null,null,null,null,null,null,null,null,null,null,null,null,null,null,null,null,null,null,null,null,null,null,null,null,null,null,null,null,null,null,null,null,null,null,null,null,null,null,null,null,null,null,null,null,null,null,null,null,null,null,null,null,null,null,null,null,null,null,null,null,null,null,null,null,null,null,null,null,null,null,null,null,null,null,null,null,null,null,null,null,null,null,null,null,null,null,null,null,null,null,null,null,null,null,null,null,null,null,null,null,null,null,null,null,null,null,null,null,null,null,null,null,null,null,null,null,null,null,null,null,null,null,null,null,null,null,null,null,null,null,null,null,null,null,null,null,null,null,null,null,null,null,null,null,null,null,null,null,null,null,null,null,null,null,null,null,null,null,null,null,null,null,null,null,null,null,null,null,null,null,null,null,null,null,null,null,null,null,null,null,null,null,null,null,null,null,null,null,null,null,null,null,null,null,null,null,null,null,null,null,null,null,null,null,null,null,null,null,null,null,null,null,null,null,null,null,null,null,null,null,null,null,null,null,null,null,null,null,null,null,null,null,null,null,null,null,null,null,null,null,null,null,null,null,null,null,null,null,null,null,null,null,null,null,null,null,null,null,null,null,null,null,null,null,null,null,null,null,null,null,null,null,null,null,null,null,null,null,null,null,null,null,null,null,null,null,null,null,null,null,null,null,null,null,null,null,null,null,null,null,null,null,null,null,null,null,null,null,null,null,null,null,null,null,null,null,null,null,null,null,null,null,null,null,null,null,null,null,null,null,null,null,null,null,null,null,null,null,null,null,null,null,null,null,null,null,null,null,null,null,null,null,null,null,null,null,null,null,null,null,null,null,null,null,null,null,null,null,null,null,null,null,null,null,null,null,null,null,null,null,null,null,null,null,null,null,null,null,null,null,null,null,null,null,null,null,null,null,null,null,null,null,null,null,null,null,null,null,null,null,null,null,null,null,null,null,null,null,null,null,null,null,null,null,null,null,null,null,null,null,null,null,null,null,null,null,null,null,null,null,null,null,null,null,null,null,null,null,null,null,null,null,null,null,null,null,null,null,null,null,null,null,null,null,null,null,null,null,null,null,null,null,null,null,null,null,null,null,null,null,null,null,null,null,null,null,null,null,null,null,null,null,null,null,null,null,null,null,null,null,null,null,null,null,null,null,null,null,null,null,null,null,null,null,null,null,null,null,null,null,null,null,null,null,null,null,null,null,null,null,null,null,null,null,null,null,null,null,null,null,null,null,null,null,null,null,null,null,null,null,null,null,null,null,null,null,null,null,null,null,null,null,null,null,null,null,null,null,null,null,null,null,null,null,null,null,null,null,null,null,null,null,null,null,null,null,null,null,null,null,null,null,null,null,null,null,null,null,null,null,null,null,null,null,null,null,null,null,null,null,null,null,null,null,null,null,null,null,null,null,null,null,null,null,null,null,null,null,null,null,null,null,null,null,null,null,null,null,null,null,null,null,null,null,null,null,null,null,null,null,null,null,null,null,null,null,null,null,null,null,null,null,null,null,null,null,null,null,null,null,null,null,null,null,null,null,null,null,null,null,null,null,null,null,null,null,null,null,null,null,null,null,null,null,null,null,null,null,null,null,null,null,null,null,null,null,null,null,null,null,null,null,null,null,null,null,null,null,null,null,null,null,null,null,null,null,null,null,null,null,null,null,null,null,null,null,null,null,null,null,null,null,null,null,null,null,null,null,null,null,null,null,null,null,null,null,null,null,null,null,null,null,null,null,null,null,null,null,null,null,null,null,null,null,null,null,null,null,null,null,null,null,null,null,null,null,null,null,null,null,null,null,null,null,null,null,null,null,null,null,null,null,null,null,null,null,null,null,null,null,null,null,null,null,null,null,null,null,null,null,null,null,null,null,null,null,null,null,null,null,null,null,null,null,null,null,null,null,null,null,null,null,null,null,null,null,null,null,null,null,null,null,null,null,null,null,null,null,null,null,null,null,null,null,null,null,null,null,null,null,null,null,null,null,null,null,null,null,null,null,null,null,null,null,null,null,null,null,null,null,null,null,null,null,null,null,null,null,null,null,null,null,null,null,null,null,null,null,null,null,null,null,null,null,null,null,null,null,null,null,null,null,null,null,null,null,null,null,null,null,null,null,null,null,null,null,null,null,null,null,null,null,null,null,null,null,null,null,null,null,null,null,null,null,null,null,null,null,null,null,null,null,null,null,null,null,null,null,null,null,null,null,null,null,null,null,null,null,null,null,null,null,null,null,null,null,null,null,null,null,null,null,null,null,null,null,null,null,null,null,null,null,null,null,null,null,null,null,null,null,null,null,null,null,null,null,null,null,null,null,null,null,null,null,null,null,null,null,null,null,null,null,null,null,null,null,null,null,null,null,null,null,null,null,null,null,null,null,null,null,null,null,null,null,null,null,null,null,null,null,null,null,null,null,null,null,null,null,null,null,null,null,null,null,null,null,null,null,null,null,null,null,null,null,null,null,null,null,null,null,null,null,null,null,null,null,null,null,null,null,null,null,null,null,null,null,null,null,null,null,null,null,null,null,null,null,null,null,null,null,null,null,null,null,null,null,null,null,null,null,null,null,null,null,null,null,null,null,null,null,null,null,null,null,null,null,null,null,null,null,null,null,null,null,null,null,null,null,null,null,null,null,null,null,null,null,null,null,null,null,null,null,null,null,null,null,null,null,null,null,null,null,null,null,null,null,null,null,null,null,null,null,null,null,null,null,null,null,null,null,null,null,null,null,null,null,null,null,null,null,null,null,null,null,null,null,null,null,null,null,null,null,null,null,null,null,null,null,null,null,null,null,null,null,null,null,null,null,null,null,null,null,null,null,null,null,null,null,null,null,null,null,null,null,null,null,null,null,null,null,null,null,null,null,null,null,null,null,null,null,null,null,null,null,null,null,null,null,null,null,null,null,null,null,null,null,null,null,null,null,null,null,null,null,null,null,null,null,null,null,null,null,null,null,null,null,null,null,null,null,null,null,null,null,null,null,null,null,null,null,null,null,null,null,null,null,null,null,null,null,null,null,null,null,null,null,null,null,null,null,null,null,null,null,null,null,null,null,null,null,null,null,null,null,null,null,null,null,null,null,null,null,null,null,null,null,null,null,null,null,null,null,null,null,null,null,null,null,null,null,null,null,null,null,null,null,null,null,null,null,null,null,null,null,null,null,null,null,null,null,null,null,null,null,null,null,null,null,null,null,null,null,null,null,null,null,null,null,null,null,null,null,null,null,null,null,null,null,null,null,null,null,null,null,null,null,null,null,null,null,null,null,null,null,null,null,null,null,null,null,null,null,null,null,null,null,null,null,null,null,null,null,null,null,null,null,null,null,null,null,null,null,null,null,null,null,null,null,null,null,null,null,null,null,null,null,null,null,null,null,null,null,null,null,null,null,null,null,null,null,null,null,null,null,null,null,null,null,null,null,null,null,null,null,null,null,null,null,null,null,null,null,null,null,null,null,null,null,null,null,null,null,null,null,null,null,null,null,null,null,null,null,null,null,null,null,null,null,null,null,null,null,null,null,null,null,null,null,null,null,null,null,null,null,null,null,null,null,null,null,null,null,null,null,null,null,null,null,null,null,null,null,null,null,null,null,null,null,null,null,null,null,null,null,null,null,null,null,null,null,null,null,null,null,null,null,null,null,null,null,null,null,null,null,null,null,null,null,null,null,null,null,null,null,null,null,null,null,null,null,null,null,null,null,null,null,null,null,null,null,null,null,null,null,null,null,null,null,null,null,null,null,null,null,null,null,null,null,null,null,null,null,null,null,null,null,null,null,null,null,null,null,null,null,null,null,null,null,null,null,null,null,null,null,null,null,null,null,null,null,null,null,null,null,null,null,null,null,null,null,null,null,null,null,null,null,null,null,null,null,null,null,null,null,null,null,null,null,null,null,null,null,null,null,null,null,null,null,null,null,null,null,null,null,null,null,null,null,null,null,null,null,null,null,null,null,null,null,null,null,null,null,null,null,null,null,null,null,null,null,null,null,null,null,null,null,null,null,null,null,null,null,null,null,null,null,null,null,null,null,null,null,null,null,null,null,null,null,null,null,null,null,null,null,null,null,null,null,null,null,null,null,null,null,null,null,null,null,null,null,null,null,null,null,null,null,null,null,null,null,null,null,null,null,null,null,null,null,null,null,null,null,null,null,null,null,null,null,null,null,null,null,null,null,null,null,null,null,null,null,null,null,null,null,null,null,null,null,null,null,null,null,null,null,null,null,null,null,null,null,null,null,null,null,null,null,null,null,null,null,null,null,null,null,null,null,null,null,null,null,null,null,null,null,null,null,null,null,null,null,null,null,null,null,null,null,null,null,null,null,null,null,null,null,null,null,null,null,null,null,null,null,null,null,null,null,null,null,null,null,null,null,null,null,null,null,null,null,null,null,null,null,null,null,null,null,null,null,null,null,null,null,null,null,null,null,null,null,null,null,null,null,null,null,null,null,null,null,null,null,null,null,null,null,null,null,null,null,null,null,null,null,null,null,null,null,null,null,null,null,null,null,null,null,null,null,null,null,null,null,null,null,null,null,null,null,null,null,null,null,null,null,null,null,null,null,null,null,null,null,null,null,null,null,null,null,null,null,null,null,null,null,null,null,null,null,null,null,null,null,null,null,null,null,null,null,null,null,null,null,null,null,null,null,null,null,null,null,null,null,null,null,null,null,null,null,null,null,null,null,null,null,null,null,null,null,null,null,null,null,null,null,null,null,null,null,null,null,null,null,null,null,null,null,null,null,null,null,null,null,null,null,null,null,null,null,null,null,null,null,null,null,null,null,null,null,null,null,null,null,null,null,null,null,null,null,null,null,null,null,null,null,null,null,null,null,null,null,null,null,null,null,null,null,null,null,null,null,null,null,null,null,null,null,null,null,null,null,null,null,null,null,null,null,null,null,null,null,null,null,null,null,null,null,null,null,null,null,null,null,null,null,null,null,null,null,null,null,null,null,null,null,null,null,null,null,null,null,null,null,null,null,null,null,null,null,null,null,null,null,null,null,null,null,null,null,null,null,null,null,null,null,null,null,null,null,null,null,null,null,null,null,null,null,null,null,null,null,null,null,null,null,null,null,null,null,null,null,null,null,null,null,null,null,null,null,null,null,null,null,null,null,null,null,null,null,null,null,null,null,null,null,null,null,null,null,null,null,null,null,null,null,null,null,null,null,null,null,null,null,null,null,null,null,null,null,null,null,null,null,null,null,null,null,null,null,null,null,null,null,null,null,null,null,null,null,null,null,null,null,null,null,null,null,null,null,null,null,null,null,null,null,null,null,null,null,null,null,null,null,null,null,null,null,null,null,null,null,null,null,null,null,null,null,null,null,null,null,null,null,null,null,null,null,null,null,null,null,null,null,null,null,null,null,null,null,null,null,null,null,null,null,null,null,null,null,null,null,null,null,null,null,null,null,null,null,null,null,null,null,null,null,null,null,null,null,null,null,null,null,null,null,null,null,null,null,null,null,null,null,null,null,null,null,null,null,null,null,null,null,null,null,null,null,null,null,null,null,null,null,null,null,null,null,null,null,null,null,null,null,null,null,null,null,null,null,null,null,null,null,null,null,null,null,null,null,null,null,null,null,null,null,null,null,null,null,null,null,null,null,null,null,null,null,null,null,null,null,null,null,null,null,null,null,null,null,null,null,null,null,null,null,null,null,null,null,null,null,null,null,null,null,null,null,null,null,null,null,null,null,null,null,null,null,null,null,null,null,null,null,null,null,null,null,null,null,null,null,null,null,null,null,null,null,null,null,null,null,null,null,null,null,null,null,null,null,null,null,null,null,null,null,null,null,null,null,null,null,null,null,null,null,null,null,null,null,null,null,null,null,null,null,null,null,null,null,null,null,null,null,null,null,null,null,null,null,null,null,null,null,null,null,null,null,null,null,null,null,null,null,null,null,null,null,null,null,null,null,null,null,null,null,null,null,null,null,null,null,null,null,null,null,null,null,null,null,null,null,null,null,null,null,null,null,null,null,null,null,null,null,null,null,null,null,null,null,null,null,null,null,null,null,null,null,null,null,null,null,null,null,null,null,null,null,null,null,null,null,null,null,null,null,null,null,null,null,null,null,null,null,null,null,null,null,null,null,null,null,null,null,null,null,null,null,null,null,null,null,null,null,null,null,null,null,null,null,null,null,null,null,null,null,null,null,null,null,null,null,null,null,null,null,null,null,null,null,null,null,null,null,null,null,null,null,null,null,null,null,null,null,null,null,null,null,null,null,null,null,null,null,null,null,null,null,null,null,null,null,null,null,null,null,null,null,null,null,null,null,null,null,null,null,null,null,null,null,null,null,null,null,null,null,null,null,null,null,null,null,null,null,null,null,null,null,null,null,null,null,null,null,null,null,null,null,null,null,null,null,null,null,null,null,null,null,null,null,null,null,null,null,null,null,null,null,null,null,null,null,null,null,null,null,null,null,null,null,null,null,null,null,null,null,null,null,null,null,null,null,null,null,null,null,null,null,null,null,null,null,null,null,null,null,null,null,null,null,null,null,null,null,null,null,null,null,null,null,null,null,null,null,null,null,null,null,null,null,null,null,null,null,null,null,null,null,null,null,null,null,null,null,null,null,null,null,null,null,null,null,null,null,null,null,null,null,null,null,null,null,null,null,null,null,null,null,null,null,null,null,null,null,null,null,null,null,null,null,null,null,null,null,null,null,null,null,null,null,null,null,null,null,null,null,null,null,null,null,null,null,null,null,null,null,null,null,null,null,null,null,null,null,null,null,null,null,null,null,null,null,null,null,null,null,null,null,null,null,null,null,null,null,null,null,null,null,null,null,null,null,null,null,null,null,null,null,null,null,null,null,null,null,null,null,null,null,null,null,null,null,null,null,null,null,null,null,null,null,null,null,null,null,null,null,null,null,null,null,null,null,null,null,null,null,null,null,null,null,null,null,null,null,null,null,null,null,null,null,null,null,null,null,null,null,null,null,null,null,null,null,null,null,null,null,null,null,null,null,null,null,null,null,null,null,null,null,null,null,null,null,null,null,null,null,null,null,null,null,null,null,null,null,null,null,null,null,null,null,null,null,null,null,null,null,null,null,null,null,null,null,null,null,null,null,null,null,null,null,null,null,null,null,null,null,null,null,null,null,null,null,null,null,null,null,null,null,null,null,null,null,null,null,null,null,null,null,null,null,null,null,null,null,null,null,null,null,null,null,null,null,null,null,null,null,null,null,null,null,null,null,null,null,null,null,null,null,null,null,null,null,null,null,null,null,null,null,null,null,null,null,null,null,null,null,null,null,null,null,null,null,null,null,null,null,null,null,null,null,null,null,null,null,null,null,null,null,null,null,null,null,null,null,null,null,null,null,null,null,null,null,null,null,null,null,null,null,null,null,null,null,null,null,null,null,null,null,null,null,null,null,null,null,null,null,null,null,null,null,null,null,null,null,null,null,null,null,null,null,null,null,null,null,null,null,null,null,null,null,null,null,null,null,null,null,null,null,null,null,null,null,null,null,null,null,null,null,null,null,null,null,null,null,null,null,null,null,null,null,null,null,null,null,null,null,null,null,null,null,null,null,null,null,null,null,null,null,null,null,null,null,null,null,null,null,null,null,null,null,null,null,null,null,null,null,null,null,null,null,null,null,null,null,null,null,null,null,null,null,null,null,null,null,null,null,null,null,null,null,null,null,null,null,null,null,null,null,null,null,null,null,null,null,null,null,null,null,null,null,null,null,null,null,null,null,null,null,null,null,null,null,null,null,null,null,null,null,null,null,null,null,null,null,null,null,null,null,null,null,null,null,null,null,null,null,null,null,null,null,null,null,null,null,null,null,null,null,null,null,null,null,null,null,null,null,null,null,null,null,null,null,null,null,null,null,null,null,null,null,null,null,null,null,null,null,null,null,null,null,null,null,null,null,null,null,null,null,null,null,null,null,null,null,null,null,null,null,null,null,null,null,null,null,null,null,null,null,null,null,null,null,null,null,null,null,null,null,null,null,null,null,null,null,null,null,null,null,null,null,null,null,null,null,null,null,null,null,null,null,null,null,null,null,null,null,null,null,null,null,null,null,null,null,null,null,null,null,null,null,null,null,null,null,null,null,null,null,null,null,null,null,null,null,null,null,null,null,null,null,null,null,null,null,null,null,null,null,null,null,null,null,null,null,null,null,null,null,null,null,null,null,null,null,null,null,null,null,null,null,null,null,null,null,null,null,null,null,null,null,null,null,null,null,null,null,null,null,null,null,null,null,null,null,null,null,null,null,null,null,null,null,null,null,null,null,null,null,null,null,null,null,null,null,null,null,null,null,null,null,null,null,null,null,null,null,null,null,null,null,null,null,null,null,null,null,null,null,null,null,null,null,null,null,null,null,null,null,null,null,null,null,null,null,null,null,null,null,null,null,null,null,null,null,null,null,null,null,null,null,null,null,null,null,null,null,null,null,null,null,null,null,null,null,null,null,null,null,null,null,null,null,null,null,null,null,null,null,null,null,null,null,null,null,null,null,null,null,null,null,null,null,null,null,null,null,null,null,null,null,null,null,null,null,null,null,null,null,null,null,null,null,null,null,null,null,null,null,null,null,null,null,null,null,null,null,null,null,null,null,null,null,null,null,null,null,null,null,null,null,null,null,null,null,null,null,null,null,null,null,null,null,null,null,null,null,null,null,null,null,null,null,null,null,null,null,null,null,null,null,null,null,null,null,null,null,null,null,null,null,null,null,null,null,null,null,null,null,null,null,null,null,null,null,null,null,null,null,null,null,null,null,null,null,null,null,null,null,null,null,null,null,null,null,null,null,null,null,null,null,null,null,null,null,null,null,null,null,null,null,null,null,null,null,null,null,null,null,null,null,null,null,null,null,null,null,null,null,null,null,null,null,null,null,null,null,null,null,null,null,null,null,null,null,null,null,null,null,null,null,null,null,null,null,null,null,null,null,null,null,null,null,null,null,null,null,null,null,null,null,null,null,null,null,null,null,null,null,null,null,null,null,null,null,null,null,null,null,null,null,null,null,null,null,null,null,null,null,null,null,null,null,null,null,null,null,null,null,null,null,null,null,null,null,null,null,null,null,null,null,null,null,null,null,null,null,null,null,null,null,null,null,null,null,null,null,null,null,null,null,null,null,null,null,null,null,null,null,null,null,null,null,null,null,null,null,null,null,null,null,null,null,null,null,null,null,null,null,null,null,null,null,null,null,null,null,null,null,null,null,null,null,null,null,null,null,null,null,null,null,null,null,null,null,null,null,null,null,null,null,null,null,null,null,null,null,null,null,null,null,null,null,null,null,null,null,null,null,null,null,null,null,null,null,null,null,null,null,null,null,null,null,null,null,null,null,null,null,null,null,null,null,null,null,null,null,null,null,null,null,null,null,null,null,null,null,null,null,null,null,null,null,null,null,null,null,null,null,null,null,null,null,null,null,null,null,null,null,null,null,null,null,null,null,null,null,null,null,null,null,null,null,null,null,null,null,null,null,null,null,null,null,null,null,null,null,null,null,null,null,null,null,null,null,null,null,null,null,null,null,null,null,null,null,null,null,null,null,null,null,null,null,null,null,null,null,null,null,null,null,null,null,null,null,null,null,null,null,null,null,null,null,null,null,null,null,null,null,null,null,null,null,null,null,null,null,null,null,null,null,null,null,null,null,null,null,null,null,null,null,null,null,null,null,null,null,null,null,null,null,null,null,null,null,null,null,null,null,null,null,null,null,null,null,null,null,null,null,null,null,null,null,null,null,null,null,null,null,null,null,null,null,null,null,null,null,null,null,null,null,null,null,null,null,null,null,null,null,null,null,null,null,null,null,null,null,null,null,null,null,null,null,null,null,null,null,null,null,null,null,null,null,null,null,null,null,null,null,null,null,null,null,null,null,null,null,null,null,null,null,null,null,null,null,null,null,null,null,null,null,null,null,null,null,null,null,null,null,null,null,null,null,null,null,null,null,null,null,null,null,null,null,null,null,null,null,null,null,null,null,null,null,null,null,null,null,null,null,null,null,null,null,null,null,null,null,null,null,null,null,null,null,null,null,null,null,null,null,null,null,null,null,null,null,null,null,null,null,null,null,null,null,null,null,null,null,null,null,null,null,null,null,null,null,null,null,null,null,null,null,null,null,null,null,null,null,null,null,null,null,null,null,null,null,null,null,null,null,null,null,null,null,null,null,null,null,null,null,null,null,null,null,null,null,null,null,null,null,null,null,null,null,null,null,null,null,null,null,null,null,null,null,null,null,null,null,null,null,null,null,null,null,null,null,null,null,null,null,null,null,null,null,null,null,null,null,null,null,null,null,null,null,null,null,null,null,null,null,null,null,null,null,null,null,null,null,null,null,null,null,null,null,null,null,null,null,null,null,null,null,null,null,null,null,null,null,null,null,null,null,null,null,null,null,null,null,null,null,null,null,null,null,null,null,null,null,null,null,null,null,null,null,null,null,null,null,null,null,null,null,null,null,null,null,null,null,null,null,null,null,null,null,null,null,null,null,null,null,null,null,null,null,null,null,null,null,null,null,null,null,null,null,null,null,null,null,null,null,null,null,null,null,null,null,null,null,null,null,null,null,null,null,null,null,null,null,null,null,null,null,null,null,null,null,null,null,null,null,null,null,null,null,null,null,null,null,null,null,null,null,null,null,null,null,null,null,null,null,null,null,null,null,null,null,null,null,null,null,null,null,null,null,null,null,null,null,null,null,null,null,null,null,null,null,null,null,null,null,null,null,null,null,null,null,null,null,null,null,null,null,null,null,null,null,null,null,null,null,null,null,null,null,null,null,null,null,null,null,null,null,null,null,null,null,null,null,null,null,null,null,null,null,null,null,null,null,null,null,null,null,null,null,null,null,null,null,null,null,null,null,null,null,null,null,null,null,null,null,null,null,null,null,null,null,null,null,null,null,null,null,null,null,null,null,null,null,null,null,null,null,null,null,null,null,null,null,null,null,null,null,null,null,null,null,null,null,null,null,null,null,null,null,null,null,null,null,null,null,null,null,null,null,null,null,null,null,null,null,null,null,null,null,null,null,null,null,null,null,null,null,null,null,null,null,null,null,null,null,null,null,null,null,null,null,null,null,null,null,null,null,null,null,null,null,null,null,null,null,null,null,null,null,null,null,null,null,null,null,null,null,null,null,null,null,null,null,null,null,null,null,null,null,null,null,null,null,null,null,null,null,null,null,null,null,null,null,null,null,null,null,null,null,null,null,null,null,null,null,null,null,null,null,null,null,null,null,null,null,null,null,null,null,null,null,null,null,null,null,null,null,null,null,null,null,null,null,null,null,null,null,null,null,null,null,null,null,null,null,null,null,null,null,null,null,null,null,null,null,null,null,null,null,null,null,null,null,null,null,null,null,null,null,null,null,null,null,null,null,null,null,null,null,null,null,null,null,null,null,null,null,null,null,null,null,null,null,null,null,null,null,null,null,null,null,null,null,null,null,null,null,null,null,null,null,null,null,null,null,null,null,null,null,null,null,null,null,null,null,null,null,null,null,null,null,null,null,null,null,null,null,null,null,null,null,null,null,null,null,null,null,null,null,null,null,null,null,null,null,null,null,null,null,null,null,null,null,null,null,null,null,null,null,null,null,null,null,null,null,null,null,null,null,null,null,null,null,null,null,null,null,null,null,null,null,null,null,null,null,null,null,null,null,null,null,null,null,null,null,null,null,null,null,null,null,null,null,null,null,null,null,null,null,null,null,null,null,null,null,null,null,null,null,null,null,null,null,null,null,null,null,null,null,null,null,null,null,null,null,null,null,null,null,null,null,null,null,null,null,null,null,null,null,null,null,null,null,null,null,null,null,null,null,null,null,null,null,null,null,null,null,null,null,null,null,null,null,null,null,null,null,null,null,null,null,null,null,null,null,null,null,null,null,null,null,null,null,null,null,null,null,null,null,null,null,null,null,null,null,null,null,null,null,null,null,null,null,null,null,null,null,null,null,null,null,null,null,null,null,null,null,null,null,null,null,null,null,null,null,null,null,null,null,null,null,null,null,null,null,null,null,null,null,null,null,null,null,null,null,null,null,null,null,null,null,null,null,null,null,null,null,null,null,null,null,null,null,null,null,null,null,null,null,null,null,null,null,null,null,null,null,null,null,null,null,null,null,null,null,null,null,null,null,null,null,null,null,null,null,null,null,null,null,null,null,null,null,null,null,null,null,null,null,null,null,null,null,null,null,null,null,null,null,null,null,null,null,null,null,null,null,null,null,null,null,null,null,null,null,null,null,null,null,null,null,null,null,null,null,null,null,null,null,null,null,null,null,null,null,null,null,null,null,null,null,null,null,null,null,null,null,null,null,null,null,null,null,null,null,null,null,null,null,null,null,null,null,null,null,null,null,null,null,null,null,null,null,null,null,null,null,null,null,null,null,null,null,null,null,null,null,null,null,null,null,null,null,null,null,null,null,null,null,null,null,null,null,null,null,null,null,null,null,null,null,null,null,null,null,null,null,null,null,null,null,null,null,null,null,null,null,null,null,null,null,null,null,null,null,null,null,null,null,null,null,null,null,null,null,null,null,null,null,null,null,null,null,null,null,null,null,null,null,null,null,null,null,null,null,null,null,null,null,null,null,null,null,null,null,null,null,null,null,null,null,null,null,null,null,null,null,null,null,null,null,null,null,null,null,null,null,null,null,null,null,null,null,null,null,null,null,null,null,null,null,null,null,null,null,null,null,null,null,null,null,null,null,null,null,null,null,null,null,null,null,null,null,null,null,null,null,null,null,null,null,null,null,null,null,null,null,null,null,null,null,null,null,null,null,null,null,null,null,null,null,null,null,null,null,null,null,null,null,null,null,null,null,null,null,null,null,null,null,null,null,null,null,null,null,null,null,null,null,null,null,null,null,null,null,null,null,null,null,null,null,null,null,null,null,null,null,null,null,null,null,null,null,null,null,null,null,null,null,null,null,null,null,null,null,null,null,null,null,null,null,null,null,null,null,null,null,null,null,null,null,null,null,null,null,null,null,null,null,null,null,null,null,null,null,null,null,null,null,null,null,null,null,null,null,null,null,null,null,null,null,null,null,null,null,null,null,null,null,null,null,null,null,null,null,null,null,null,null,null,null,null,null,null,null,null,null,null,null,null,null,null,null,null,null,null,null,null,null,null,null,null,null,null,null,null,null,null,null,null,null,null,null,null,null,null,null,null,null,null,null,null,null,null,null,null,null,null,null,null,null,null,null,null,null,null,null,null,null,null,null,null,null,null,null,null,null,null,null,null,null,null,null,null,null,null,null,null,null,null,null,null,null,null,null,null,null,null,null,null,null,null,null,null,null,null,null,null,null,null,null,null,null,null,null,null,null,null,null,null,null,null,null,null,null,null,null,null,null,null,null,null,null,null,null,null,null,null,null,null,null,null,null,null,null,null,null,null,null,null,null,null,null,null,null,null,null,null,null,null,null,null,null,null,null,null,null,null,null,null,null,null,null,null,null,null,null,null,null,null,null,null,null,null,null,null,null,null,null,null,null,null,null,null,null,null,null,null,null,null,null,null,null,null,null,null,null,null,null,null,null,null,null,null,null,null,null,null,null,null,null,null,null,null,null,null,null,null,null,null,null,null,null,null,null,null,null,null,null,null,null,null,null,null,null,null,null,null,null,null,null,null,null,null,null,null,null,null,null,null,null,null,null,null,null,null,null,null,null,null,null,null,null,null,null,null,null,null,null,null,null,null,null,null,null,null,null,null,null,null,null,null,null,null,null,null,null,null,null,null,null,null,null,null,null,null,null,null,null,null,null,null,null,null,null,null,null,null,null,null,null,null,null,null,null,null,null,null,null,null,null,null,null,null,null,null,null,null,null,null,null,null,null,null,null,null,null,null,null,null,null,null,null,null,null,null,null,null,null,null,null,null,null,null,null,null,null,null,null,null,null,null,null,null,null,null,null,null,null,null,null,null,null,null,null,null,null,null,null,null,null,null,null,null,null,null,null,null,null,null,null,null,null,null,null,null,null,null,null,null,null,null,null,null,null,null,null,null,null,null,null,null,null,null,null,null,null,null,null,null,null,null,null,null,null,null,null,null,null,null,null,null,null,null,null,null,null,null,null,null,null,null,null,null,null,null,null,null,null,null,null,null,null,null,null,null,null,null,null,null,null,null,null,null,null,null,null,null,null,null,null,null,null,null,null,null,null,null,null,null,null,null,null,null,null,null,null,null,null,null,null,null,null,null,null,null,null,null,null,null,null,null,null,null,null,null,null,null,null,null,null,null,null,null,null,null,null,null,null,null,null,null,null,null,null,null,null,null,null,null,null,null,null,null,null,null,null,null,null,null,null,null,null,null,null,null,null,null,null,null,null,null,null,null,null,null,null,null,null,null,null,null,null,null,null,null,null,null,null,null,null,null,null,null,null,null,null,null,null,null,null,null,null,null,null,null,null,null,null,null,null,null,null,null,null,null,null,null,null,null,null,null,null,null,null,null,null,null,null,null,null,null,null,null,null,null,null,null,null,null,null,null,null,null,null,null,null,null,null,null,null,null,null,null,null,null,null,null,null,null,null,null,null,null,null,null,null,null,null,null,null,null,null,null,null,null,null,null,null,null,null,null,null,null,null,null,null,null,null,null,null,null,null,null,null,null,null,null,null,null,null,null,null,null,null,null,null,null,null,null,null,null,null,null,null,null,null,null,null,null,null,null,null,null,null,null,null,null,null,null,null,null,null,null,null,null,null,null,null,null,null,null,null,null,null,null,null,null,null,null,null,null,null,null,null,null,null,null,null,null,null,null,null,null,null,null,null,null,null,null,null,null,null,null,null,null,null,null,null,null,null,null,null,null,null,null,null,null,null,null,null,null,null,null,null,null,null,null,null,null,null,null,null,null,null,null,null,null,null,null,null,null,null,null,null,null,null,null,null,null,null,null,null,null,null,null,null,null,null,null,null,null,null,null,null,null,null,null,null,null,null,null,null,null,null,null,null,null,null,null,null,null,null,null,null,null,null,null,null,null,null,null,null,null,null,null,null,null,null,null,null,null,null,null,null,null,null,null,null,null,null,null,null,null,null,null,null,null,null,null,null,null,null,null,null,null,null,null,null,null,null,null,null,null,null,null,null,null,null,null,null,null,null,null,null,null,null,null,null,null,null,null,null,null,null,null,null,null,null,null,null,null,null,null,null,null,null,null,null,null,null,null,null,null,null,null,null,null,null,null,null,null,null,null,null,null,null,null,null,null,null,null,null,null,null,null,null,null,null,null,null,null,null,null,null,null,null,null,null,null,null,null,null,null,null,null,null,null,null,null,null,null,null,null,null,null,null,null,null,null,null,null,null,null,null,null,null,null,null,null,null,null,null,null,null,null,null,null,null,null,null,null,null,null,null,null,null,null,null,null,null,null,null,null,null,null,null,null,null,null,null,null,null,null,null,null,null,null,null,null,null,null,null,null,null,null,null,null,null,null,null,null,null,null,null,null,null,null,null,null,null,null,null,null,null,null,null,null,null,null,null,null,null,null,null,null,null,null,null,null,null,null,null,null,null,null,null,null,null,null,null,null,null,null,null,null,null,null,null,null,null,null,null,null,null,null,null,null,null,null,null,null,null,null,null,null,null,null,null,null,null,null,null,null,null,null,null,null,null,null,null,null,null,null,null,null,null,null,null,null,null,null,null,null,null,null,null,null,null,null,null,null,null,null,null,null,null,null,null,null,null,null,null,null,null,null,null,null,null,null,null,null,null,null,null,null,null,null,null,null,null,null,null,null,null,null,null,null,null,null,null,null,null,null,null,null,null,null,null,null,null,null,null,null,null,null,null,null,null,null,null,null,null,null,null,null,null,null,null,null,null,null,null,null,null,null,null,null,null,null,null,null,null,null,null,null,null,null,null,null,null,null,null,null,null,null,null,null,null,null,null,null,null,null,null,null,null,null,null,null,null,null,null,null,null,null,null,null,null,null,null,null,null,null,null,null,null,null,null,null,null,null,null,null,null,null,null,null,null,null,null,null,null,null,null,null,null,null,null,null,null,null,null,null,null,null,null,null,null,null,null,null,null,null,null,null,null,null,null,null,null,null,null,null,null,null,null,null,null,null,null,null,null,null,null,null,null,null,null,null,null,null,null,null,null,null,null,null,null,null,null,null,null,null,null,null,null,null,null,null,null,null,null,null,null,null,null,null,null,null,null,null,null,null,null,null,null,null,null,null,null,null,null,null,null,null,null,null,null,null,null,null,null,null,null,null,null,null,null,null,null,null,null,null,null,null,null,null,null,null,null,null,null,null,null,null,null,null,null,null,null,null,null,null,null,null,null,null,null,null,null,null,null,null,null,null,null,null,null,null,null,null,null,null,null,null,null,null,null,null,null,null,null,null,null,null,null,null,null,null,null,null,null,null,null,null,null,null,null,null,null,null,null,null,null,null,null,null,null,null,null,null,null,null,null,null,null,null,null,null,null,null,null,null,null,null,null,null,null,null,null,null,null,null,null,null,null,null,null,null,null,null,null,null,null,null,null,null,null,null,null,null,null,null,null,null,null,null,null,null,null,null,null,null,null,null,null,null,null,null,null,null,null,null,null,null,null,null,null,null,null,null,null,null,null,null,null,null,null,null,null,null,null,null,null,null,null,null,null,null,null,null,null,null,null,null,null,null,null,null,null,null,null,null,null,null,null,null,null,null,null,null,null,null,null,null,null,null,null,null,null,null,null,null,null,null,null,null,null,null,null,null,null,null,null,null,null,null,null,null,null,null,null,null,null,null,null,null,null,null,null,null,null,null,null,null,null,null,null,null,null,null,null,null,null,null,null,null,null,null,null,null,null,null,null,null,null,null,null,null,null,null,null,null,null,null,null,null,null,null,null,null,null,null,null,null,null,null,null,null,null,null,null,null,null,null,null,null,null,null,null,null,null,null,null,null,null,null,null,null,null,null,null,null,null,null,null,null,null,null,null,null,null,null,null,null,null,null,null,null,null,null,null,null,null,null,null,null,null,null,null,null,null,null,null,null,null,null,null,null,null,null,null,null,null,null,null,null,null,null,null,null,null,null,null,null,null,null,null,null,null,null,null,null,null,null,null,null,null,null,null,null,null,null,null,null,null,null,null,null,null,null,null,null,null,null,null,null,null,null,null,null,null,null,null,null,null,null,null,null,null,null,null,null,null,null,null,null,null,null,null,null,null,null,null,null,null,null,null,null,null,null,null,null,null,null,null,null,null,null,null,null,null,null,null,null,null,null,null,null,null,null,null,null,null,null,null,null,null,null,null,null,null,null,null,null,null,null,null,null,null,null,null,null,null,null,null,null,null,null,null,null,null,null,null,null,null,null,null,null,null,null,null,null,null,null,null,null,null,null,null,null,null,null,null,null,null,null,null,null,null,null,null,null,null,null,null,null,null,null,null,null,null,null,null,null,null,null,null,null,null,null,null,null,null,null,null,null,null,null,null,null,null,null,null,null,null,null,null,null,null,null,null,null,null,null,null,null,null,null,null,null,null,null,null,null,null,null,null,null,null,null,null,null,null,null,null,null,null,null,null,null,null,null,null,null,null,null,null,null,null,null,null,null,null,null,null,null,null,null,null,null,null,null,null,null,null,null,null,null,null,null,null,null,null,null,null,null,null,null,null,null,null,null,null,null,null,null,null,null,null,null,null,null,null,null,null,null,null,null,null,null,null,null,null,null,null,null,null,null,null,null,null,null,null,null,null,null,null,null,null,null,null,null,null,null,null,null,null,null,null,null,null,null,null,null,null,null,null,null,null,null,null,null,null,null,null,null,null,null,null,null,null,null,null,null,null,null,null,null,null,null,null,null,null,null,null,null,null,null,null,null,null,null,null,null,null,null,null,null,null,null,null,null,null,null,null,null,null,null,null,null,null,null,null,null,null,null,null,null,null,null,null,null,null,null,null,null,null,null,null,null,null,null,null,null,null,null,null,null,null,null,null,null,null,null,null,null,null,null,null,null,null,null,null,null,null,null,null,null,null,null,null,null,null,null,null,null,null,null,null,null,null,null,null,null,null,null,null,null,null,null,null,null,null,null,null,null,null,null,null,null,null,null,null,null,null,null,null,null,null,null,null,null,null,null,null,null,null,null,null,null,null,null,null,null,null,null,null,null,null,null,null,null,null,null,null,null,null,null,null,null,null,null,null,null,null,null,null,null,null,null,null,null,null,null,null,null,null,null,null,null,null,null,null,null,null,null,null,null,null,null,null,null,null,null,null,null,null,null,null,null,null,null,null,null,null,null,null,null,null,null,null,null,null,null,null,null,null,null,null,null,null,null,null,null,null,null,null,null,null,null,null,null,null,null,null,null,null,null,null,null,null,null,null,null,null,null,null,null,null,null,null,null,null,null,null,null,null,null,null,null,null,null,null,null,null,null,null,null,null,null,null,null,null,null,null,null,null,null,null,null,null,null,null,null,null,null,null,null,null,null,null,null,null,null,null,null,null,null,null,null,null,null,null,null,null,null,null,null,null,null,null,null,null,null,null,null,null,null,null,null,null,null,null,null,null,null,null,null,null,null,null,null,null,null,null,null,null,null,null,null,null,null,null,null,null,null,null,null,null,null,null,null,null,null,null,null,null,null,null,null,null,null,null,null,null,null,null,null,null,null,null,null,null,null,null,null,null,null,null,null,null,null,null,null,null,null,null,null,null,null,null,null,null,null,null,null,null,null,null,null,null,null,null,null,null,null,null,null,null,null,null,null,null,null,null,null,null,null,null,null,null,null,null,null,null,null,null,null,null,null,null,null,null,null,null,null,null,null,null,null,null,null,null,null,null,null,null,null,null,null,null,null,null,null,null,null,null,null,null,null,null,null,null,null,null,null,null,null,null,null,null,null,null,null,null,null,null,null,null,null,null,null,null,null,null,null,null,null,null,null,null,null,null,null,null,null,null,null,null,null,null,null,null,null,null,null,null,null,null,null,null,null,null,null,null,null,null,null,null,null,null,null,null,null,null,null,null,null,null,null,null,null,null,null,null,null,null,null,null,null,null,null,null,null,null,null,null,null,null,null,null,null,null,null,null,null,null,null,null,null,null,null,null,null,null,null,null,null,null,null,null,null,null,null,null,null,null,null,null,null,null,null,null,null,null,null,null,null,null,null,null,null,null,null,null,null,null,null,null,null,null,null,null,null,null,null,null,null,null,null,null,null,null,null,null,null,null,null,null,null,null,null,null,null,null,null,null,null,null,null,null,null,null,null,null,null,null,null,null,null,null,null,null,null,null,null,null,null,null,null,null,null,null,null,null,null,null,null,null,null,null,null,null,null,null,null,null,null,null,null,null,null,null,null,null,null,null,null,null,null,null,null,null,null,null,null,null,null,null,null,null,null,null,null,null,null,null,null,null,null,null,null,null,null,null,null,null,null,null,null,null,null,null,null,null,null,null,null,null,null,null,null,null,null,null,null,null,null,null,null,null,null,null,null,null,null,null,null,null,null,null,null,null,null,null,null,null,null,null,null,null,null,null,null,null,null,null,null,null,null,null,null,null,null,null,null,null,null,null,null,null,null,null,null,null,null,null,null,null,null,null,null,null,null,null,null,null,null,null,null,null,null,null,null,null,null,null,null,null,null,null,null,null,null,null,null,null,null,null,null,null,null,null,null,null,null,null,null,null,null,null,null,null,null,null,null,null,null,null,null,null,null,null,null,null,null,null,null,null,null,null,null,null,null,null,null,null,null,null,null,null,null,null,null,null,null,null,null,null,null,null,null,null,null,null,null,null,null,null,null,null,null,null,null,null,null,null,null,null,null,null,null,null,null,null,null,null,null,null,null,null,null,null,null,null,null,null,null,null,null,null,null,null,null,null,null,null,null,null,null,null,null,null,null,null,null,null,null,null,null,null,null,null,null,null,null,null,null,null,null,null,null,null,null,null,null,null,null,null,null,null,null,null,null,null,null,null,null,null,null,null,null,null,null,null,null,null,null,null,null,null,null,null,null,null,null,null,null,null,null,null,null,null,null,null,null,null,null,null,null,null,null,null,null,null,null,null,null,null,null,null,null,null,null,null,null,null,null,null,null,null,null,null,null,null,null,null,null,null,null,null,null,null,null,null,null,null,null,null,null,null,null,null,null,null,null,null,null,null,null,null,null,null,null,null,null,null,null,null,null,null,null,null,null,null,null,null,null,null,null,null,null,null,null,null,null,null,null,null,null,null,null,null,null,null,null,null,null,null,null,null,null,null,null,null,null,null,null,null,null,null,null,null,null,null,null,null,null,null,null,null,null,null,null,null,null,null,null,null,null,null,null,null,null,null,null,null,null,null,null,null,null,null,null,null,null,null,null,null,null,null,null,null,null,null,null,null,null,null,null,null,null,null,null,null,null,null,null,null,null,null,null,null,null,null,null,null,null,null,null,null,null,null,null,null,null,null,null,null,null,null,null,null,null,null,null,null,null,null,null,null,null,null,null,null,null,null,null,null,null,null,null,null,null,null,null,null,null,null,null,null,null,null,null,null,null,null,null,null,null,null,null,null,null,null,null,null,null,null,null,null,null,null,null,null,null,null,null,null,null,null,null,null,null,null,null,null,null,null,null,null,null,null,null,null,null,null,null,null,null,null,null,null,null,null,null,null,null,null,null,null,null,null,null,null,null,null,null,null,null,null,null,null,null,null,null,null,null,null,null,null,null,null,null,null,null,null,null,null,null,null,null,null,null,null,null,null,null,null,null,null,null,null,null,null,null,null,null,null,null,null,null,null,null,null,null,null,null,null,null,null,null,null,null,null,null,null,null,null,null,null,null,null,null,null,null,null,null,null,null,null,null,null,null,null,null,null,null,null,null,null,null,null,null,null,null,null,null,null,null,null,null,null,null,null,null,null,null,null,null,null,null,null,null,null,null,null,null,null,null,null,null,null,null,null,null,null,null,null,null,null,null,null,null,null,null,null,null,null,null,null,null,null,null,null,null,null,null,null,null,null,null,null,null,null,null,null,null,null,null,null,null,null,null,null,null,null,null,null,null,null,null,null,null,null,null,null,null,null,null,null,null,null,null,null,null,null,null,null,null,null,null,null,null,null,null,null,null,null,null,null,null,null,null,null,null,null,null,null,null,null,null,null,null,null,null,null,null,null,null,null,null,null,null,null,null,null,null,null,null,null,null,null,null,null,null,null,null,null,null,null,null,null,null,null,null,null,null,null,null,null,null,null,null,null,null,null,null,null,null,null,null,null,null,null,null,null,null,null,null,null,null,null,null,null,null,null,null,null,null,null,null,null,null,null,null,null,null,null,null,null,null,null,null,null,null,null,null,null,null,null,null,null,null,null,null,null,null,null,null,null,null,null,null,null,null,null,null,null,null,null,null,null,null,null,null,null,null,null,null,null,null,null,null,null,null,null,null,null,null,null,null,null,null,null,null,null,null,null,null,null,null,null,null,null,null,null,null,null,null,null,null,null,null,null,null,null,null,null,null,null,null,null,null,null,null,null,null,null,null,null,null,null,null,null,null,null,null,null,null,null,null,null,null,null,null,null,null,null,null,null,null,null,null,null,null,null,null,null,null,null,null,null,null,null,null,null,null,null,null,null,null,null,null,null,null,null,null,null,null,null,null,null,null,null,null,null,null,null,null,null,null,null,null,null,null,null,null,null,null,null,null,null,null,null,null,null,null,null,null,null,null,null,null,null,null,null,null,null,null,null,null,null,null,null,null,null,null,null,null,null,null,null,null,null,null,null,null,null,null,null,null,null,null,null,null,null,null,null,null,null,null,null,null,null,null,null,null,null,null,null,null,null,null,null,null,null,null,null,null,null,null,null,null,null,null,null,null,null,null,null,null,null,null,null,null,null,null,null,null,null,null,null,null,null,null,null,null,null,null,null,null,null,null,null,null,null,null,null,null,null,null,null,null,null,null,null,null,null,null,null,null,null,null,null,null,null,null,null,null,null,null,null,null,null,null,null,null,null,null,null,null,null,null,null,null,null,null,null,null,null,null,null,null,null,null,null,null,null,null,null,null,null,null,null,null,null,null,null,null,null,null,null,null,null,null,null,null,null,null,null,null,null,null,null,null,null,null,null,null,null,null,null,null,null,null,null,null,null,null,null,null,null,null,null,null,null,null,null,null,null,null,null,null,null,null,null,null,null,null,null,null,null,null,null,null,null,null,null,null,null,null,null,null,null,null,null,null,null,null,null,null,null,null,null,null,null,null,null,null,null,null,null,null,null,null,null,null,null,null,null,null,null,null,null,null,null,null,null,null,null,null,null,null,null,null,null,null,null,null,null,null,null,null,null,null,null,null,null,null,null,null,null,null,null,null,null,null,null,null,null,null,null,null,null,null,null,null,null,null,null,null,null,null,null,null,null,null,null,null,null,null,null,null,null,null,null,null,null,null,null,null,null,null,null,null,null,null,null,null,null,null,null,null,null,null,null,null,null,null,null,null,null,null,null,null,null,null,null,null,null,null,null,null,null,null,null,null,null,null,null,null,null,null,null,null,null,null,null,null,null,null,null,null,null,null,null,null,null,null,null,null,null,null,null,null,null,null,null,null,null,null,null,null,null,null,null,null,null,null,null,null,null,null,null,null,null,null,null,null,null,null,null,null,null,null,null,null,null,null,null,null,null,null,null,null,null,null,null,null,null,null,null,null,null,null,null,null,null,null,null,null,null,null,null,null,null,null,null,null,null,null,null,null,null,null,null,null,null,null,null,null,null,null,null,null,null,null,null,null,null,null,null,null,null,null,null,null,null,null,null,null,null,null,null,null,null,null,null,null,null,null,null,null,null,null,null,null,null,null,null,null,null,null,null,null,null,null,null,null,null,null,null,null,null,null,null,null,null,null,null,null,null,null,null,null,null,null,null,null,null,null,null,null,null,null,null,null,null,null,null,null,null,null,null,null,null,null,null,null,null,null,null,null,null,null,null,null,null,null,null,null,null,null,null,null,null,null,null,null,null,null,null,null,null,null,null,null,null,null,null,null,null,null,null,null,null,null,null,null,null,null,null,null,null,null,null,null,null,null,null,null,null,null,null,null,null,null,null,null,null,null,null,null,null,null,null,null,null,null,null,null,null,null,null,null,null,null,null,null,null,null,null,null,null,null,null,null,null,null,null,null,null,null,null,null,null,null,null,null,null,null,null,null,null,null,null,null,null,null,null,null,null,null,null,null,null,null,null,null,null,null,null,null,null,null,null,null,null,null,null,null,null,null,null,null,null,null,null,null,null,null,null,null,null,null,null,null,null,null,null,null,null,null,null,null,null,null,null,null,null,null,null,null,null,null,null,null,null,null,null,null,null,null,null,null,null,null,null,null,null,null,null,null,null,null,null,null,null,null,null,null,null,null,null,null,null,null,null,null,null,null,null,null,null,null,null,null,null,null,null,null,null,null,null,null,null,null,null,null,null,null,null,null,null,null,null,null,null,null,null,null,null,null,null,null,null,null,null,null,null,null,null,null,null,null,null,null,null,null,null,null,null,null,null,null,null,null,null,null,null,null,null,null,null,null,null,null,null,null,null,null,null,null,null,null,null,null,null,null,null,null,null,null,null,null,null,null,null,null,null,null,null,null,null,null,null,null,null,null,null,null,null,null,null,null,null,null,null,null,null,null,null,null,null,null,null,null,null,null,null,null,null,null,null,null,null,null,null,null,null,null,null,null,null,null,null,null,null,null,null,null,null,null,null,null,null,null,null,null,null,null,null,null,null,null,null,null,null,null,null,null,null,null,null,null,null,null,null,null,null,null,null,null,null,null,null,null,null,null,null,null,null,null,null,null,null,null,null,null,null,null,null,null,null,null,null,null,null,null,null,null,null,null,null,null,null,null,null,null,null,null,null,null,null,null,null,null,null,null,null,null,null,null,null,null,null,null,null,null,null,null,null,null,null,null,null,null,null,null,null,null,null,null,null,null,null,null,null,null,null,null,null,null,null,null,null,null,null,null,null,null,null,null,null,null,null,null,null,null,null,null,null,null,null,null,null,null,null,null,null,null,null,null,null,null,null,null,null,null,null,null,null,null,null,null,null,null,null,null,null,null,null,null,null,null,null,null,null,null,null,null,null,null,null,null,null,null,null,null,null,null,null,null,null,null,null,null,null,null,null,null,null,null,null,null,null,null,null,null,null,null,null,null,null,null,null,null,null,null,null,null,null,null,null,null,null,null,null,null,null,null,null,null,null,null,null,null,null,null,null,null,null,null,null,null,null,null,null,null,null,null,null,null,null,null,null,null,null,null,null,null,null,null,null,null,null,null,null,null,null,null,null,null,null,null,null,null,null,null,null,null,null,null,null,null,null,null,null,null,null,null,null,null,null,null,null,null,null,null,null,null,null,null,null,null,null,null,null,null,null,null,null,null,null,null,null,null,null,null,null,null,null,null,null,null,null,null,null,null,null,null,null,null,null,null,null,null,null,null,null,null,null,null,null,null,null,null,null,null,null,null,null,null,null,null,null,null,null,null,null,null,null,null,null,null,null,null,null,null,null,null,null,null,null,null,null,null,null,null,null,null,null,null,null,null,null,null,null,null,null,null,null,null,null,null,null,null,null,null,null,null,null,null,null,null,null,null,null,null,null,null,null,null,null,null,null,null,null,null,null,null,null,null,null,null,null,null,null,null,null,null,null,null,null,null,null,null,null,null,null,null,null,null,null,null,null,null,null,null,null,null,null,null,null,null,null,null,null,null,null,null,null,null,null,null,null,null,null,null,null,null,null,null,null,null,null,null,null,null,null,null,null,null,null,null,null,null,null,null,null,null,null,null,null,null,null,null,null,null,null,null,null,null,null,null,null,null,null,null,null,null,null,null,null,null,null,null,null,null,null,null,null,null,null,null,null,null,null,null,null,null,null,null,null,null,null,null,null,null,null,null,null,null,null,null,null,null,null,null,null,null,null,null,null,null,null,null,null,null,null,null,null,null,null,null,null,null,null,null,null,null,null,null,null,null,null,null,null,null,null,null,null,null,null,null,null,null,null,null,null,null,null,null,null,null,null,null,null,null,null,null,null,null,null,null,null,null,null,null,null,null,null,null,null,null,null,null,null,null,null,null,null,null,null,null,null,null,null,null,null,null,null,null,null,null,null,null,null,null,null,null,null,null,null,null,null,null,null,null,null,null,null,null,null,null,null,null,null,null,null,null,null,null,null,null,null,null,null,null,null,null,null,null,null,null,null,null,null,null,null,null,null,null,null,null,null,null,null,null,null,null,null,null,null,null,null,null,null,null,null,null,null,null,null,null,null,null,null,null,null,null,null,null,null,null,null,null,null,null,null,null,null,null,null,null,null,null,null,null,null,null,null,null,null,null,null,null,null,null,null,null,null,null,null,null,null,null,null,null,null,null,null,null,null,null,null,null,null,null,null,null,null,null,null,null,null,null,null,null,null,null,null,null,null,null,null,null,null,null,null,null,null,null,null,null,null,null,null,null,null,null,null,null,null,null,null,null,null,null,null,null,null,null,null,null,null,null,null,null,null,null,null,null,null,null,null,null,null,null,null,null,null,null,null,null,null,null,null,null,null,null,null,null,null,null,null,null,null,null,null,null,null,null,null,null,null,null,null,null,null,null,null,null,null,null,null,null,null,null,null,null,null,null,null,null,null,null,null,null,null,null,null,null,null,null,null,null,null,null,null,null,null,null,null,null,null,null,null,null,null,null,null,null,null,null,null,null,null,null,null,null,null,null,null,null,null,null,null,null,null,null,null,null,null,null,null,null,null,null,null,null,null,null,null,null,null,null,null,null,null,null,null,null,null,null,null,null,null,null,null,null,null,null,null,null,null,null,null,null,null,null,null,null,null,null,null,null,null,null,null,null,null,null,null,null,null,null,null,null,null,null,null,null,null,null,null,null,null,null,null,null,null,null,null,null,null,null,null,null,null,null,null,null,null,null,null,null,null,null,null,null,null,null,null,null,null,null,null,null,null,null,null,null,null,null,null,null,null,null,null,null,null,null,null,null,null,null,null,null,null,null,null,null,null,null,null,null,null,null,null,null,null,null,null,null,null,null,null,null,null,null,null,null,null,null,null,null,null,null,null,null,null,null,null,null,null,null,null,null,null,null,null,null,null,null,null,null,null,null,null,null,null,null,null,null,null,null,null,null,null,null,null,null,null,null,null,null,null,null,null,null,null,null,null,null,null,null,null,null,null,null,null,null,null,null,null,null,null,null,null,null,null,null,null,null,null,null,null,null,null,null,null,null,null,null,null,null,null,null,null,null,null,null,null,null,null,null,null,null,null,null,null,null,null,null,null,null,null,null,null,null,null,null,null,null,null,null,null,null,null,null,null,null,null,null,null,null,null,null,null,null,null,null,null,null,null,null,null,null,null,null,null,null,null,null,null,null,null,null,null,null,null,null,null,null,null,null,null,null,null,null,null,null,null,null,null,null,null,null,null,null,null,null,null,null,null,null,null,null,null,null,null,null,null,null,null,null,null,null,null,null,null,null,null,null,null,null,null,null,null,null,null,null,null,null,null,null,null,null,null,null,null,null,null,null,null,null,null,null,null,null,null,null,null,null,null,null,null,null,null,null,null,null,null,null,null,null,null,null,null,null,null,null,null,null,null,null,null,null,null,null,null,null,null,null,null,null,null,null,null,null,null,null,null,null,null,null,null,null,null,null,null,null,null,null,null,null,null,null,null,null,null,null,null,null,null,null,null,null,null,null,null,null,null,null,null,null,null,null,null,null,null,null,null,null,null,null,null,null,null,null,null,null,null,null,null,null,null,null,null,null,null,null,null,null,null,null,null,null,null,null,null,null,null,null,null,null,null,null,null,null,null,null,null,null,null,null,null,null,null,null,null,null,null,null,null,null,null,null,null,null,null,null,null,null,null,null,null,null,null,null,null,null,null,null,null,null,null,null,null,null,null,null,null,null,null,null,null,null,null,null,null,null,null,null,null,null,null,null,null,null,null,null,null,null,null,null,null,null,null,null,null,null,null,null,null,null,null,null,null,null,null,null,null,null,null,null,null,null,null,null,null,null,null,null,null,null,null,null,null,null,null,null,null,null,null,null,null,null,null,null,null,null,null,null,null,null,null,null,null,null,null,null,null,null,null,null,null,null,null,null,null,null,null,null,null,null,null,null,null,null,null,null,null,null,null,null,null,null,null,null,null,null,null,null,null,null,null,null,null,null,null,null,null,null,null,null,null,null,null,null,null,null,null,null,null,null,null,null,null,null,null,null,null,null,null,null,null,null,null,null,null,null,null,null,null,null,null,null,null,null,null,null,null,null,null,null,null,null,null,null,null,null,null,null,null,null,null,null,null,null,null,null,null,null,null,null,null,null,null,null,null,null,null,null,null,null,null,null,null,null,null,null,null,null,null,null,null,null,null,null,null,null,null,null,null,null,null,null,null,null,null,null,null,null,null,null,null,null,null,null,null,null,null,null,null,null,null,null,null,null,null,null,null,null,null,null,null,null,null,null,null,null,null,null,null,null,null,null,null,null,null,null,null,null,null,null,null,null,null,null,null,null,null,null,null,null,null,null,null,null,null,null,null,null,null,null,null,null,null,null,null,null,null,null,null,null,null,null,null,null,null,null,null,null,null,null,null,null,null,null,null,null,null,null,null,null,null,null,null,null,null,null,null,null,null,null,null,null,null,null,null,null,null,null,null,null,null,null,null,null,null,null,null,null,null,null,null,null,null,null,null,null,null,null,null,null,null,null,null,null,null,null,null,null,null,null,null,null,null,null,null,null,null,null,null,null,null,null,null,null,null,null,null,null,null,null,null,null,null,null,null,null,null,null,null,null,null,null,null,null,null,null,null,null,null,null,null,null,null,null,null,null,null,null,null,null,null,null,null,null,null,null,null,null,null,null,null,null,null,null,null,null,null,null,null,null,null,null,null,null,null,null,null,null,null,null,null,null,null,null,null,null,null,null,null,null,null,null,null,null,null,null,null,null,null,null,null,null,null,null,null,null,null,null,null,null,null,null,null,null,null,null,null,null,null,null,null,null,null,null,null,null,null,null,null,null,null,null,null,null,null,null,null,null,null,null,null,null,null,null,null,null,null,null,null,null,null,null,null,null,null,null,null,null,null,null,null,null,null,null,null,null,null,null,null,null,null,null,null,null,null,null,null,null,null,null,null,null,null,null,null,null,null,null,null,null,null,null,null,null,null,null,null,null,null,null,null,null,null,null,null,null,null,null,null,null,null,null,null,null,null,null,null,null,null,null,null,null,null,null,null,null,null,null,null,null,null,null,null,null,null,null,null,null,null,null,null,null,null,null,null,null,null,null,null,null,null,null,null,null,null,null,null,null,null,null,null,null,null,null,null,null,null,null,null,null,null,null,null,null,null,null,null,null,null,null,null,null,null,null,null,null,null,null,null,null,null,null,null,null,null,null,null,null,null,null,null,null,null,null,null,null,null,null,null,null,null,null,null,null,null,null,null,null,null,null,null,null,null,null,null,null,null,null,null,null,null,null,null,null,null,null,null,null,null,null,null,null,null,null,null,null,null,null,null,null,null,null,null,null,null,null,null,null,null,null,null,null,null,null,null,null,null,null,null,null,null,null,null,null,null,null,null,null,null,null,null,null,null,null,null,null,null,null,null,null,null,null,null,null,null,null,null,null,null,null,null,null,null,null,null,null,null,null,null,null,null,null,null,null,null,null,null,null,null,null,null,null,null,null,null,null,null,null,null,null,null,null,null,null,null,null,null,null,null,null,null,null,null,null,null,null,null,null,null,null,null,null,null,null,null,null,null,null,null,null,null,null,null,null,null,null,null,null,null,null,null,null,null,null,null,null,null,null,null,null,null,null,null,null,null,null,null,null,null,null,null,null,null,null,null,null,null,null,null,null,null,null,null,null,null,null,null,null,null,null,null,null,null,null,null,null,null,null,null,null,null,null,null,null,null,null,null,null,null,null,null,null,null,null,null,null,null,null,null,null,null,null,null,null,null,null,null,null,null,null,null,null,null,null,null,null,null,null,null,null,null,null,null,null,null,null,null,null,null,null,null,null,null,null,null,null,null,null,null,null,null,null,null,null,null,null,null,null,null,null,null,null,null,null,null,null,null,null,null,null,null,null,null,null,null,null,null,null,null,null,null,null,null,null,null,null,null,null,null,null,null,null,null,null,null,null,null,null,null,null,null,null,null,null,null,null,null,null,null,null,null,null,null,null,null,null,null,null,null,null,null,null,null,null,null,null,null,null,null,null,null,null,null,null,null,null,null,null,null,null,null,null,null,null,null,null,null,null,null,null,null,null,null,null,null,null,null,null,null,null,null,null,null,null,null,null,null,null,null,null,null,null,null,null,null,null,null,null,null,null,null,null,null,null,null,null,null,null,null,null,null,null,null,null,null,null,null,null,null,null,null,null,null,null,null,null,null,null,null,null,null,null,null,null,null,null,null,null,null,null,null,null,null,null,null,null,null,null,null,null,null,null,null,null,null,null,null,null,null,null,null,null,null,null,null,null,null,null,null,null,null,null,null,null,null,null,null,null,null,null,null,null,null,null,null,null,null,null,null,null,null,null,null,null,null,null,null,null,null,null,null,null,null,null,null,null,null,null,null,null,null,null,null,null,null,null,null,null,null,null,null,null,null,null,null,null,null,null,null,null,null,null,null,null,null,null,null,null,null,null,null,null,null,null,null,null,null,null,null,null,null,null,null,null,null,null,null,null,null,null,null,null,null,null,null,null,null,null,null,null,null,null,null,null,null,null,null,null,null,null,null,null,null,null,null,null,null,null,null,null,null,null,null,null,null,null,null,null,null,null,null,null,null,null,null,null,null,null,null,null,null,null,null,null,null,null,null,null,null,null,null,null,null,null,null,null,null,null,null,null,null,null,null,null,null,null,null,null,null,null,null,null,null,null,null,null,null,null,null,null,null,null,null,null,null,null,null,null,null,null,null,null,null,null,null,null,null,null,null,null,null,null,null,null,null,null,null,null,null,null,null,null,null,null,null,null,null,null,null,null,null,null,null,null,null,null,null,null,null,null,null,null,null,null,null,null,null,null,null,null,null,null,null,null,null,null,null,null,null,null,null,null,null,null,null,null,null,null,null,null,null,null,null,null,null,null,null,null,null,null,null,null,null,null,null,null,null,null,null,null,null,null,null,null,null,null,null,null,null,null,null,null,null,null,null,null,null,null,null,null,null,null,null,null,null,null,null,null,null,null,null,null,null,null,null,null,null,null,null,null,null,null,null,null,null,null,null,null,null,null,null,null,null,null,null,null,null,null,null,null,null,null,null,null,null,null,null,null,null,null,null,null,null,null,null,null,null,null,null,null,null,null,null,null,null,null,null,null,null,null,null,null,null,null,null,null,null,null,null,null,null,null,null,null,null,null,null,null,null,null,null,null,null,null,null,null,null,null,null,null,null,null,null,null,null,null,null,null,null,null,null,null,null,null,null,null,null,null,null,null,null,null,null,null,null,null,null,null,null,null,null,null,null,null,null,null,null,null,null,null,null,null,null,null,null,null,null,null,null,null,null,null,null,null,null,null,null,null,null,null,null,null,null,null,null,null,null,null,null,null,null,null,null,null,null,null,null,null,null,null,null,null,null,null,null,null,null,null,null,null,null,null,null,null,null,null,null,null,null,null,null,null,null,null,null,null,null,null,null,null,null,null,null,null,null,null,null,null,null,null,null,null,null,null,null,null,null,null,null,null,null,null,null,null,null,null,null,null,null,null,null,null,null,null,null,null,null,null,null,null,null,null,null,null,null,null,null,null,null,null,null,null,null,null,null,null,null,null,null,null,null,null,null,null,null,null,null,null,null,null,null,null,null,null,null,null,null,null,null,null,null,null,null,null,null,null,null,null,null,null,null,null,null,null,null,null,null,null,null,null,null,null,null,null,null,null,null,null,null,null,null,null,null,null,null,null,null,null,null,null,null,null,null,null,null,null,null,null,null,null,null,null,null,null,null,null,null,null,null,null,null,null,null,null,null,null,null,null,null,null,null,null,null,null,null,null,null,null,null,null,null,null,null,null,null,null,null,null,null,null,null,null,null,null,null,null,null,null,null,null,null,null,null,null,null,null,null,null,null,null,null,null,null,null,null,null,null,null,null,null,null,null,null,null,null,null,null,null,null,null,null,null,null,null,null,null,null,null,null,null,null,null,null,null,null,null,null,null,null,null,null,null,null,null,null,null,null,null,null,null,null,null,null,null,null,null,null,null,null,null,null,null,null,null,null,null,null,null,null,null,null,null,null,null,null,null,null,null,null,null,null,null,null,null,null,null,null,null,null,null,null,null,null,null,null,null,null,null,null,null,null,null,null,null,null,null,null,null,null,null,null,null,null,null,null,null,null,null,null,null,null,null,null,null,null,null,null,null,null,null,null,null,null,null,null,null,null,null,null,null,null,null,null,null,null,null,null,null,null,null,null,null,null,null,null,null,null,null,null,null,null,null,null,null,null,null,null,null,null,null,null,null,null,null,null,null,null,null,null,null,null,null,null,null,null,null,null,null,null,null,null,null,null,null,null,null,null,null,null,null,null,null,null,null,null,null,null,null,null,null,null,null,null,null,null,null,null,null,null,null,null,null,null,null,null,null,null,null,null,null,null,null,null,null,null,null,null,null,null,null,null,null,null,null,null,null,null,null,null,null,null,null,null,null,null,null,null,null,null,null,null,null,null,null,null,null,null,null,null,null,null,null,null,null,null,null,null,null,null,null,null,null,null,null,null,null,null,null,null,null,null,null,null,null,null,null,null,null,null,null,null,null,null,null,null,null,null,null,null,null,null,null,null,null,null,null,null,null,null,null,null,null,null,null,null,null,null,null,null,null,null,null,null,null,null,null,null,null,null,"ETLv1.0"]

{"sheet":"April","index":1,"n_rows":48,"n_cols":45,"rows_kept":48,"cut":false,"hidden":false,"merged":[[15,27,15,29],[15,14,15,16],[9,11,10,11],[3,4,3,10],[9,4,10,5],[15,10,15,12],[4,2,4,10],[14,14,14,16],[5,4,5,5],[5,6,5,7],[5,23,5,24],[14,2,14,4],[14,5,14,8]]}
[]
[]
[]
[null,null,null,"Facility Name:","Enter Name Here"]
[null,null,"Constants used to calculate Thermal Load Limits (TLL)"]
[null,null,null,null,"Start",null,"End",null,null,null,null,"Option 2","Option 1","TRC Loan",null,null,null,null,null,null,null,null,null,"Julian Dates"]
[null,null,null,null,"Month","Day","Month","Day","Trc","m","b","TRA_N","TLL","Factor",null,null,null,null,null,null,null,null,null,"Rearing/Mig","Spawning"]
[null,null,null,"Rearing & Migration",5,16,10,14,null,null,null,null,null,null,null,null,null,null,null,null,null,null,null,{"$f":"X9-DATEVALUE(\"1/1/\"&$B16)+1","v":136},{"$f":"Y9-DATEVALUE(\"1/1/\"&B16)+1","v":287}]
[null,null,null,"Spawning",null,null,null,null,null,null,null,null,null,null,null,null,null,null,null,null,null,null,null,{"$f":"DATE($B16,E8,F8)","v":"2011-05-16"},{"$f":"DATE($B16,G8,H8)","v":"2011-10-14"}]
[null,null,"TPS","QPS","NTP Coefficients",null,"Maximum"]
[null,null,null,null,null,null,"Average"]
[null,null,null,null,null,null,null,null,null,null,null,"Version 1.1"]
[]
[null,{"$f":"IF(B15=\"april\",4,IF(B15=\"may\",5,IF(B15=\"june\",6,IF(B15=\"july\",7,IF(B15=\"august\",8,IF(B15=\"september\",9,10))))))","v":4}]
[null,"April","Effluent",null,null,"Ambient",null,null,null,null,null,null,null,null,"Thermal Load Option"]
[null,2011,"Flow","Max Temp","7-day Temp","Flow","7-day Flow","Avg Temp","Max Temp",null,"Thermal Load Limit",null,null,null,"With Temporary Loan",null,null,null,null,null,null,null,null,null,"Exceedances",null,null,"Exceedances with loan"]
[null,"Date","(mgd)","(deg C)","(deg C)","(cfs)","(cfs)","TRA","TRM","ETL","Option 1","Option 2","Option 3","Exceedance","Option 1","Option 2","Option 3","Exceedance","Comments",null,null,null,null,null,"Option 1","Option 2","Option 3","Option 1","Option 2","Option 3","Julian Day","Qe7 (cfs)","Te7","Qr7","TRA_N","TRA_N7","TRA_N'","TRM_N","TRM_N7","Trc","a","a'","m","b","d"]
[1,{"$f":"DATE(B$16,B$14,A18)","v":"2011-04-01"},null,null,{"$f":"IF(AG18=\"need data\",\"\",AG18)","v":"na"},null,{"$f":"IF(AH18=\"need data\",\"\",AH18)","v":"na"},null,null,{"$f":"IF(K18=\"\",\"\",IF(OR(AF18=\"need data\",AG18=\"need data\"),\"need data\",IF(AF18*2.447*(AG18-AN18)*1.547<0,0,AF18*2.447*(AG18-AN18)*1.547)))","v":""},null,null,null,{"$f":"IF(K18=\"\",\"\",IF(J18=\"need data\",\"need data\",IF(AA18<>\"no data\",AA18,IF(Z18<>\"no data\",Z18,Y18))))","v":""},{"$f":"IF($K18=\"\",\"\",IF($K18=$M$9,K18*$N$9,K18*$N$8))","v":""},{"$f":"IF($K18=\"\",\"\",IF(L18=\"no data\",\"no data\",IF($K18=$M$9,L18*$N$9,L18*$N$8)))","v":""},{"$f":"IF($K18=\"\",\"\",IF(M18=\"no data\",\"no data\",IF($K18=$M$9,M18*$N$9,M18*$N$8)))","v":""},{"$f":"IF(O18=\"\",\"\",IF(AD18<>\"no data\",AD18,IF(AC18<>\"no data\",AC18,AB18)))","v":""},null,null,null,null,null,null,{"$f":"IF(J18=\"\",\" \",IF(RoundEven($J18-K18,0)>0,$J18-K18,\" \"))","v":" "},{"$f":"IF(L18=\"no data\",\"no data\",IF(L18=\"\",\" \",IF(RoundEven($J18-L18,0)>0,$J18-L18,\" \")))","v":" "},{"$f":"IF(M18=\"no data\",\"no data\",IF(M18=\"\",\" \",IF(RoundEven($J18-M18,0)>0,$J18-M18,\" \")))","v":" "},{"$f":"IF($J18=\"\",\" \",IF(RoundEven($J18-O18,0)>0,$J18-O18,\" \"))","v":" "},{"$f":"IF(P18=\"no data\",\"no data\",IF(P18=\"\",\" \",IF(RoundEven($J18-P18,0)>0,$J18-P18,\" \")))","v":" "},{"$f":"IF(Q18=\"no data\",\"no data\",IF(Q18=\"\",\" \",IF(RoundEven($J18-Q18,0)>0,$J18-Q18,\" \")))","v":" "},{"$f":"VALUE(TEXT((B18-DATEVALUE(\"1/1/\"&TEXT(B18,\"yy\"))+1),\"000\"))","v":91},"na","na","na",{"$f":"H$11*H18+I$11","v":0},null,{"$f":"IF(AND($AE18>=$X$8,$AE18<=$Y$8),$L$8,$L$9)","v":0},{"$f":"H$10*I18+I$10","v":0},null,{"$f":"IF(AND($AE18>=$X$8,$AE18<=$Y$8),$I$8,$I$9)","v":0},{"$f":"IF(OR(AM18<=AN18,AND(AM18>AN18,AJ18>=AN18)),0,(1-(AJ18/AN18)))","v":0},{"$f":"1-AK18/AN18","v":{"$error":"#DIV/0!"}},{"$f":"IF($AN18=13,J$9,J$8)","v":0},{"$f":"IF($AN18=13,K$9,K$8)","v":0},{"$f":"(AQ18*F18+AR18-AO18)","v":0}]
[2,"2011-04-02",null,null,{"$f":"IF(AG19=\"need data\",\"\",AG19)","v":"na"},null,{"$f":"IF(AH19=\"need data\",\"\",AH19)","v":"na"},null,null,{"$f":"IF(K19=\"\",\"\",IF(OR(AF19=\"need data\",AG19=\"need data\"),\"need data\",IF(AF19*2.447*(AG19-AN19)*1.547<0,0,AF19*2.447*(AG19-AN19)*1.547)))","v":""},null,null,null,"","","","",{"$f":"IF(O19=\"\",\"\",IF(AD19<>\"no data\",AD19,IF(AC19<>\"no data\",AC19,AB19)))","v":""},null,null,null,null,null,null,{"$f":"IF(J19=\"\",\" \",IF(RoundEven($J19-K19,0)>0,$J19-K19,\" \"))","v":" "},{"$f":"IF(L19=\"no data\",\"no data\",IF(L19=\"\",\" \",IF(RoundEven($J19-L19,0)>0,$J19-L19,\" \")))","v":" "},{"$f":"IF(M19=\"no data\",\"no data\",IF(M19=\"\",\" \",IF(RoundEven($J19-M19,0)>0,$J19-M19,\" \")))","v":" "},{"$f":"IF($J19=\"\",\" \",IF(RoundEven($J19-O19,0)>0,$J19-O19,\" \"))","v":" "},{"$f":"IF(P19=\"no data\",\"no data\",IF(P19=\"\",\" \",IF(RoundEven($J19-P19,0)>0,$J19-P19,\" \")))","v":" "},{"$f":"IF(Q19=\"no data\",\"no data\",IF(Q19=\"\",\" \",IF(RoundEven($J19-Q19,0)>0,$J19-Q19,\" \")))","v":" "},92,"na","na","na",0,null,{"$f":"IF(AND($AE19>=X$8,$AE19<=Y$8),$L$8,$L$9)","v":0},0,null,0,{"$f":"IF(OR(AM19<=AN19,AND(AM19>AN19,AJ19>=AN19)),0,(1-(AJ19/AN19)))","v":0},{"$error":"#DIV/0!"},0,0,0]
[3,"2011-04-03",null,null,"na",null,"na",null,null,"",null,null,null,"","","","","",null,null,null,null,null,null," "," "," ",{"$f":"IF($J20=\"\",\" \",IF(RoundEven($J20-O20,0)>0,$J20-O20,\" \"))","v":" "},{"$f":"IF(P20=\"no data\",\"no data\",IF(P20=\"\",\" \",IF(RoundEven($J20-P20,0)>0,$J20-P20,\" \")))","v":" "},{"$f":"IF(Q20=\"no data\",\"no data\",IF(Q20=\"\",\" \",IF(RoundEven($J20-Q20,0)>0,$J20-Q20,\" \")))","v":" "},93,"na","na","na",0,null,0,0,null,0,0,{"$error":"#DIV/0!"},0,0,0]
[4,"2011-04-04",null,null,"na",null,"na",null,null,"",null,null,null,"","","","","",null,null,null,null,null,null," "," "," ",{"$f":"IF($J21=\"\",\" \",IF(RoundEven($J21-O21,0)>0,$J21-O21,\" \"))","v":" "},{"$f":"IF(P21=\"no data\",\"no data\",IF(P21=\"\",\" \",IF(RoundEven($J21-P21,0)>0,$J21-P21,\" \")))","v":" "},{"$f":"IF(Q21=\"no data\",\"no data\",IF(Q21=\"\",\" \",IF(RoundEven($J21-Q21,0)>0,$J21-Q21,\" \")))","v":" "},94,"na","na","na",0,null,0,0,null,0,0,{"$error":"#DIV/0!"},0,0,0]
[5,"2011-04-05",null,null,"na",null,"na",null,null,"",null,null,null,"","","","","",null,null,null,null,null,null," "," "," ",{"$f":"IF($J22=\"\",\" \",IF(RoundEven($J22-O22,0)>0,$J22-O22,\" \"))","v":" "},{"$f":"IF(P22=\"no data\",\"no data\",IF(P22=\"\",\" \",IF(RoundEven($J22-P22,0)>0,$J22-P22,\" \")))","v":" "},{"$f":"IF(Q22=\"no data\",\"no data\",IF(Q22=\"\",\" \",IF(RoundEven($J22-Q22,0)>0,$J22-Q22,\" \")))","v":" "},95,"na","na","na",0,null,0,0,null,0,0,{"$error":"#DIV/0!"},0,0,0]
[6,"2011-04-06",null,null,"na",null,"na",null,null,"",null,null,null,"","","","","",null,null,null,null,null,null," "," "," ",{"$f":"IF($J23=\"\",\" \",IF(RoundEven($J23-O23,0)>0,$J23-O23,\" \"))","v":" "},{"$f":"IF(P23=\"no data\",\"no data\",IF(P23=\"\",\" \",IF(RoundEven($J23-P23,0)>0,$J23-P23,\" \")))","v":" "},{"$f":"IF(Q23=\"no data\",\"no data\",IF(Q23=\"\",\" \",IF(RoundEven($J23-Q23,0)>0,$J23-Q23,\" \")))","v":" "},96,"na","na","na",0,null,0,0,null,0,0,{"$error":"#DIV/0!"},0,0,0]
[7,"2011-04-07",null,null,"",null,"",null,null,"need data",{"$f":"IF(OR(AND($AE24>=X$8,$AE24<X$8+6),AND($AE24>Y$8,$AE24<Y$8+7)),\"\",IF(AND($AE24>=X$8,$AE24<=Y$8),$M$8,$M$9))","v":0},{"$f":"IF(K24=\"\",\"\",IF(COUNT(F18:F24)<>7,\"no data\",($AQ24*$AH24+$AR24-$AP24)*$D$11*2.447*($C$11-$AN24)))","v":"no data"},{"$f":"IF(K24=\"\",\"\",IF(OR(COUNT(F18:F24)<>7,COUNT(H18:H24)<>7,COUNT(I18:I24)<>7),\"no data\",($AQ24*$AH24+$AR24-$AO24)*$D$11*2.447*($C$11-$AN24)))","v":"no data"},"need data",0,"no data","no data",{"$f":"IF(O24=\"\",\"\",IF(J24=\"need data\",\"need data\",IF(AD24<>\"no data\",AD24,IF(AC24<>\"no data\",AC24,AB24))))","v":"need data"},null,null,null,null,null,null,{"$error":"#VALUE!"},"no data","no data",{"$f":"IF($J24=\"\",\" \",IF(RoundEven($J24-O24,0)>0,$J24-O24,\" \"))","v":{"$error":"#VALUE!"}},{"$f":"IF(P24=\"no data\",\"no data\",IF(P24=\"\",\" \",IF(RoundEven($J24-P24,0)>0,$J24-P24,\" \")))","v":"no data"},{"$f":"IF(Q24=\"no data\",\"no data\",IF(Q24=\"\",\" \",IF(RoundEven($J24-Q24,0)>0,$J24-Q24,\" \")))","v":"no data"},97,{"$f":"IF(COUNT(C18:C24)<>7,\"need data\",AVERAGE(C18:C24))","v":"need data"},{"$f":"IF(COUNT(D18:D24)<>7,\"need data\",AVERAGE(D18:D24))","v":"need data"},{"$f":"IF(COUNT(F18:F24)<>7,\"need data\",AVERAGE(F18:F24))","v":"need data"},0,{"$f":"AVERAGE(AI18:AI24)","v":0},0,0,{"$f":"AVERAGE(AL18:AL24)","v":0},0,0,{"$error":"#DIV/0!"},0,0,0]
[8,"2011-04-08",null,null,"",null,"",null,null,"need data",0,"no data","no data",{"$f":"IF(K25=\"\",\"\",IF(J25=\"need data\",\"need data\",IF(AA25<>\"no data\",AA25,IF(Z25<>\"no data\",Z25,Y25))))","v":"need data"},0,"no data","no data",{"$f":"IF(O25=\"\",\"\",IF(J25=\"need data\",\"need data\",IF(AD25<>\"no data\",AD25,IF(AC25<>\"no data\",AC25,AB25))))","v":"need data"},null,null,null,null,null,null,{"$error":"#VALUE!"},"no data","no data",{"$f":"IF($J25=\"\",\" \",IF(RoundEven($J25-O25,0)>0,$J25-O25,\" \"))","v":{"$error":"#VALUE!"}},{"$f":"IF(P25=\"no data\",\"no data\",IF(P25=\"\",\" \",IF(RoundEven($J25-P25,0)>0,$J25-P25,\" \")))","v":"no data"},{"$f":"IF(Q25=\"no data\",\"no data\",IF(Q25=\"\",\" \",IF(RoundEven($J25-Q25,0)>0,$J25-Q25,\" \")))","v":"no data"},98,"need data","need data","need data",0,{"$f":"AVERAGE(AI19:AI25)","v":0},0,0,{"$f":"AVERAGE(AL19:AL25)","v":0},0,0,{"$error":"#DIV/0!"},0,0,0]
[9,"2011-04-09",null,null,"",null,"",null,null,"need data",0,"no data","no data",{"$f":"IF(K26=\"\",\"\",IF(J26=\"need data\",\"need data\",IF(AA26<>\"no data\",AA26,IF(Z26<>\"no data\",Z26,Y26))))","v":"need data"},0,"no data","no data","need data",null,null,null,null,null,null,{"$error":"#VALUE!"},"no data","no data",{"$f":"IF($J26=\"\",\" \",IF(RoundEven($J26-O26,0)>0,$J26-O26,\" \"))","v":{"$error":"#VALUE!"}},{"$f":"IF(P26=\"no data\",\"no data\",IF(P26=\"\",\" \",IF(RoundEven($J26-P26,0)>0,$J26-P26,\" \")))","v":"no data"},{"$f":"IF(Q26=\"no data\",\"no data\",IF(Q26=\"\",\" \",IF(RoundEven($J26-Q26,0)>0,$J26-Q26,\" \")))","v":"no data"},99,"need data","need data","need data",0,0,0,0,0,0,0,{"$error":"#DIV/0!"},0,0,0]
[10,"2011-04-10",null,null,"",null,"",null,null,"need data",0,"no data","no data","need data",0,"no data","no data","need data",null,null,null,null,null,null,{"$error":"#VALUE!"},"no data","no data",{"$f":"IF($J27=\"\",\" \",IF(RoundEven($J27-O27,0)>0,$J27-O27,\" \"))","v":{"$error":"#VALUE!"}},{"$f":"IF(P27=\"no data\",\"no data\",IF(P27=\"\",\" \",IF(RoundEven($J27-P27,0)>0,$J27-P27,\" \")))","v":"no data"},{"$f":"IF(Q27=\"no data\",\"no data\",IF(Q27=\"\",\" \",IF(RoundEven($J27-Q27,0)>0,$J27-Q27,\" \")))","v":"no data"},100,"need data","need data","need data",0,0,0,0,0,0,0,{"$error":"#DIV/0!"},0,0,0]
[11,"2011-04-11",null,null,"",null,"",null,null,"need data",0,"no data","no data","need data",0,"no data","no data","need data",null,null,null,null,null,null,{"$error":"#VALUE!"},"no data","no data",{"$f":"IF($J28=\"\",\" \",IF(RoundEven($J28-O28,0)>0,$J28-O28,\" \"))","v":{"$error":"#VALUE!"}},{"$f":"IF(P28=\"no data\",\"no data\",IF(P28=\"\",\" \",IF(RoundEven($J28-P28,0)>0,$J28-P28,\" \")))","v":"no data"},{"$f":"IF(Q28=\"no data\",\"no data\",IF(Q28=\"\",\" \",IF(RoundEven($J28-Q28,0)>0,$J28-Q28,\" \")))","v":"no data"},101,"need data","need data","need data",0,0,0,0,0,0,0,{"$error":"#DIV/0!"},0,0,0]
[12,"2011-04-12",null,null,"",null,"",null,null,"need data",0,"no data","no data","need data",0,"no data","no data","need data",null,null,null,null,null,null,{"$error":"#VALUE!"},"no data","no data",{"$f":"IF($J29=\"\",\" \",IF(RoundEven($J29-O29,0)>0,$J29-O29,\" \"))","v":{"$error":"#VALUE!"}},{"$f":"IF(P29=\"no data\",\"no data\",IF(P29=\"\",\" \",IF(RoundEven($J29-P29,0)>0,$J29-P29,\" \")))","v":"no data"},{"$f":"IF(Q29=\"no data\",\"no data\",IF(Q29=\"\",\" \",IF(RoundEven($J29-Q29,0)>0,$J29-Q29,\" \")))","v":"no data"},102,"need data","need data","need data",0,0,0,0,0,0,0,{"$error":"#DIV/0!"},0,0,0]
[13,"2011-04-13",null,null,"",null,"",null,null,"need data",0,"no data","no data","need data",0,"no data","no data","need data",null,null,null,null,null,null,{"$error":"#VALUE!"},"no data","no data",{"$f":"IF($J30=\"\",\" \",IF(RoundEven($J30-O30,0)>0,$J30-O30,\" \"))","v":{"$error":"#VALUE!"}},{"$f":"IF(P30=\"no data\",\"no data\",IF(P30=\"\",\" \",IF(RoundEven($J30-P30,0)>0,$J30-P30,\" \")))","v":"no data"},{"$f":"IF(Q30=\"no data\",\"no data\",IF(Q30=\"\",\" \",IF(RoundEven($J30-Q30,0)>0,$J30-Q30,\" \")))","v":"no data"},103,"need data","need data","need data",0,0,0,0,0,0,0,{"$error":"#DIV/0!"},0,0,0]
[14,"2011-04-14",null,null,"",null,"",null,null,"need data",0,"no data","no data","need data",0,"no data","no data","need data",null,null,null,null,null,null,{"$error":"#VALUE!"},"no data","no data",{"$f":"IF($J31=\"\",\" \",IF(RoundEven($J31-O31,0)>0,$J31-O31,\" \"))","v":{"$error":"#VALUE!"}},{"$f":"IF(P31=\"no data\",\"no data\",IF(P31=\"\",\" \",IF(RoundEven($J31-P31,0)>0,$J31-P31,\" \")))","v":"no data"},{"$f":"IF(Q31=\"no data\",\"no data\",IF(Q31=\"\",\" \",IF(RoundEven($J31-Q31,0)>0,$J31-Q31,\" \")))","v":"no data"},104,"need data","need data","need data",0,0,0,0,0,0,0,{"$error":"#DIV/0!"},0,0,0]
[15,"2011-04-15",null,null,"",null,"",null,null,"need data",0,"no data","no data","need data",0,"no data","no data","need data",null,null,null,null,null,null,{"$error":"#VALUE!"},"no data","no data",{"$f":"IF($J32=\"\",\" \",IF(RoundEven($J32-O32,0)>0,$J32-O32,\" \"))","v":{"$error":"#VALUE!"}},{"$f":"IF(P32=\"no data\",\"no data\",IF(P32=\"\",\" \",IF(RoundEven($J32-P32,0)>0,$J32-P32,\" \")))","v":"no data"},{"$f":"IF(Q32=\"no data\",\"no data\",IF(Q32=\"\",\" \",IF(RoundEven($J32-Q32,0)>0,$J32-Q32,\" \")))","v":"no data"},105,"need data","need data","need data",0,0,0,0,0,0,0,{"$error":"#DIV/0!"},0,0,0]
[16,"2011-04-16",null,null,"",null,"",null,null,"need data",0,"no data","no data","need data",0,"no data","no data","need data",null,null,null,null,null,null,{"$error":"#VALUE!"},"no data","no data",{"$f":"IF($J33=\"\",\" \",IF(RoundEven($J33-O33,0)>0,$J33-O33,\" \"))","v":{"$error":"#VALUE!"}},{"$f":"IF(P33=\"no data\",\"no data\",IF(P33=\"\",\" \",IF(RoundEven($J33-P33,0)>0,$J33-P33,\" \")))","v":"no data"},{"$f":"IF(Q33=\"no data\",\"no data\",IF(Q33=\"\",\" \",IF(RoundEven($J33-Q33,0)>0,$J33-Q33,\" \")))","v":"no data"},106,"need data","need data","need data",0,0,0,0,0,0,0,{"$error":"#DIV/0!"},0,0,0]
[17,"2011-04-17",null,null,"",null,"",null,null,"need data",0,"no data","no data","need data",0,"no data","no data","need data",null,null,null,null,null,null,{"$error":"#VALUE!"},"no data","no data",{"$f":"IF($J34=\"\",\" \",IF(RoundEven($J34-O34,0)>0,$J34-O34,\" \"))","v":{"$error":"#VALUE!"}},{"$f":"IF(P34=\"no data\",\"no data\",IF(P34=\"\",\" \",IF(RoundEven($J34-P34,0)>0,$J34-P34,\" \")))","v":"no data"},{"$f":"IF(Q34=\"no data\",\"no data\",IF(Q34=\"\",\" \",IF(RoundEven($J34-Q34,0)>0,$J34-Q34,\" \")))","v":"no data"},107,"need data","need data","need data",0,0,0,0,0,0,0,{"$error":"#DIV/0!"},0,0,0]
[18,"2011-04-18",null,null,"",null,"",null,null,"need data",0,"no data","no data","need data",0,"no data","no data","need data",null,null,null,null,null,null,{"$error":"#VALUE!"},"no data","no data",{"$f":"IF($J35=\"\",\" \",IF(RoundEven($J35-O35,0)>0,$J35-O35,\" \"))","v":{"$error":"#VALUE!"}},{"$f":"IF(P35=\"no data\",\"no data\",IF(P35=\"\",\" \",IF(RoundEven($J35-P35,0)>0,$J35-P35,\" \")))","v":"no data"},{"$f":"IF(Q35=\"no data\",\"no data\",IF(Q35=\"\",\" \",IF(RoundEven($J35-Q35,0)>0,$J35-Q35,\" \")))","v":"no data"},108,"need data","need data","need data",0,0,0,0,0,0,0,{"$error":"#DIV/0!"},0,0,0]
[19,"2011-04-19",null,null,"",null,"",null,null,"need data",0,"no data","no data","need data",0,"no data","no data","need data",null,null,null,null,null,null,{"$error":"#VALUE!"},"no data","no data",{"$f":"IF($J36=\"\",\" \",IF(RoundEven($J36-O36,0)>0,$J36-O36,\" \"))","v":{"$error":"#VALUE!"}},{"$f":"IF(P36=\"no data\",\"no data\",IF(P36=\"\",\" \",IF(RoundEven($J36-P36,0)>0,$J36-P36,\" \")))","v":"no data"},{"$f":"IF(Q36=\"no data\",\"no data\",IF(Q36=\"\",\" \",IF(RoundEven($J36-Q36,0)>0,$J36-Q36,\" \")))","v":"no data"},109,"need data","need data","need data",0,0,0,0,0,0,0,{"$error":"#DIV/0!"},0,0,0]
[20,"2011-04-20",null,null,"",null,"",null,null,"need data",0,"no data","no data","need data",0,"no data","no data","need data",null,null,null,null,null,null,{"$error":"#VALUE!"},"no data","no data",{"$f":"IF($J37=\"\",\" \",IF(RoundEven($J37-O37,0)>0,$J37-O37,\" \"))","v":{"$error":"#VALUE!"}},{"$f":"IF(P37=\"no data\",\"no data\",IF(P37=\"\",\" \",IF(RoundEven($J37-P37,0)>0,$J37-P37,\" \")))","v":"no data"},{"$f":"IF(Q37=\"no data\",\"no data\",IF(Q37=\"\",\" \",IF(RoundEven($J37-Q37,0)>0,$J37-Q37,\" \")))","v":"no data"},110,"need data","need data","need data",0,0,0,0,0,0,0,{"$error":"#DIV/0!"},0,0,0]
[21,"2011-04-21",null,null,"",null,"",null,null,"need data",0,"no data","no data","need data",0,"no data","no data","need data",null,null,null,null,null,null,{"$error":"#VALUE!"},"no data","no data",{"$f":"IF($J38=\"\",\" \",IF(RoundEven($J38-O38,0)>0,$J38-O38,\" \"))","v":{"$error":"#VALUE!"}},{"$f":"IF(P38=\"no data\",\"no data\",IF(P38=\"\",\" \",IF(RoundEven($J38-P38,0)>0,$J38-P38,\" \")))","v":"no data"},{"$f":"IF(Q38=\"no data\",\"no data\",IF(Q38=\"\",\" \",IF(RoundEven($J38-Q38,0)>0,$J38-Q38,\" \")))","v":"no data"},111,"need data","need data","need data",0,0,0,0,0,0,0,{"$error":"#DIV/0!"},0,0,0]
[22,"2011-04-22",null,null,"",null,"",null,null,"need data",0,"no data","no data","need data",0,"no data","no data","need data",null,null,null,null,null,null,{"$error":"#VALUE!"},"no data","no data",{"$f":"IF($J39=\"\",\" \",IF(RoundEven($J39-O39,0)>0,$J39-O39,\" \"))","v":{"$error":"#VALUE!"}},{"$f":"IF(P39=\"no data\",\"no data\",IF(P39=\"\",\" \",IF(RoundEven($J39-P39,0)>0,$J39-P39,\" \")))","v":"no data"},{"$f":"IF(Q39=\"no data\",\"no data\",IF(Q39=\"\",\" \",IF(RoundEven($J39-Q39,0)>0,$J39-Q39,\" \")))","v":"no data"},112,"need data","need data","need data",0,0,0,0,0,0,0,{"$error":"#DIV/0!"},0,0,0]
[23,"2011-04-23",null,null,"",null,"",null,null,"need data",0,"no data","no data","need data",0,"no data","no data","need data",null,null,null,null,null,null,{"$error":"#VALUE!"},"no data","no data",{"$f":"IF($J40=\"\",\" \",IF(RoundEven($J40-O40,0)>0,$J40-O40,\" \"))","v":{"$error":"#VALUE!"}},{"$f":"IF(P40=\"no data\",\"no data\",IF(P40=\"\",\" \",IF(RoundEven($J40-P40,0)>0,$J40-P40,\" \")))","v":"no data"},{"$f":"IF(Q40=\"no data\",\"no data\",IF(Q40=\"\",\" \",IF(RoundEven($J40-Q40,0)>0,$J40-Q40,\" \")))","v":"no data"},113,"need data","need data",{"$f":"IF(COUNT(F34:F40)<>7,\"need data\",AVERAGE(F34:F40))","v":"need data"},0,0,0,0,0,0,0,{"$error":"#DIV/0!"},0,0,0]
[24,"2011-04-24",null,null,"",null,"",null,null,"need data",0,"no data","no data",{"$f":"IF(K41=\"\",\"\",IF(J41=\"need data\",\"need data\",IF(AA41<>\"no data\",AA41,IF(Z41<>\"no data\",Z41,Y41))))","v":"need data"},0,"no data","no data","need data",null,null,null,null,null,null,{"$error":"#VALUE!"},"no data","no data",{"$f":"IF($J41=\"\",\" \",IF(RoundEven($J41-O41,0)>0,$J41-O41,\" \"))","v":{"$error":"#VALUE!"}},{"$f":"IF(P41=\"no data\",\"no data\",IF(P41=\"\",\" \",IF(RoundEven($J41-P41,0)>0,$J41-P41,\" \")))","v":"no data"},{"$f":"IF(Q41=\"no data\",\"no data\",IF(Q41=\"\",\" \",IF(RoundEven($J41-Q41,0)>0,$J41-Q41,\" \")))","v":"no data"},114,"need data","need data",{"$f":"IF(COUNT(F35:F41)<>7,\"need data\",AVERAGE(F35:F41))","v":"need data"},0,0,0,0,0,0,0,{"$error":"#DIV/0!"},0,0,0]
[25,"2011-04-25",null,null,"",null,"",null,null,"need data",0,"no data","no data","need data",0,"no data","no data","need data",null,null,null,null,null,null,{"$error":"#VALUE!"},"no data","no data",{"$f":"IF($J42=\"\",\" \",IF(RoundEven($J42-O42,0)>0,$J42-O42,\" \"))","v":{"$error":"#VALUE!"}},{"$f":"IF(P42=\"no data\",\"no data\",IF(P42=\"\",\" \",IF(RoundEven($J42-P42,0)>0,$J42-P42,\" \")))","v":"no data"},{"$f":"IF(Q42=\"no data\",\"no data\",IF(Q42=\"\",\" \",IF(RoundEven($J42-Q42,0)>0,$J42-Q42,\" \")))","v":"no data"},115,"need data","need data","need data",0,0,0,0,0,0,0,{"$error":"#DIV/0!"},0,0,0]
[26,"2011-04-26",null,null,"",null,"",null,null,"need data",0,"no data","no data","need data",0,"no data","no data","need data",null,null,null,null,null,null,{"$error":"#VALUE!"},"no data","no data",{"$f":"IF($J43=\"\",\" \",IF(RoundEven($J43-O43,0)>0,$J43-O43,\" \"))","v":{"$error":"#VALUE!"}},{"$f":"IF(P43=\"no data\",\"no data\",IF(P43=\"\",\" \",IF(RoundEven($J43-P43,0)>0,$J43-P43,\" \")))","v":"no data"},{"$f":"IF(Q43=\"no data\",\"no data\",IF(Q43=\"\",\" \",IF(RoundEven($J43-Q43,0)>0,$J43-Q43,\" \")))","v":"no data"},116,"need data","need data","need data",0,0,0,0,0,0,0,{"$error":"#DIV/0!"},0,0,0]
[27,"2011-04-27",null,null,"",null,"",null,null,"need data",0,"no data","no data","need data",0,"no data","no data","need data",null,null,null,null,null,null,{"$error":"#VALUE!"},"no data","no data",{"$f":"IF($J44=\"\",\" \",IF(RoundEven($J44-O44,0)>0,$J44-O44,\" \"))","v":{"$error":"#VALUE!"}},{"$f":"IF(P44=\"no data\",\"no data\",IF(P44=\"\",\" \",IF(RoundEven($J44-P44,0)>0,$J44-P44,\" \")))","v":"no data"},{"$f":"IF(Q44=\"no data\",\"no data\",IF(Q44=\"\",\" \",IF(RoundEven($J44-Q44,0)>0,$J44-Q44,\" \")))","v":"no data"},117,"need data","need data","need data",0,0,0,0,0,0,0,{"$error":"#DIV/0!"},0,0,0]
[28,"2011-04-28",null,null,"",null,"",null,null,"need data",0,"no data","no data","need data",0,"no data","no data","need data",null,null,null,null,null,null,{"$error":"#VALUE!"},"no data","no data",{"$f":"IF($J45=\"\",\" \",IF(RoundEven($J45-O45,0)>0,$J45-O45,\" \"))","v":{"$error":"#VALUE!"}},{"$f":"IF(P45=\"no data\",\"no data\",IF(P45=\"\",\" \",IF(RoundEven($J45-P45,0)>0,$J45-P45,\" \")))","v":"no data"},{"$f":"IF(Q45=\"no data\",\"no data\",IF(Q45=\"\",\" \",IF(RoundEven($J45-Q45,0)>0,$J45-Q45,\" \")))","v":"no data"},118,"need data","need data","need data",0,0,0,0,0,0,0,{"$error":"#DIV/0!"},0,0,0]
[29,"2011-04-29",null,null,"",null,"",null,null,"need data",0,"no data","no data","need data",0,"no data","no data","need data",null,null,null,null,null,null,{"$error":"#VALUE!"},"no data","no data",{"$f":"IF($J46=\"\",\" \",IF(RoundEven($J46-O46,0)>0,$J46-O46,\" \"))","v":{"$error":"#VALUE!"}},{"$f":"IF(P46=\"no data\",\"no data\",IF(P46=\"\",\" \",IF(RoundEven($J46-P46,0)>0,$J46-P46,\" \")))","v":"no data"},{"$f":"IF(Q46=\"no data\",\"no data\",IF(Q46=\"\",\" \",IF(RoundEven($J46-Q46,0)>0,$J46-Q46,\" \")))","v":"no data"},119,"need data","need data","need data",0,0,0,0,0,0,0,{"$error":"#DIV/0!"},0,0,0]
[30,"2011-04-30",null,null,"",null,"",null,null,"need data",0,"no data","no data","need data",0,"no data","no data","need data",null,null,null,null,null,null,{"$error":"#VALUE!"},"no data","no data",{"$f":"IF($J47=\"\",\" \",IF(RoundEven($J47-O47,0)>0,$J47-O47,\" \"))","v":{"$error":"#VALUE!"}},{"$f":"IF(P47=\"no data\",\"no data\",IF(P47=\"\",\" \",IF(RoundEven($J47-P47,0)>0,$J47-P47,\" \")))","v":"no data"},{"$f":"IF(Q47=\"no data\",\"no data\",IF(Q47=\"\",\" \",IF(RoundEven($J47-Q47,0)>0,$J47-Q47,\" \")))","v":"no data"},120,"need data","need data","need data",0,0,0,0,0,0,0,{"$error":"#DIV/0!"},0,0,0]
[null,null,null,null,null,null,null,{"$f":"IF(I48=\"\",\"\",IF(AD48*2.447*(AE48-AL48)*1.547<0,0,AD48*2.447*(AE48-AL48)*1.547))","v":""},null,null,null,{"$f":"IF(I48=\"\",\"\",IF(Y48<>\"no data\",Y48,IF(X48<>\"no data\",X48,W48)))","v":""},null,null,null,null,null,null,null,null,null,null,null,null,null,{"$f":"IF($H48=\"\",\" \",IF(RoundEven($H48-M48,0)>0,$H48-M48,\" \"))","v":" "},{"$f":"IF(N48=\"no data\",\"no data\",IF(N48=\"\",\" \",IF(RoundEven($H48-N48,0)>0,$H48-N48,\" \")))","v":" "}," "]

{"sheet":"May","index":2,"n_rows":48,"n_cols":45,"rows_kept":48,"cut":false,"hidden":false,"merged":[[5,23,5,24],[3,4,3,10],[9,4,10,5],[14,10,14,12],[4,2,4,10],[5,4,5,5],[5,6,5,7],[14,5,14,8],[14,2,14,4],[15,27,15,29],[15,10,15,12],[14,14,14,16],[15,14,15,16],[9,11,10,11],[15,24,15,26]]}
[]
[]
[]
[null,null,null,"Facility Name:",{"$f":"April!E4","v":"Enter Name Here"}]
[null,null,"Constants used to calculate Thermal Load Limits (TLL)"]
[null,null,null,null,"Start",null,"End",null,null,null,null,"Option 2","Option 1","TRC Loan",null,null,null,null,null,null,null,null,null,"Julian Dates"]
[null,null,null,null,"Month","Day","Month","Day","Trc","m","b","TRA_N","TLL","Factor",null,null,null,null,null,null,null,null,null,"Rearing/Mig","Spawning"]
[null,null,null,"Rearing & Migration",{"$f":"April!E8","v":5},{"$f":"April!F8","v":16},{"$f":"April!G8","v":10},{"$f":"April!H8","v":14},{"$f":"April!I8","v":0},{"$f":"April!J8","v":0},{"$f":"April!K8","v":0},{"$f":"April!L8","v":0},{"$f":"April!M8","v":0},{"$f":"April!N8","v":0},null,null,null,null,null,null,null,null,null,{"$f":"X9-DATEVALUE(\"1/1/\"&$B16)+1","v":136},{"$f":"Y9-DATEVALUE(\"1/1/\"&B16)+1","v":287},null,null,null,null,null,null,"Qe","Te","Qr"]
[null,null,null,"Spawning",null,null,null,null,{"$f":"April!I9","v":0},{"$f":"April!J9","v":0},{"$f":"April!K9","v":0},{"$f":"April!L9","v":0},{"$f":"April!M9","v":0},{"$f":"April!N9","v":0},null,null,null,null,null,null,null,null,null,{"$f":"DATE($B16,E8,F8)","v":"2011-05-16"},{"$f":"DATE($B16,G8,H8)","v":"2011-10-14"},null,null,null,null,null,null,{"$f":"IF(April!C42=\"\",\"\",April!C42)","v":""},{"$f":"IF(April!D42=\"\",\"\",April!D42)","v":""},{"$f":"IF(April!F42=\"\",\"\",April!F42)","v":""}]
[null,null,"TPS","QPS","NTP Coefficients",null,"Maximum",{"$f":"April!H10","v":0},{"$f":"April!I10","v":0},null,null,null,null,null,null,null,null,null,null,null,null,null,null,null,null,null,null,null,null,null,null,{"$f":"IF(April!C43=\"\",\"\",April!C43)","v":""},{"$f":"IF(April!D43=\"\",\"\",April!D43)","v":""},{"$f":"IF(April!F43=\"\",\"\",April!F43)","v":""}]
[null,null,{"$f":"April!C11","v":0},{"$f":"April!D11","v":0},null,null,"Average",{"$f":"April!H11","v":0},{"$f":"April!I11","v":0},null,null,null,null,null,null,null,null,null,null,null,null,null,null,null,null,null,null,null,null,null,"Last 6 days",{"$f":"IF(April!C44=\"\",\"\",April!C44)","v":""},{"$f":"IF(April!D44=\"\",\"\",April!D44)","v":""},{"$f":"IF(April!F44=\"\",\"\",April!F44)","v":""}]
[null,null,null,null,null,null,null,null,null,null,null,{"$f":"April!L12","v":"Version 1.1"},null,null,null,null,null,null,null,null,null,null,null,null,null,null,null,null,null,null,"in April",{"$f":"IF(April!C45=\"\",\"\",April!C45)","v":""},{"$f":"IF(April!D45=\"\",\"\",April!D45)","v":""},{"$f":"IF(April!F45=\"\",\"\",April!F45)","v":""}]
[null,null,null,null,null,null,null,null,null,null,null,null,null,null,null,null,null,null,null,null,null,null,null,null,null,null,null,null,null,null,null,{"$f":"IF(April!C46=\"\",\"\",April!C46)","v":""},{"$f":"IF(April!D46=\"\",\"\",April!D46)","v":""},{"$f":"IF(April!F46=\"\",\"\",April!F46)","v":""}]
[null,{"$f":"IF(B15=\"april\",4,IF(B15=\"may\",5,IF(B15=\"june\",6,IF(B15=\"july\",7,IF(B15=\"august\",8,IF(B15=\"september\",9,10))))))","v":5},null,null,null,null,null,null,null,null,null,null,null,null,null,null,null,null,null,null,null,null,null,null,null,null,null,null,null,null,null,{"$f":"IF(April!C47=\"\",\"\",April!C47)","v":""},{"$f":"IF(April!D47=\"\",\"\",April!D47)","v":""},{"$f":"IF(April!F47=\"\",\"\",April!F47)","v":""}]
[null,"May","Effluent",null,null,"Ambient",null,null,null,null,"Thermal Load Option",null,null,null,"Thermal Load Option"]
[null,{"$f":"April!B16","v":2011},"Flow","Max Temp","7-day Temp","Flow","7-day Flow","Avg Temp","Max Temp",null,"2006 TMDL Allocation",null,null,null,"With Temporary Loan",null,null,null,null,null,null,null,null,null,"Exceedances",null,null,"Exceedances with loan"]
[null,"Date","(mgd)","(deg C)","(deg C)","(cfs)","(cfs)","TRA","TRM","ETL","Option 1","Option 2","Option 3","Exceedance","Option 1","Option 2","Option 3","Exceedance","Comments",null,null,null,null,null,"Option 1","Option 2","Option 3","Option 1","Option 2","Option 3","Julian Day","Qe7 (cfs)","Te7","Qr7","TRA_N","TRA_N7","TRA_N'","TRM_N","TRM_N7","Trc","a","a'","m","b","d"]
[1,{"$f":"DATE(B$16,B$14,A18)","v":"2011-05-01"},null,null,{"$f":"IF(AG18=\"need data\",\"\",AG18)","v":""},null,{"$f":"IF(AH18=\"need data\",\"\",AH18)","v":""},null,null,{"$f":"IF(K18=\"\",\"\",IF(OR(AF18=\"need data\",AG18=\"need data\"),\"need data\",IF(AF18*2.447*(AG18-AN18)*1.547<0,0,AF18*2.447*(AG18-AN18)*1.547)))","v":"need data"},{"$f":"IF(OR(AND($AE18>=X$8,$AE18<X$8+6),AND($AE18>Y$8,$AE18<Y$8+7)),\"\",IF(AND($AE18>=X$8,$AE18<=Y$8),$M$8,$M$9))","v":0},{"$f":"IF(K18=\"\",\"\",IF(COUNT(April!F42:F47,May!F18)<>7,\"no data\",($AQ18*$AH18+$AR18-$AP18)*$D$11*2.447*($C$11-$AN18)))","v":"no data"},{"$f":"IF(K18=\"\",\"\",IF(OR(COUNT(April!F$42:F$47,May!F18)<>7,COUNT(April!H42:H47,May!H18)<>7,COUNT(April!I42:I47,May!I18)<>7),\"no data\",($AQ18*$AH18+$AR18-$AO18)*$D$11*2.447*($C$11-$AN18)))","v":"no data"},{"$f":"IF(K18=\"\",\"\",IF(J18=\"need data\",\"need data\",IF(AA18<>\"no data\",AA18,IF(Z18<>\"no data\",Z18,Y18))))","v":"need data"},{"$f":"IF($K18=\"\",\"\",IF($K18=$M$9,K18*$N$9,K18*$N$8))","v":0},{"$f":"IF($K18=\"\",\"\",IF(L18=\"no data\",\"no data\",IF($K18=$M$9,L18*$N$9,L18*$N$8)))","v":"no data"},{"$f":"IF($K18=\"\",\"\",IF(M18=\"no data\",\"no data\",IF($K18=$M$9,M18*$N$9,M18*$N$8)))","v":"no data"},{"$f":"IF(O18=\"\",\"\",IF(J18=\"need data\", \"need data\",IF(AD18<>\"no data\",AD18,IF(AC18<>\"no data\",AC18,AB18))))","v":"need data"},null,null,null,null,null,null,{"$f":"IF($J18=\"\",\" \",IF(RoundEven($J18-K18,0)>0,$J18-K18,\" \"))","v":{"$error":"#VALUE!"}},{"$f":"IF(L18=\"no data\",\"no data\",IF(L18=\"\",\" \",IF(RoundEven($J18-L18,0)>0,$J18-L18,\" \")))","v":"no data"},{"$f":"IF(M18=\"no data\",\"no data\",IF(M18=\"\",\" \",IF(RoundEven($J18-M18,0)>0,$J18-M18,\" \")))","v":"no data"},{"$f":"IF($J18=\"\",\" \",IF(RoundEven($J18-O18,0)>0,$J18-O18,\" \"))","v":{"$error":"#VALUE!"}},{"$f":"IF(P18=\"no data\",\"no data\",IF(P18=\"\",\" \",IF(RoundEven($J18-P18,0)>0,$J18-P18,\" \")))","v":"no data"},{"$f":"IF(Q18=\"no data\",\"no data\",IF(Q18=\"\",\" \",IF(RoundEven($J18-Q18,0)>0,$J18-Q18,\" \")))","v":"no data"},{"$f":"VALUE(TEXT((B18-DATEVALUE(\"1/1/\"&TEXT(B18,\"yy\"))+1),\"000\"))","v":121},{"$f":"IF(COUNT(AF9:AF14,C18)<>7,\"need data\",AVERAGE(AF9:AF14,C18))","v":"need data"},{"$f":"IF(COUNT(AG9:AG14,D18)<>7,\"need data\",AVERAGE(AG9:AG14,D18))","v":"need data"},{"$f":"IF(COUNT(AH9:AH14,F18)<>7,\"need data\",AVERAGE(AH9:AH14,F18))","v":"need data"},{"$f":"H$11*H18+I$11","v":0},{"$f":"AVERAGE(April!AI42:AI47,May!AI18)","v":0},{"$f":"IF(AND($AE18>=X$8,$AE18<=Y$8),$L$8,$L$9)","v":0},{"$f":"H$10*I18+I$10","v":0},{"$f":"AVERAGE(April!AL42:AL47,May!AL18)","v":0},{"$f":"IF(AND($AE18>=$X$8,$AE18<=$Y$8),$I$8,$I$9)","v":0},{"$f":"IF(OR(AM18<=AN18,AND(AM18>AN18,AJ18>=AN18)),0,(1-(AJ18/AN18)))","v":0},{"$f":"1-AK18/AN18","v":{"$error":"#DIV/0!"}},{"$f":"IF($AN18=13,J$9,J$8)","v":0},{"$f":"IF($AN18=13,K$9,K$8)","v":0},{"$f":"(AQ18*F18+AR18-AO18)","v":0}]
[2,"2011-05-02",null,null,{"$f":"IF(AG19=\"need data\",\"\",AG19)","v":""},null,{"$f":"IF(AH19=\"need data\",\"\",AH19)","v":""},null,null,{"$f":"IF(K19=\"\",\"\",IF(OR(AF19=\"need data\",AG19=\"need data\"),\"need data\",IF(AF19*2.447*(AG19-AN19)*1.547<0,0,AF19*2.447*(AG19-AN19)*1.547)))","v":"need data"},0,{"$f":"IF(K19=\"\",\"\",IF(COUNT(April!F43:F47,May!F18:F19)<>7,\"no data\",($AQ19*$AH19+$AR19-$AP19)*$D$11*2.447*($C$11-$AN19)))","v":"no data"},{"$f":"IF(K19=\"\",\"\",IF(OR(COUNT(April!F$43:F$47,May!F18:F19)<>7,COUNT(April!H$43:H$47,May!H18:H19)<>7,COUNT(April!I$43:I$47,May!I18:I19)<>7),\"no data\",($AQ19*$AH19+$AR19-$AO19)*$D$11*2.447*($C$11-$AN19)))","v":"no data"},"need data",0,"no data","no data",{"$f":"IF(O19=\"\",\"\",IF(J19=\"need data\", \"need data\",IF(AD19<>\"no data\",AD19,IF(AC19<>\"no data\",AC19,AB19))))","v":"need data"},null,null,null,null,null,null,{"$f":"IF($J19=\"\",\" \",IF(RoundEven($J19-K19,0)>0,$J19-K19,\" \"))","v":{"$error":"#VALUE!"}},{"$f":"IF(L19=\"no data\",\"no data\",IF(L19=\"\",\" \",IF(RoundEven($J19-L19,0)>0,$J19-L19,\" \")))","v":"no data"},{"$f":"IF(M19=\"no data\",\"no data\",IF(M19=\"\",\" \",IF(RoundEven($J19-M19,0)>0,$J19-M19,\" \")))","v":"no data"},{"$f":"IF($J19=\"\",\" \",IF(RoundEven($J19-O19,0)>0,$J19-O19,\" \"))","v":{"$error":"#VALUE!"}},{"$f":"IF(P19=\"no data\",\"no data\",IF(P19=\"\",\" \",IF(RoundEven($J19-P19,0)>0,$J19-P19,\" \")))","v":"no data"},{"$f":"IF(Q19=\"no data\",\"no data\",IF(Q19=\"\",\" \",IF(RoundEven($J19-Q19,0)>0,$J19-Q19,\" \")))","v":"no data"},122,{"$f":"IF(COUNT(AF10:AF14,C18:C19)<>7,\"need data\",AVERAGE(AF10:AF14,C18:C19))","v":"need data"},{"$f":"IF(COUNT(AG10:AG14,D18:D19)<>7,\"need data\",AVERAGE(AG10:AG14,D18:D19))","v":"need data"},{"$f":"IF(COUNT(AH10:AH14,F18:F19)<>7,\"need data\",AVERAGE(AH10:AH14,F18:F19))","v":"need data"},0,{"$f":"AVERAGE(April!AI43:AI47,May!AI18:AI19)","v":0},0,0,{"$f":"AVERAGE(April!AL43:AL47,May!AL18:AL19)","v":0},0,0,{"$error":"#DIV/0!"},0,0,0]
[3,"2011-05-03",null,null,"",null,"",null,null,"need data",0,{"$f":"IF(K20=\"\",\"\",IF(COUNT(April!F44:F47,May!F18:F20)<>7,\"no data\",($AQ20*$AH20+$AR20-$AP20)*$D$11*2.447*($C$11-$AN20)))","v":"no data"},{"$f":"IF(K20=\"\",\"\",IF(OR(COUNT(April!F44:F47,May!F18:F20)<>7,COUNT(April!H44:H47,May!H18:H20)<>7,COUNT(April!I44:I47,May!I18:I20)<>7),\"no data\",($AQ20*$AH20+$AR20-$AO20)*$D$11*2.447*($C$11-$AN20)))","v":"no data"},"need data",0,"no data","no data","need data",null,null,null,null,null,null,{"$error":"#VALUE!"},"no data","no data",{"$error":"#VALUE!"},"no data","no data",123,{"$f":"IF(COUNT(AF11:AF14,C18:C20)<>7,\"need data\",AVERAGE(AF11:AF14,C18:C20))","v":"need data"},{"$f":"IF(COUNT(AG11:AG14,D18:D20)<>7,\"need data\",AVERAGE(AG11:AG14,D18:D20))","v":"need data"},{"$f":"IF(COUNT(AH11:AH14,F18:F20)<>7,\"need data\",AVERAGE(AH11:AH14,F18:F20))","v":"need data"},0,{"$f":"AVERAGE(April!AI44:AI47,May!AI18:AI20)","v":0},0,0,{"$f":"AVERAGE(April!AL44:AL47,May!AL18:AL20)","v":0},0,0,{"$error":"#DIV/0!"},0,0,0]
[4,"2011-05-04",null,null,"",null,"",null,null,"need data",0,{"$f":"IF(K21=\"\",\"\",IF(COUNT(April!F45:F47,May!F18:F21)<>7,\"no data\",($AQ21*$AH21+$AR21-$AP21)*$D$11*2.447*($C$11-$AN21)))","v":"no data"},{"$f":"IF(K21=\"\",\"\",IF(OR(COUNT(April!F45:F47,May!F18:F21)<>7,COUNT(April!H45:H47,May!H18:H21)<>7,COUNT(April!I45:I47,May!I18:I21)<>7),\"no data\",($AQ21*$AH21+$AR21-$AO21)*$D$11*2.447*($C$11-$AN21)))","v":"no data"},"need data",0,"no data","no data","need data",null,null,null,null,null,null,{"$error":"#VALUE!"},"no data","no data",{"$error":"#VALUE!"},"no data","no data",124,{"$f":"IF(COUNT(AF12:AF14,C18:C21)<>7,\"need data\",AVERAGE(AF12:AF14,C18:C21))","v":"need data"},{"$f":"IF(COUNT(AG12:AG14,D18:D21)<>7,\"need data\",AVERAGE(AG12:AG14,D18:D21))","v":"need data"},{"$f":"IF(COUNT(AH12:AH14,F18:F21)<>7,\"need data\",AVERAGE(AH12:AH14,F18:F21))","v":"need data"},0,{"$f":"AVERAGE(April!AI45:AI47,May!AI18:AI21)","v":0},0,0,{"$f":"AVERAGE(April!AL45:AL47,May!AL18:AL21)","v":0},0,0,{"$error":"#DIV/0!"},0,0,0]
[5,"2011-05-05",null,null,"",null,"",null,null,"need data",0,{"$f":"IF(K22=\"\",\"\",IF(COUNT(April!F46:F47,May!F18:F22)<>7,\"no data\",($AQ22*$AH22+$AR22-$AP22)*$D$11*2.447*($C$11-$AN22)))","v":"no data"},{"$f":"IF(K22=\"\",\"\",IF(OR(COUNT(April!F46:F47,May!F18:F22)<>7,COUNT(April!H46:H47,May!H18:H22)<>7,COUNT(April!I46:I47,May!I18:I22)<>7),\"no data\",($AQ22*$AH22+$AR22-$AO22)*$D$11*2.447*($C$11-$AN22)))","v":"no data"},"need data",0,"no data","no data","need data",null,null,null,null,null,null,{"$error":"#VALUE!"},"no data","no data",{"$error":"#VALUE!"},"no data","no data",125,{"$f":"IF(COUNT(AF13:AF14,C18:C22)<>7,\"need data\",AVERAGE(AF13:AF14,C18:C22))","v":"need data"},{"$f":"IF(COUNT(AG13:AG14,D18:D22)<>7,\"need data\",AVERAGE(AG13:AG14,D18:D22))","v":"need data"},{"$f":"IF(COUNT(AH13:AH14,F18:F22)<>7,\"need data\",AVERAGE(AH13:AH14,F18:F22))","v":"need data"},0,{"$f":"AVERAGE(April!AI46:AI47,May!AI18:AI22)","v":0},0,0,{"$f":"AVERAGE(April!AL46:AL47,May!AL18:AL22)","v":0},0,0,{"$error":"#DIV/0!"},0,0,0]
[6,"2011-05-06",null,null,"",null,"",null,null,"need data",0,{"$f":"IF(K23=\"\",\"\",IF(COUNT(April!F47:F47,May!F18:F23)<>7,\"no data\",($AQ23*$AH23+$AR23-$AP23)*$D$11*2.447*($C$11-$AN23)))","v":"no data"},{"$f":"IF(K23=\"\",\"\",IF(OR(COUNT(April!F47:F47,May!F18:F23)<>7,COUNT(April!H47:H47,May!H18:H23)<>7,COUNT(April!I47:I47,May!I18:I23)<>7),\"no data\",($AQ23*$AH23+$AR23-$AO23)*$D$11*2.447*($C$11-$AN23)))","v":"no data"},"need data",0,"no data","no data","need data",null,null,null,null,null,null,{"$error":"#VALUE!"},"no data","no data",{"$error":"#VALUE!"},"no data","no data",126,{"$f":"IF(COUNT(AF14,C18:C23)<>7,\"need data\",AVERAGE(AF14,C18:C23))","v":"need data"},{"$f":"IF(COUNT(AG14,D18:D23)<>7,\"need data\",AVERAGE(AG14,D18:D23))","v":"need data"},{"$f":"IF(COUNT(AH14,F18:F23)<>7,\"need data\",AVERAGE(AH14,F18:F23))","v":"need data"},0,{"$f":"AVERAGE(April!AI47:AI47,May!AI18:AI23)","v":0},0,0,{"$f":"AVERAGE(April!AL47:AL47,May!AL18:AL23)","v":0},0,0,{"$error":"#DIV/0!"},0,0,0]
[7,"2011-05-07",null,null,"",null,"",null,null,"need data",0,{"$f":"IF(K24=\"\",\"\",IF(COUNT(F18:F24)<>7,\"no data\",($AQ24*$AH24+$AR24-$AP24)*$D$11*2.447*($C$11-$AN24)))","v":"no data"},{"$f":"IF(K24=\"\",\"\",IF(OR(COUNT(F18:F24)<>7,COUNT(H18:H24)<>7,COUNT(I18:I24)<>7),\"no data\",($AQ24*$AH24+$AR24-$AO24)*$D$11*2.447*($C$11-$AN24)))","v":"no data"},"need data",0,"no data","no data","need data",null,null,null,null,null,null,{"$error":"#VALUE!"},"no data","no data",{"$error":"#VALUE!"},"no data","no data",127,{"$f":"IF(COUNT(C18:C24)<>7,\"need data\",AVERAGE(C18:C24))","v":"need data"},{"$f":"IF(COUNT(D18:D24)<>7,\"need data\",AVERAGE(D18:D24))","v":"need data"},{"$f":"IF(COUNT(F18:F24)<>7,\"need data\",AVERAGE(F18:F24))","v":"need data"},0,{"$f":"AVERAGE(AI18:AI24)","v":0},0,0,{"$f":"AVERAGE(AL18:AL24)","v":0},0,0,{"$error":"#DIV/0!"},0,0,0]
[8,"2011-05-08",null,null,"",null,"",null,null,"need data",0,"no data","no data",{"$f":"IF(K25=\"\",\"\",IF(J25=\"need data\",\"need data\",IF(AA25<>\"no data\",AA25,IF(Z25<>\"no data\",Z25,Y25))))","v":"need data"},0,"no data","no data","need data",null,null,null,null,null,null,{"$error":"#VALUE!"},"no data","no data",{"$error":"#VALUE!"},"no data","no data",128,"need data","need data","need data",0,0,0,0,0,0,0,{"$error":"#DIV/0!"},0,0,0]
[9,"2011-05-09",null,null,"",null,"",null,null,"need data",0,"no data","no data",{"$f":"IF(K26=\"\",\"\",IF(J26=\"need data\",\"need data\",IF(AA26<>\"no data\",AA26,IF(Z26<>\"no data\",Z26,Y26))))","v":"need data"},0,"no data","no data","need data",null,null,null,null,null,null,{"$error":"#VALUE!"},"no data","no data",{"$error":"#VALUE!"},"no data","no data",129,"need data","need data","need data",0,0,0,0,0,0,0,{"$error":"#DIV/0!"},0,0,0]
[10,"2011-05-10",null,null,"",null,"",null,null,"need data",0,"no data","no data","need data",0,"no data","no data","need data",null,null,null,null,null,null,{"$error":"#VALUE!"},"no data","no data",{"$error":"#VALUE!"},"no data","no data",130,"need data","need data","need data",0,0,0,0,0,0,0,{"$error":"#DIV/0!"},0,0,0]
[11,"2011-05-11",null,null,"",null,"",null,null,"need data",0,"no data","no data","need data",0,"no data","no data","need data",null,null,null,null,null,null,{"$error":"#VALUE!"},"no data","no data",{"$error":"#VALUE!"},"no data","no data",131,"need data","need data","need data",0,0,0,0,0,0,0,{"$error":"#DIV/0!"},0,0,0]
[12,"2011-05-12",null,null,"",null,"",null,null,"need data",0,"no data","no data","need data",0,"no data","no data","need data",null,null,null,null,null,null,{"$error":"#VALUE!"},"no data","no data",{"$error":"#VALUE!"},"no data","no data",132,"need data","need data","need data",0,0,0,0,0,0,0,{"$error":"#DIV/0!"},0,0,0]
[13,"2011-05-13",null,null,"",null,"",null,null,"need data",0,"no data","no data","need data",0,"no data","no data","need data",null,null,null,null,null,null,{"$error":"#VALUE!"},"no data","no data",{"$error":"#VALUE!"},"no data","no data",133,"need data","need data","need data",0,0,0,0,0,0,0,{"$error":"#DIV/0!"},0,0,0]
[14,"2011-05-14",null,null,"",null,"",null,null,"need data",0,"no data","no data","need data",0,"no data","no data","need data",null,null,null,null,null,null,{"$error":"#VALUE!"},"no data","no data",{"$error":"#VALUE!"},"no data","no data",134,"need data","need data","need data",0,0,0,0,0,0,0,{"$error":"#DIV/0!"},0,0,0]
[15,"2011-05-15",null,null,"",null,"",null,null,"need data",0,"no data","no data","need data",0,"no data","no data","need data",null,null,null,null,null,null,{"$error":"#VALUE!"},"no data","no data",{"$error":"#VALUE!"},"no data","no data",135,"need data","need data","need data",0,0,0,0,0,0,0,{"$error":"#DIV/0!"},0,0,0]
[16,"2011-05-16",null,null,"",null,"",null,null,"","","","","","","","","",null,null,null,null,null,null," "," "," "," "," "," ",136,"need data","need data","need data",0,0,0,0,0,0,0,{"$error":"#DIV/0!"},0,0,0]
[17,"2011-05-17",null,null,"",null,"",null,null,"","","","","","","","","",null,null,null,null,null,null," "," "," "," "," "," ",137,"need data","need data","need data",0,0,0,0,0,0,0,{"$error":"#DIV/0!"},0,0,0]
[18,"2011-05-18",null,null,"",null,"",null,null,"","","","","","","","","",null,null,null,null,null,null," "," "," "," "," "," ",138,"need data","need data","need data",0,0,0,0,0,0,0,{"$error":"#DIV/0!"},0,0,0]
[19,"2011-05-19",null,null,"",null,"",null,null,"","","","","","","","","",null,null,null,null,null,null," "," "," "," "," "," ",139,"need data","need data","need data",0,0,0,0,0,0,0,{"$error":"#DIV/0!"},0,0,0]
[20,"2011-05-20",null,null,"",null,"",null,null,"","","","","","","","","",null,null,null,null,null,null," "," "," "," "," "," ",140,"need data","need data","need data",0,0,0,0,0,0,0,{"$error":"#DIV/0!"},0,0,0]
[21,"2011-05-21",null,null,"",null,"",null,null,"","","","","","","","","",null,null,null,null,null,null,{"$f":"IF($J38=\"\",\" \",IF(RoundEven($J38-K38,0)>0,$J38-K38,\" \"))","v":" "}," "," "," "," "," ",141,"need data","need data","need data",0,0,0,0,0,0,0,{"$error":"#DIV/0!"},0,0,0]
[22,"2011-05-22",null,null,"",null,"",null,null,"need data",0,"no data","no data","need data",0,"no data","no data","need data",null,null,null,null,null,null,{"$error":"#VALUE!"},"no data","no data",{"$error":"#VALUE!"},"no data","no data",142,"need data","need data","need data",0,0,0,0,0,0,0,{"$error":"#DIV/0!"},0,0,0]
[23,"2011-05-23",null,null,"",null,"",null,null,"need data",0,"no data","no data","need data",0,"no data","no data","need data",null,null,null,null,null,null,{"$error":"#VALUE!"},"no data","no data",{"$error":"#VALUE!"},"no data","no data",143,"need data","need data",{"$f":"IF(COUNT(F34:F40)<>7,\"need data\",AVERAGE(F34:F40))","v":"need data"},0,0,0,0,0,0,0,{"$error":"#DIV/0!"},0,0,0]
[24,"2011-05-24",null,null,"",null,"",null,null,"need data",0,"no data","no data",{"$f":"IF(K41=\"\",\"\",IF(J41=\"need data\",\"need data\",IF(AA41<>\"no data\",AA41,IF(Z41<>\"no data\",Z41,Y41))))","v":"need data"},0,"no data","no data","need data",null,null,null,null,null,null,{"$error":"#VALUE!"},"no data","no data",{"$error":"#VALUE!"},"no data","no data",144,"need data","need data",{"$f":"IF(COUNT(F35:F41)<>7,\"need data\",AVERAGE(F35:F41))","v":"need data"},0,0,0,0,0,0,0,{"$error":"#DIV/0!"},0,0,0]
[25,"2011-05-25",null,null,"",null,"",null,null,"need data",0,"no data","no data","need data",0,"no data","no data","need data",null,null,null,null,null,null,{"$error":"#VALUE!"},"no data","no data",{"$error":"#VALUE!"},"no data","no data",145,"need data","need data","need data",0,0,0,0,0,0,0,{"$error":"#DIV/0!"},0,0,0]
[26,"2011-05-26",null,null,"",null,"",null,null,"need data",0,"no data","no data","need data",0,"no data","no data","need data",null,null,null,null,null,null,{"$error":"#VALUE!"},"no data","no data",{"$error":"#VALUE!"},"no data","no data",146,"need data","need data","need data",0,0,0,0,0,0,0,{"$error":"#DIV/0!"},0,0,0]
[27,"2011-05-27",null,null,"",null,"",null,null,"need data",0,"no data","no data","need data",0,"no data","no data","need data",null,null,null,null,null,null,{"$error":"#VALUE!"},"no data","no data",{"$error":"#VALUE!"},"no data","no data",147,"need data","need data","need data",0,0,0,0,0,0,0,{"$error":"#DIV/0!"},0,0,0]
[28,"2011-05-28",null,null,"",null,"",null,null,"need data",0,"no data","no data","need data",0,"no data","no data","need data",null,null,null,null,null,null,{"$error":"#VALUE!"},"no data","no data",{"$error":"#VALUE!"},"no data","no data",148,"need data","need data","need data",0,0,0,0,0,0,0,{"$error":"#DIV/0!"},0,0,0]
[29,"2011-05-29",null,null,"",null,"",null,null,"need data",0,"no data","no data","need data",0,"no data","no data","need data",null,null,null,null,null,null,{"$error":"#VALUE!"},"no data","no data",{"$error":"#VALUE!"},"no data","no data",149,"need data","need data","need data",0,0,0,0,0,0,0,{"$error":"#DIV/0!"},0,0,0]
[30,"2011-05-30",null,null,"",null,"",null,null,"need data",0,"no data","no data","need data",0,"no data","no data","need data",null,null,null,null,null,null,{"$error":"#VALUE!"},"no data","no data",{"$error":"#VALUE!"},"no data","no data",150,"need data","need data","need data",0,0,0,0,0,0,0,{"$error":"#DIV/0!"},0,0,0]
[31,"2011-05-31",null,null,"",null,"",null,null,"need data",0,"no data","no data","need data",0,"no data","no data","need data",null,null,null,null,null,null,{"$error":"#VALUE!"},"no data","no data",{"$error":"#VALUE!"},"no data","no data",{"$f":"VALUE(TEXT((B48-DATEVALUE(\"1/1/\"&TEXT(B48,\"yy\"))+1),\"000\"))","v":151},{"$f":"IF(COUNT(C42:C48)<>7,\"need data\",AVERAGE(C42:C48))","v":"need data"},{"$f":"IF(COUNT(D42:D48)<>7,\"need data\",AVERAGE(D42:D48))","v":"need data"},{"$f":"IF(COUNT(F42:F48)<>7,\"need data\",AVERAGE(F42:F48))","v":"need data"},0,0,0,0,0,0,{"$f":"IF(OR(AM48<=AN48,AND(AM48>AN48,AJ48>=AN48)),0,(1-(AJ48/AN48)))","v":0},{"$f":"1-AK48/AN48","v":{"$error":"#DIV/0!"}},0,0,0]

{"sheet":"June","index":3,"n_rows":48,"n_cols":45,"rows_kept":48,"cut":false,"hidden":false,"merged":[[15,27,15,29],[14,14,14,16],[15,14,15,16],[9,11,10,11],[3,4,3,10],[9,4,10,5],[15,10,15,12],[4,2,4,10],[5,4,5,5],[5,6,5,7],[5,23,5,24],[14,2,14,4],[14,5,14,8]]}
[]
[]
[]
[null,null,null,"Facility Name:",{"$f":"April!E4","v":"Enter Name Here"}]
[null,null,"Constants used to calculate Thermal Load Limits (TLL)"]
[null,null,null,null,"Start",null,"End",null,null,null,null,"Option 2","Option 1","TRC Loan",null,null,null,null,null,null,null,null,null,"Julian Dates"]
[null,null,null,null,"Month","Day","Month","Day","Trc","m","b","TRA_N","TLL","Factor",null,null,null,null,null,null,null,null,null,"Rearing/Mig","Spawning"]
[null,null,null,"Rearing & Migration",{"$f":"April!E8","v":5},{"$f":"April!F8","v":16},{"$f":"April!G8","v":10},{"$f":"April!H8","v":14},{"$f":"April!I8","v":0},{"$f":"April!J8","v":0},{"$f":"April!K8","v":0},{"$f":"April!L8","v":0},{"$f":"April!M8","v":0},{"$f":"April!N8","v":0},null,null,null,null,null,null,null,null,null,{"$f":"X9-DATEVALUE(\"1/1/\"&$B16)+1","v":136},{"$f":"Y9-DATEVALUE(\"1/1/\"&B16)+1","v":287},null,null,null,null,null,null,"Qe","Te","Qr"]
[null,null,null,"Spawning",null,null,null,null,{"$f":"April!I9","v":0},{"$f":"April!J9","v":0},{"$f":"April!K9","v":0},{"$f":"April!L9","v":0},{"$f":"April!M9","v":0},{"$f":"April!N9","v":0},null,null,null,null,null,null,null,null,null,{"$f":"DATE($B16,E8,F8)","v":"2011-05-16"},{"$f":"DATE($B16,G8,H8)","v":"2011-10-14"},null,null,null,null,null,null,{"$f":"IF(May!C43=\"\",\"\",May!C43)","v":""},{"$f":"IF(May!D43=\"\",\"\",May!D43)","v":""},{"$f":"IF(May!F43=\"\",\"\",May!F43)","v":""}]
[null,null,"TPS","QPS","NTP Coefficients",null,"Maximum",{"$f":"April!H10","v":0},{"$f":"April!I10","v":0},null,null,null,null,null,null,null,null,null,null,null,null,null,null,null,null,null,null,null,null,null,null,{"$f":"IF(May!C44=\"\",\"\",May!C44)","v":""},{"$f":"IF(May!D44=\"\",\"\",May!D44)","v":""},{"$f":"IF(May!F44=\"\",\"\",May!F44)","v":""}]
[null,null,{"$f":"April!C11","v":0},{"$f":"April!D11","v":0},null,null,"Average",{"$f":"April!H11","v":0},{"$f":"April!I11","v":0},null,null,null,null,null,null,null,null,null,null,null,null,null,null,null,null,null,null,null,null,null,"Last 6 days",{"$f":"IF(May!C45=\"\",\"\",May!C45)","v":""},{"$f":"IF(May!D45=\"\",\"\",May!D45)","v":""},{"$f":"IF(May!F45=\"\",\"\",May!F45)","v":""}]
[null,null,null,null,null,null,null,null,null,null,null,{"$f":"April!L12","v":"Version 1.1"},null,null,null,null,null,null,null,null,null,null,null,null,null,null,null,null,null,null,"in May",{"$f":"IF(May!C46=\"\",\"\",May!C46)","v":""},{"$f":"IF(May!D46=\"\",\"\",May!D46)","v":""},{"$f":"IF(May!F46=\"\",\"\",May!F46)","v":""}]
[null,null,null,null,null,null,null,null,null,null,null,null,null,null,null,null,null,null,null,null,null,null,null,null,null,null,null,null,null,null,null,{"$f":"IF(May!C47=\"\",\"\",May!C47)","v":""},{"$f":"IF(May!D47=\"\",\"\",May!D47)","v":""},{"$f":"IF(May!F47=\"\",\"\",May!F47)","v":""}]
[null,{"$f":"IF(B15=\"april\",4,IF(B15=\"may\",5,IF(B15=\"june\",6,IF(B15=\"july\",7,IF(B15=\"august\",8,IF(B15=\"september\",9,10))))))","v":6},null,null,null,null,null,null,null,null,null,null,null,null,null,null,null,null,null,null,null,null,null,null,null,null,null,null,null,null,null,{"$f":"IF(May!C48=\"\",\"\",May!C48)","v":""},{"$f":"IF(May!D48=\"\",\"\",May!D48)","v":""},{"$f":"IF(May!F48=\"\",\"\",May!F48)","v":""}]
[null,"June","Effluent",null,null,"Ambient",null,null,null,null,null,null,null,null,"Thermal Load Option"]
[null,{"$f":"April!B16","v":2011},"Flow","Max Temp","7-day Temp","Flow","7-day Flow","Avg Temp","Max Temp",null,"Thermal Load Option",null,null,null,"With Temporary Loan",null,null,null,null,null,null,null,null,null,"Exceedances",null,null,"Exceedances with loan"]
[null,"Date","(mgd)","(deg C)","(deg C)","(cfs)","(cfs)","TRA","TRM","ETL","Option 1","Option 2","Option 3","Exceedance","Option 1","Option 2","Option 3","Exceedance","Comments",null,null,null,null,null,"Option 1","Option 2","Option 3","Option 1","Option 2","Option 3","Julian Day","Qe7 (cfs)","Te7","Qr7","TRA_N","TRA_N7","TRA_N'","TRM_N","TRM_N7","Trc","a","a'","m","b","d"]
[1,{"$f":"DATE(B$16,B$14,A18)","v":"2011-06-01"},null,null,{"$f":"IF(AG18=\"need data\",\"\",AG18)","v":""},null,{"$f":"IF(AH18=\"need data\",\"\",AH18)","v":""},null,null,{"$f":"IF(K18=\"\",\"\",IF(OR(AF18=\"need data\",AG18=\"need data\"),\"need data\",IF(AF18*2.447*(AG18-AN18)*1.547<0,0,AF18*2.447*(AG18-AN18)*1.547)))","v":"need data"},{"$f":"IF(OR(AND($AE18>=X$8,$AE18<X$8+6),AND($AE18>Y$8,$AE18<Y$8+7)),\"\",IF(AND($AE18>=X$8,$AE18<=Y$8),$M$8,$M$9))","v":0},{"$f":"IF(K18=\"\",\"\",IF(COUNT(May!F43:F48,June!F18)<>7,\"no data\",($AQ18*$AH18+$AR18-$AP18)*$D$11*2.447*($C$11-$AN18)))","v":"no data"},{"$f":"IF(K18=\"\",\"\",IF(OR(COUNT(May!F$42:F$47,June!F18)<>7,COUNT(May!H42:H47,June!H18)<>7,COUNT(May!I42:I47,June!I18)<>7),\"no data\",($AQ18*$AH18+$AR18-$AO18)*$D$11*2.447*($C$11-$AN18)))","v":"no data"},{"$f":"IF(K18=\"\",\"\",IF(J18=\"need data\",\"need data\",IF(AA18<>\"no data\",AA18,IF(Z18<>\"no data\",Z18,Y18))))","v":"need data"},{"$f":"IF($K18=\"\",\"\",IF($K18=$M$9,K18*$N$9,K18*$N$8))","v":0},{"$f":"IF($K18=\"\",\"\",IF(L18=\"no data\",\"no data\",IF($K18=$M$9,L18*$N$9,L18*$N$8)))","v":"no data"},{"$f":"IF($K18=\"\",\"\",IF(M18=\"no data\",\"no data\",IF($K18=$M$9,M18*$N$9,M18*$N$8)))","v":"no data"},{"$f":"IF(O18=\"\",\"\",IF(J18=\"need data\",\"need data\",IF(AD18<>\"no data\",AD18,IF(AC18<>\"no data\",AC18,AB18))))","v":"need data"},null,null,null,null,null,null,{"$f":"IF(J18=\"\",\" \",IF(RoundEven($J18-K18,0)>0,$J18-K18,\" \"))","v":{"$error":"#VALUE!"}},{"$f":"IF(L18=\"no data\",\"no data\",IF(L18=\"\",\" \",IF(RoundEven($J18-L18,0)>0,$J18-L18,\" \")))","v":"no data"},{"$f":"IF(M18=\"no data\",\"no data\",IF(M18=\"\",\" \",IF(RoundEven($J18-M18,0)>0,$J18-M18,\" \")))","v":"no data"},{"$f":"IF($J18=\"\",\" \",IF(RoundEven($J18-O18,0)>0,$J18-O18,\" \"))","v":{"$error":"#VALUE!"}},{"$f":"IF(P18=\"no data\",\"no data\",IF(P18=\"\",\" \",IF(RoundEven($J18-P18,0)>0,$J18-P18,\" \")))","v":"no data"},{"$f":"IF(Q18=\"no data\",\"no data\",IF(Q18=\"\",\" \",IF(RoundEven($J18-Q18,0)>0,$J18-Q18,\" \")))","v":"no data"},{"$f":"VALUE(TEXT((B18-DATEVALUE(\"1/1/\"&TEXT(B18,\"yy\"))+1),\"000\"))","v":152},{"$f":"IF(COUNT(AF9:AF14,C18)<>7,\"need data\",AVERAGE(AF9:AF14,C18))","v":"need data"},{"$f":"IF(COUNT(AG9:AG14,D18)<>7,\"need data\",AVERAGE(AG9:AG14,D18))","v":"need data"},{"$f":"IF(COUNT(AH9:AH14,F18)<>7,\"need data\",AVERAGE(AH9:AH14,F18))","v":"need data"},{"$f":"H$11*H18+I$11","v":0},{"$f":"AVERAGE(May!AI43:AI48,June!AI18)","v":0},{"$f":"IF(AND($AE18>=X$8,$AE18<=Y$8),$L$8,$L$9)","v":0},{"$f":"H$10*I18+I$10","v":0},{"$f":"AVERAGE(May!AL43:AL48,June!AL18)","v":0},{"$f":"IF(AND($AE18>=$X$8,$AE18<=$Y$8),$I$8,$I$9)","v":0},{"$f":"IF(OR(AM18<=AN18,AND(AM18>AN18,AJ18>=AN18)),0,(1-(AJ18/AN18)))","v":0},{"$f":"1-AK18/AN18","v":{"$error":"#DIV/0!"}},{"$f":"IF($AN18=13,J$9,J$8)","v":0},{"$f":"IF($AN18=13,K$9,K$8)","v":0},{"$f":"(AQ18*F18+AR18-AO18)","v":0}]
[2,"2011-06-02",null,null,{"$f":"IF(AG19=\"need data\",\"\",AG19)","v":""},null,{"$f":"IF(AH19=\"need data\",\"\",AH19)","v":""},null,null,{"$f":"IF(K19=\"\",\"\",IF(OR(AF19=\"need data\",AG19=\"need data\"),\"need data\",IF(AF19*2.447*(AG19-AN19)*1.547<0,0,AF19*2.447*(AG19-AN19)*1.547)))","v":"need data"},0,{"$f":"IF(K19=\"\",\"\",IF(COUNT(May!F44:F48,June!F18:F19)<>7,\"no data\",($AQ19*$AH19+$AR19-$AP19)*$D$11*2.447*($C$11-$AN19)))","v":"no data"},{"$f":"IF(K19=\"\",\"\",IF(OR(COUNT(May!F$43:F$47,June!F18:F19)<>7,COUNT(May!H$43:H$47,June!H18:H19)<>7,COUNT(May!I$43:I$47,June!I18:I19)<>7),\"no data\",($AQ19*$AH19+$AR19-$AO19)*$D$11*2.447*($C$11-$AN19)))","v":"no data"},"need data",0,"no data","no data",{"$f":"IF(O19=\"\",\"\",IF(J19=\"need data\",\"need data\",IF(AD19<>\"no data\",AD19,IF(AC19<>\"no data\",AC19,AB19))))","v":"need data"},null,null,null,null,null,null,{"$f":"IF(J19=\"\",\" \",IF(RoundEven($J19-K19,0)>0,$J19-K19,\" \"))","v":{"$error":"#VALUE!"}},{"$f":"IF(L19=\"no data\",\"no data\",IF(L19=\"\",\" \",IF(RoundEven($J19-L19,0)>0,$J19-L19,\" \")))","v":"no data"},{"$f":"IF(M19=\"no data\",\"no data\",IF(M19=\"\",\" \",IF(RoundEven($J19-M19,0)>0,$J19-M19,\" \")))","v":"no data"},{"$f":"IF($J19=\"\",\" \",IF(RoundEven($J19-O19,0)>0,$J19-O19,\" \"))","v":{"$error":"#VALUE!"}},{"$f":"IF(P19=\"no data\",\"no data\",IF(P19=\"\",\" \",IF(RoundEven($J19-P19,0)>0,$J19-P19,\" \")))","v":"no data"},"no data",153,{"$f":"IF(COUNT(AF10:AF14,C18:C19)<>7,\"need data\",AVERAGE(AF10:AF14,C18:C19))","v":"need data"},{"$f":"IF(COUNT(AG10:AG14,D18:D19)<>7,\"need data\",AVERAGE(AG10:AG14,D18:D19))","v":"need data"},{"$f":"IF(COUNT(AH10:AH14,F18:F19)<>7,\"need data\",AVERAGE(AH10:AH14,F18:F19))","v":"need data"},0,{"$f":"AVERAGE(May!AI44:AI48,June!AI18:AI19)","v":0},0,0,{"$f":"AVERAGE(May!AL44:AL48,June!AL18:AL19)","v":0},0,0,{"$error":"#DIV/0!"},0,0,0]
[3,"2011-06-03",null,null,"",null,"",null,null,"need data",0,{"$f":"IF(K20=\"\",\"\",IF(COUNT(May!F45:F48,June!F18:F20)<>7,\"no data\",($AQ20*$AH20+$AR20-$AP20)*$D$11*2.447*($C$11-$AN20)))","v":"no data"},{"$f":"IF(K20=\"\",\"\",IF(OR(COUNT(May!F44:F47,June!F18:F20)<>7,COUNT(May!H44:H47,June!H18:H20)<>7,COUNT(May!I44:I47,June!I18:I20)<>7),\"no data\",($AQ20*$AH20+$AR20-$AO20)*$D$11*2.447*($C$11-$AN20)))","v":"no data"},"need data",0,"no data","no data","need data",null,null,null,null,null,null,{"$error":"#VALUE!"},"no data","no data",{"$error":"#VALUE!"},"no data","no data",154,{"$f":"IF(COUNT(AF11:AF14,C18:C20)<>7,\"need data\",AVERAGE(AF11:AF14,C18:C20))","v":"need data"},{"$f":"IF(COUNT(AG11:AG14,D18:D20)<>7,\"need data\",AVERAGE(AG11:AG14,D18:D20))","v":"need data"},{"$f":"IF(COUNT(AH11:AH14,F18:F20)<>7,\"need data\",AVERAGE(AH11:AH14,F18:F20))","v":"need data"},0,{"$f":"AVERAGE(May!AI45:AI48,June!AI18:AI20)","v":0},0,0,{"$f":"AVERAGE(May!AL45:AL48,June!AL18:AL20)","v":0},0,0,{"$error":"#DIV/0!"},0,0,0]
[4,"2011-06-04",null,null,"",null,"",null,null,"need data",0,{"$f":"IF(K21=\"\",\"\",IF(COUNT(May!F46:F48,June!F18:F21)<>7,\"no data\",($AQ21*$AH21+$AR21-$AP21)*$D$11*2.447*($C$11-$AN21)))","v":"no data"},{"$f":"IF(K21=\"\",\"\",IF(OR(COUNT(May!F45:F47,June!F18:F21)<>7,COUNT(May!H45:H47,June!H18:H21)<>7,COUNT(May!I45:I47,June!I18:I21)<>7),\"no data\",($AQ21*$AH21+$AR21-$AO21)*$D$11*2.447*($C$11-$AN21)))","v":"no data"},"need data",0,"no data","no data","need data",null,null,null,null,null,null,{"$error":"#VALUE!"},"no data","no data",{"$error":"#VALUE!"},"no data","no data",155,{"$f":"IF(COUNT(AF12:AF14,C18:C21)<>7,\"need data\",AVERAGE(AF12:AF14,C18:C21))","v":"need data"},{"$f":"IF(COUNT(AG12:AG14,D18:D21)<>7,\"need data\",AVERAGE(AG12:AG14,D18:D21))","v":"need data"},{"$f":"IF(COUNT(AH12:AH14,F18:F21)<>7,\"need data\",AVERAGE(AH12:AH14,F18:F21))","v":"need data"},0,{"$f":"AVERAGE(May!AI46:AI48,June!AI18:AI21)","v":0},0,0,{"$f":"AVERAGE(May!AL46:AL48,June!AL18:AL21)","v":0},0,0,{"$error":"#DIV/0!"},0,0,0]
[5,"2011-06-05",null,null,"",null,"",null,null,"need data",0,{"$f":"IF(K22=\"\",\"\",IF(COUNT(May!F47:F48,June!F18:F22)<>7,\"no data\",($AQ22*$AH22+$AR22-$AP22)*$D$11*2.447*($C$11-$AN22)))","v":"no data"},{"$f":"IF(K22=\"\",\"\",IF(OR(COUNT(May!F46:F47,June!F18:F22)<>7,COUNT(May!H46:H47,June!H18:H22)<>7,COUNT(May!I46:I47,June!I18:I22)<>7),\"no data\",($AQ22*$AH22+$AR22-$AO22)*$D$11*2.447*($C$11-$AN22)))","v":"no data"},"need data",0,"no data","no data","need data",null,null,null,null,null,null,{"$error":"#VALUE!"},"no data","no data",{"$error":"#VALUE!"},"no data","no data",156,{"$f":"IF(COUNT(AF13:AF14,C18:C22)<>7,\"need data\",AVERAGE(AF13:AF14,C18:C22))","v":"need data"},{"$f":"IF(COUNT(AG13:AG14,D18:D22)<>7,\"need data\",AVERAGE(AG13:AG14,D18:D22))","v":"need data"},{"$f":"IF(COUNT(AH13:AH14,F18:F22)<>7,\"need data\",AVERAGE(AH13:AH14,F18:F22))","v":"need data"},0,{"$f":"AVERAGE(May!AI47:AI48,June!AI18:AI22)","v":0},0,0,{"$f":"AVERAGE(May!AL47:AL48,June!AL18:AL22)","v":0},0,0,{"$error":"#DIV/0!"},0,0,0]
[6,"2011-06-06",null,null,"",null,"",null,null,"need data",0,{"$f":"IF(K23=\"\",\"\",IF(COUNT(May!F48:F48,June!F18:F23)<>7,\"no data\",($AQ23*$AH23+$AR23-$AP23)*$D$11*2.447*($C$11-$AN23)))","v":"no data"},{"$f":"IF(K23=\"\",\"\",IF(OR(COUNT(May!F47:F47,June!F18:F23)<>7,COUNT(May!H47:H47,June!H18:H23)<>7,COUNT(May!I47:I47,June!I18:I23)<>7),\"no data\",($AQ23*$AH23+$AR23-$AO23)*$D$11*2.447*($C$11-$AN23)))","v":"no data"},"need data",0,"no data","no data","need data",null,null,null,null,null,null,{"$error":"#VALUE!"},"no data","no data",{"$error":"#VALUE!"},"no data","no data",157,{"$f":"IF(COUNT(AF14,C18:C23)<>7,\"need data\",AVERAGE(AF14,C18:C23))","v":"need data"},{"$f":"IF(COUNT(AG14,D18:D23)<>7,\"need data\",AVERAGE(AG14,D18:D23))","v":"need data"},{"$f":"IF(COUNT(AH14,F18:F23)<>7,\"need data\",AVERAGE(AH14,F18:F23))","v":"need data"},0,{"$f":"AVERAGE(May!AI48:AI48,June!AI18:AI23)","v":0},0,0,{"$f":"AVERAGE(May!AL48:AL48,June!AL18:AL23)","v":0},0,0,{"$error":"#DIV/0!"},0,0,0]
[7,"2011-06-07",null,null,"",null,"",null,null,"need data",0,{"$f":"IF(K24=\"\",\"\",IF(COUNT(F18:F24)<>7,\"no data\",($AQ24*$AH24+$AR24-$AP24)*$D$11*2.447*($C$11-$AN24)))","v":"no data"},{"$f":"IF(K24=\"\",\"\",IF(OR(COUNT(F18:F24)<>7,COUNT(H18:H24)<>7,COUNT(I18:I24)<>7),\"no data\",($AQ24*$AH24+$AR24-$AO24)*$D$11*2.447*($C$11-$AN24)))","v":"no data"},"need data",0,"no data","no data","need data",null,null,null,null,null,null,{"$error":"#VALUE!"},"no data","no data",{"$error":"#VALUE!"},"no data","no data",158,{"$f":"IF(COUNT(C18:C24)<>7,\"need data\",AVERAGE(C18:C24))","v":"need data"},{"$f":"IF(COUNT(D18:D24)<>7,\"need data\",AVERAGE(D18:D24))","v":"need data"},{"$f":"IF(COUNT(F18:F24)<>7,\"need data\",AVERAGE(F18:F24))","v":"need data"},0,{"$f":"AVERAGE(AI18:AI24)","v":0},0,0,{"$f":"AVERAGE(AL18:AL24)","v":0},0,0,{"$error":"#DIV/0!"},0,0,0]
[8,"2011-06-08",null,null,"",null,"",null,null,"need data",0,"no data","no data",{"$f":"IF(K25=\"\",\"\",IF(J25=\"need data\",\"need data\",IF(AA25<>\"no data\",AA25,IF(Z25<>\"no data\",Z25,Y25))))","v":"need data"},0,"no data","no data","need data",null,null,null,null,null,null,{"$error":"#VALUE!"},"no data","no data",{"$error":"#VALUE!"},"no data","no data",159,"need data","need data","need data",0,0,0,0,0,0,0,{"$error":"#DIV/0!"},0,0,0]
[9,"2011-06-09",null,null,"",null,"",null,null,"need data",0,"no data","no data",{"$f":"IF(K26=\"\",\"\",IF(J26=\"need data\",\"need data\",IF(AA26<>\"no data\",AA26,IF(Z26<>\"no data\",Z26,Y26))))","v":"need data"},0,"no data","no data","need data",null,null,null,null,null,null,{"$error":"#VALUE!"},"no data","no data",{"$error":"#VALUE!"},"no data","no data",160,"need data","need data","need data",0,0,0,0,0,0,0,{"$error":"#DIV/0!"},0,0,0]
[10,"2011-06-10",null,null,"",null,"",null,null,"need data",0,"no data","no data","need data",0,"no data","no data","need data",null,null,null,null,null,null,{"$error":"#VALUE!"},"no data","no data",{"$error":"#VALUE!"},"no data","no data",161,"need data","need data","need data",0,0,0,0,0,0,0,{"$error":"#DIV/0!"},0,0,0]
[11,"2011-06-11",null,null,"",null,"",null,null,"need data",0,"no data","no data","need data",0,"no data","no data","need data",null,null,null,null,null,null,{"$error":"#VALUE!"},"no data","no data",{"$error":"#VALUE!"},"no data","no data",162,"need data","need data","need data",0,0,0,0,0,0,0,{"$error":"#DIV/0!"},0,0,0]
[12,"2011-06-12",null,null,"",null,"",null,null,"need data",0,"no data","no data","need data",0,"no data","no data","need data",null,null,null,null,null,null,{"$error":"#VALUE!"},"no data","no data",{"$error":"#VALUE!"},"no data","no data",163,"need data","need data","need data",0,0,0,0,0,0,0,{"$error":"#DIV/0!"},0,0,0]
[13,"2011-06-13",null,null,"",null,"",null,null,"need data",0,"no data","no data","need data",0,"no data","no data","need data",null,null,null,null,null,null,{"$error":"#VALUE!"},"no data","no data",{"$error":"#VALUE!"},"no data","no data",164,"need data","need data","need data",0,0,0,0,0,0,0,{"$error":"#DIV/0!"},0,0,0]
[14,"2011-06-14",null,null,"",null,"",null,null,"need data",0,"no data","no data","need data",0,"no data","no data","need data",null,null,null,null,null,null,{"$error":"#VALUE!"},"no data","no data",{"$error":"#VALUE!"},"no data","no data",165,"need data","need data","need data",0,0,0,0,0,0,0,{"$error":"#DIV/0!"},0,0,0]
[15,"2011-06-15",null,null,"",null,"",null,null,"need data",0,"no data","no data","need data",0,"no data","no data","need data",null,null,null,null,null,null,{"$error":"#VALUE!"},"no data","no data",{"$error":"#VALUE!"},"no data","no data",166,"need data","need data","need data",0,0,0,0,0,0,0,{"$error":"#DIV/0!"},0,0,0]
[16,"2011-06-16",null,null,"",null,"",null,null,"need data",0,"no data","no data","need data",0,"no data","no data","need data",null,null,null,null,null,null,{"$error":"#VALUE!"},"no data","no data",{"$error":"#VALUE!"},"no data","no data",167,"need data","need data","need data",0,0,0,0,0,0,0,{"$error":"#DIV/0!"},0,0,0]
[17,"2011-06-17",null,null,"",null,"",null,null,"need data",0,"no data","no data","need data",0,"no data","no data","need data",null,null,null,null,null,null,{"$error":"#VALUE!"},"no data","no data",{"$error":"#VALUE!"},"no data","no data",168,"need data","need data","need data",0,0,0,0,0,0,0,{"$error":"#DIV/0!"},0,0,0]
[18,"2011-06-18",null,null,"",null,"",null,null,"need data",0,"no data","no data","need data",0,"no data","no data","need data",null,null,null,null,null,null,{"$error":"#VALUE!"},"no data","no data",{"$error":"#VALUE!"},"no data","no data",169,"need data","need data","need data",0,0,0,0,0,0,0,{"$error":"#DIV/0!"},0,0,0]
[19,"2011-06-19",null,null,"",null,"",null,null,"need data",0,"no data","no data","need data",0,"no data","no data","need data",null,null,null,null,null,null,{"$error":"#VALUE!"},"no data","no data",{"$error":"#VALUE!"},"no data","no data",170,"need data","need data","need data",0,0,0,0,0,0,0,{"$error":"#DIV/0!"},0,0,0]
[20,"2011-06-20",null,null,"",null,"",null,null,"need data",0,"no data","no data","need data",0,"no data","no data","need data",null,null,null,null,null,null,{"$error":"#VALUE!"},"no data","no data",{"$error":"#VALUE!"},"no data","no data",171,"need data","need data","need data",0,0,0,0,0,0,0,{"$error":"#DIV/0!"},0,0,0]
[21,"2011-06-21",null,null,"",null,"",null,null,"need data",0,"no data","no data","need data",0,"no data","no data","need data",null,null,null,null,null,null,{"$error":"#VALUE!"},"no data","no data",{"$error":"#VALUE!"},"no data","no data",172,"need data","need data","need data",0,0,0,0,0,0,0,{"$error":"#DIV/0!"},0,0,0]
[22,"2011-06-22",null,null,"",null,"",null,null,"need data",0,"no data","no data","need data",0,"no data","no data","need data",null,null,null,null,null,null,{"$error":"#VALUE!"},"no data","no data",{"$error":"#VALUE!"},"no data","no data",173,"need data","need data","need data",0,0,0,0,0,0,0,{"$error":"#DIV/0!"},0,0,0]
[23,"2011-06-23",null,null,"",null,"",null,null,"need data",0,"no data","no data","need data",0,"no data","no data","need data",null,null,null,null,null,null,{"$error":"#VALUE!"},"no data","no data",{"$error":"#VALUE!"},"no data","no data",174,"need data","need data",{"$f":"IF(COUNT(F34:F40)<>7,\"need data\",AVERAGE(F34:F40))","v":"need data"},0,0,0,0,0,0,0,{"$error":"#DIV/0!"},0,0,0]
[24,"2011-06-24",null,null,"",null,"",null,null,"need data",0,"no data","no data",{"$f":"IF(K41=\"\",\"\",IF(J41=\"need data\",\"need data\",IF(AA41<>\"no data\",AA41,IF(Z41<>\"no data\",Z41,Y41))))","v":"need data"},0,"no data","no data","need data",null,null,null,null,null,null,{"$error":"#VALUE!"},"no data","no data",{"$error":"#VALUE!"},"no data","no data",175,"need data","need data",{"$f":"IF(COUNT(F35:F41)<>7,\"need data\",AVERAGE(F35:F41))","v":"need data"},0,0,0,0,0,0,0,{"$error":"#DIV/0!"},0,0,0]
[25,"2011-06-25",null,null,"",null,"",null,null,"need data",0,"no data","no data","need data",0,"no data","no data","need data",null,null,null,null,null,null,{"$error":"#VALUE!"},"no data","no data",{"$error":"#VALUE!"},"no data","no data",176,"need data","need data","need data",0,0,0,0,0,0,0,{"$error":"#DIV/0!"},0,0,0]
[26,"2011-06-26",null,null,"",null,"",null,null,"need data",0,"no data","no data","need data",0,"no data","no data","need data",null,null,null,null,null,null,{"$error":"#VALUE!"},"no data","no data",{"$error":"#VALUE!"},"no data","no data",177,"need data","need data","need data",0,0,0,0,0,0,0,{"$error":"#DIV/0!"},0,0,0]
[27,"2011-06-27",null,null,"",null,"",null,null,"need data",0,"no data","no data","need data",0,"no data","no data","need data",null,null,null,null,null,null,{"$error":"#VALUE!"},"no data","no data",{"$error":"#VALUE!"},"no data","no data",178,"need data","need data","need data",0,0,0,0,0,0,0,{"$error":"#DIV/0!"},0,0,0]
[28,"2011-06-28",null,null,"",null,"",null,null,"need data",0,"no data","no data","need data",0,"no data","no data","need data",null,null,null,null,null,null,{"$error":"#VALUE!"},"no data","no data",{"$error":"#VALUE!"},"no data","no data",179,"need data","need data","need data",0,0,0,0,0,0,0,{"$error":"#DIV/0!"},0,0,0]
[29,"2011-06-29",null,null,"",null,"",null,null,"need data",0,"no data","no data","need data",0,"no data","no data","need data",null,null,null,null,null,null,{"$error":"#VALUE!"},"no data","no data",{"$error":"#VALUE!"},"no data","no data",180,"need data","need data","need data",0,0,0,0,0,0,0,{"$error":"#DIV/0!"},0,0,0]
[30,"2011-06-30",null,null,"",null,"",null,null,"need data",0,"no data","no data","need data",0,"no data","no data","need data",null,null,null,null,null,null,{"$error":"#VALUE!"},"no data","no data",{"$error":"#VALUE!"},"no data","no data",181,"need data","need data","need data",0,0,0,0,0,0,0,{"$error":"#DIV/0!"},0,0,0]
[null,null,null,null,null,null,null,{"$f":"IF(I48=\"\",\"\",IF(AD48*2.447*(AE48-AL48)*1.547<0,0,AD48*2.447*(AE48-AL48)*1.547))","v":""},null,null,null,{"$f":"IF(I48=\"\",\"\",IF(Y48<>\"no data\",Y48,IF(X48<>\"no data\",X48,W48)))","v":""}]

{"sheet":"July","index":4,"n_rows":48,"n_cols":45,"rows_kept":48,"cut":false,"hidden":false,"merged":[[15,27,15,29],[14,14,14,16],[15,14,15,16],[9,11,10,11],[3,4,3,10],[9,4,10,5],[15,10,15,12],[4,2,4,10],[5,4,5,5],[5,6,5,7],[5,23,5,24],[14,2,14,4],[14,5,14,8]]}
[]
[]
[]
[null,null,null,"Facility Name:",{"$f":"April!E4","v":"Enter Name Here"}]
[null,null,"Constants used to calculate Thermal Load Limits (TLL)"]
[null,null,null,null,"Start",null,"End",null,null,null,null,"Option 2","Option 1","TRC Loan",null,null,null,null,null,null,null,null,null,"Julian Dates"]
[null,null,null,null,"Month","Day","Month","Day","Trc","m","b","TRA_N","TLL","Factor",null,null,null,null,null,null,null,null,null,"Rearing/Mig","Spawning"]
[null,null,null,"Rearing & Migration",{"$f":"April!E8","v":5},{"$f":"April!F8","v":16},{"$f":"April!G8","v":10},{"$f":"April!H8","v":14},{"$f":"April!I8","v":0},{"$f":"April!J8","v":0},{"$f":"April!K8","v":0},{"$f":"April!L8","v":0},{"$f":"April!M8","v":0},{"$f":"April!N8","v":0},null,null,null,null,null,null,null,null,null,{"$f":"X9-DATEVALUE(\"1/1/\"&$B16)+1","v":136},{"$f":"Y9-DATEVALUE(\"1/1/\"&B16)+1","v":287},null,null,null,null,null,null,"Qe","Te","Qr"]
[null,null,null,"Spawning",null,null,null,null,{"$f":"April!I9","v":0},{"$f":"April!J9","v":0},{"$f":"April!K9","v":0},{"$f":"April!L9","v":0},{"$f":"April!M9","v":0},{"$f":"April!N9","v":0},null,null,null,null,null,null,null,null,null,{"$f":"DATE($B16,E8,F8)","v":"2011-05-16"},{"$f":"DATE($B16,G8,H8)","v":"2011-10-14"},null,null,null,null,null,null,{"$f":"IF(June!C42=\"\",\"\",June!C42)","v":""},{"$f":"IF(June!D42=\"\",\"\",June!D42)","v":""},{"$f":"IF(June!F42=\"\",\"\",June!F42)","v":""}]
[null,null,"TPS","QPS","NTP Coefficients",null,"Maximum",{"$f":"April!H10","v":0},{"$f":"April!I10","v":0},null,null,null,null,null,null,null,null,null,null,null,null,null,null,null,null,null,null,null,null,null,null,{"$f":"IF(June!C43=\"\",\"\",June!C43)","v":""},{"$f":"IF(June!D43=\"\",\"\",June!D43)","v":""},{"$f":"IF(June!F43=\"\",\"\",June!F43)","v":""}]
[null,null,{"$f":"April!C11","v":0},{"$f":"April!D11","v":0},null,null,"Average",{"$f":"April!H11","v":0},{"$f":"April!I11","v":0},null,null,null,null,null,null,null,null,null,null,null,null,null,null,null,null,null,null,null,null,null,"Last 6 days",{"$f":"IF(June!C44=\"\",\"\",June!C44)","v":""},{"$f":"IF(June!D44=\"\",\"\",June!D44)","v":""},{"$f":"IF(June!F44=\"\",\"\",June!F44)","v":""}]
[null,null,null,null,null,null,null,null,null,null,null,{"$f":"April!L12","v":"Version 1.1"},null,null,null,null,null,null,null,null,null,null,null,null,null,null,null,null,null,null,"in June",{"$f":"IF(June!C45=\"\",\"\",June!C45)","v":""},{"$f":"IF(June!D45=\"\",\"\",June!D45)","v":""},{"$f":"IF(June!F45=\"\",\"\",June!F45)","v":""}]
[null,null,null,null,null,null,null,null,null,null,null,null,null,null,null,null,null,null,null,null,null,null,null,null,null,null,null,null,null,null,null,{"$f":"IF(June!C46=\"\",\"\",June!C46)","v":""},{"$f":"IF(June!D46=\"\",\"\",June!D46)","v":""},{"$f":"IF(June!F46=\"\",\"\",June!F46)","v":""}]
[null,{"$f":"IF(B15=\"april\",4,IF(B15=\"may\",5,IF(B15=\"june\",6,IF(B15=\"july\",7,IF(B15=\"august\",8,IF(B15=\"september\",9,10))))))","v":7},null,null,null,null,null,null,null,null,null,null,null,null,null,null,null,null,null,null,null,null,null,null,null,null,null,null,null,null,null,{"$f":"IF(June!C47=\"\",\"\",June!C47)","v":""},{"$f":"IF(June!D47=\"\",\"\",June!D47)","v":""},{"$f":"IF(June!F47=\"\",\"\",June!F47)","v":""}]
[null,"July","Effluent",null,null,"Ambient",null,null,null,null,null,null,null,null,"Thermal Load Option"]
[null,{"$f":"April!B16","v":2011},"Flow","Max Temp","7-day Temp","Flow","7-day Flow","Avg Temp","Max Temp",null,"Thermal Load Option",null,null,null,"With Temporary Loan",null,null,null,null,null,null,null,null,null,"Exceedances",null,null,"Exceedances with loan"]
[null,"Date","(mgd)","(deg C)","(deg C)","(cfs)","(cfs)","TRA","TRM","ETL","Option 1","Option 2","Option 3","Exceedance","Option 1","Option 2","Option 3","Exceedance","Comments",null,null,null,null,null,"Option 1","Option 2","Option 3","Option 1","Option 2","Option 3","Julian Day","Qe7 (cfs)","Te7","Qr7","TRA_N","TRA_N7","TRA_N'","TRM_N","TRM_N7","Trc","a","a'","m","b","d"]
[1,{"$f":"DATE(B$16,B$14,A18)","v":"2011-07-01"},null,null,{"$f":"IF(AG18=\"need data\",\"\",AG18)","v":""},null,{"$f":"IF(AH18=\"need data\",\"\",AH18)","v":""},null,null,{"$f":"IF(K18=\"\",\"\",IF(OR(AF18=\"need data\",AG18=\"need data\"),\"need data\",IF(AF18*2.447*(AG18-AN18)*1.547<0,0,AF18*2.447*(AG18-AN18)*1.547)))","v":"need data"},{"$f":"IF(OR(AND($AE18>=X$8,$AE18<X$8+6),AND($AE18>Y$8,$AE18<Y$8+7)),\"\",IF(AND($AE18>=X$8,$AE18<=Y$8),$M$8,$M$9))","v":0},{"$f":"IF(K18=\"\",\"\",IF(COUNT(June!F42:F47,July!F18)<>7,\"no data\",($AQ18*$AH18+$AR18-$AP18)*$D$11*2.447*($C$11-$AN18)))","v":"no data"},{"$f":"IF(K18=\"\",\"\",IF(OR(COUNT(June!F$42:F$47,July!F18)<>7,COUNT(June!H42:H47,July!H18)<>7,COUNT(June!I42:I47,July!I18)<>7),\"no data\",($AQ18*$AH18+$AR18-$AO18)*$D$11*2.447*($C$11-$AN18)))","v":"no data"},{"$f":"IF(K18=\"\",\"\",IF(J18=\"need data\",\"need data\",IF(AA18<>\"no data\",AA18,IF(Z18<>\"no data\",Z18,Y18))))","v":"need data"},{"$f":"IF($K18=\"\",\"\",IF($K18=$M$9,K18*$N$9,K18*$N$8))","v":0},{"$f":"IF($K18=\"\",\"\",IF(L18=\"no data\",\"no data\",IF($K18=$M$9,L18*$N$9,L18*$N$8)))","v":"no data"},{"$f":"IF($K18=\"\",\"\",IF(M18=\"no data\",\"no data\",IF($K18=$M$9,M18*$N$9,M18*$N$8)))","v":"no data"},{"$f":"IF(O18=\"\",\"\",IF(J18=\"need data\",\"need data\",IF(AD18<>\"no data\",AD18,IF(AC18<>\"no data\",AC18,AB18))))","v":"need data"},null,null,null,null,null,null,{"$f":"IF(J18=\"\",\" \",IF(RoundEven($J18-K18,0)>0,$J18-K18,\" \"))","v":{"$error":"#VALUE!"}},{"$f":"IF(L18=\"no data\",\"no data\",IF(L18=\"\",\" \",IF(RoundEven($J18-L18,0)>0,$J18-L18,\" \")))","v":"no data"},{"$f":"IF(M18=\"no data\",\"no data\",IF(M18=\"\",\" \",IF(RoundEven($J18-M18,0)>0,$J18-M18,\" \")))","v":"no data"},{"$f":"IF($J18=\"\",\" \",IF(RoundEven($J18-O18,0)>0,$J18-O18,\" \"))","v":{"$error":"#VALUE!"}},{"$f":"IF(P18=\"no data\",\"no data\",IF(P18=\"\",\" \",IF(RoundEven($J18-P18,0)>0,$J18-P18,\" \")))","v":"no data"},{"$f":"IF(Q18=\"no data\",\"no data\",IF(Q18=\"\",\" \",IF(RoundEven($J18-Q18,0)>0,$J18-Q18,\" \")))","v":"no data"},{"$f":"VALUE(TEXT((B18-DATEVALUE(\"1/1/\"&TEXT(B18,\"yy\"))+1),\"000\"))","v":182},{"$f":"IF(COUNT(AF9:AF14,C18)<>7,\"need data\",AVERAGE(AF9:AF14,C18))","v":"need data"},{"$f":"IF(COUNT(AG9:AG14,D18)<>7,\"need data\",AVERAGE(AG9:AG14,D18))","v":"need data"},{"$f":"IF(COUNT(AH9:AH14,F18)<>7,\"need data\",AVERAGE(AH9:AH14,F18))","v":"need data"},{"$f":"H$11*H18+I$11","v":0},{"$f":"AVERAGE(June!AI42:AI47,July!AI18)","v":0},{"$f":"IF(AND($AE18>=X$8,$AE18<=Y$8),$L$8,$L$9)","v":0},{"$f":"H$10*I18+I$10","v":0},{"$f":"AVERAGE(June!AL42:AL47,July!AL18)","v":0},{"$f":"IF(AND($AE18>=$X$8,$AE18<=$Y$8),$I$8,$I$9)","v":0},{"$f":"IF(OR(AM18<=AN18,AND(AM18>AN18,AJ18>=AN18)),0,(1-(AJ18/AN18)))","v":0},{"$f":"1-AK18/AN18","v":{"$error":"#DIV/0!"}},{"$f":"IF($AN18=13,J$9,J$8)","v":0},{"$f":"IF($AN18=13,K$9,K$8)","v":0},{"$f":"(AQ18*F18+AR18-AO18)","v":0}]
[2,"2011-07-02",null,null,{"$f":"IF(AG19=\"need data\",\"\",AG19)","v":""},null,{"$f":"IF(AH19=\"need data\",\"\",AH19)","v":""},null,null,{"$f":"IF(K19=\"\",\"\",IF(OR(AF19=\"need data\",AG19=\"need data\"),\"need data\",IF(AF19*2.447*(AG19-AN19)*1.547<0,0,AF19*2.447*(AG19-AN19)*1.547)))","v":"need data"},0,{"$f":"IF(K19=\"\",\"\",IF(COUNT(June!F43:F47,July!F18:F19)<>7,\"no data\",($AQ19*$AH19+$AR19-$AP19)*$D$11*2.447*($C$11-$AN19)))","v":"no data"},{"$f":"IF(K19=\"\",\"\",IF(OR(COUNT(June!F$43:F$47,July!F18:F19)<>7,COUNT(June!H$43:H$47,July!H18:H19)<>7,COUNT(June!I$43:I$47,July!I18:I19)<>7),\"no data\",($AQ19*$AH19+$AR19-$AO19)*$D$11*2.447*($C$11-$AN19)))","v":"no data"},"need data",0,"no data","no data",{"$f":"IF(O19=\"\",\"\",IF(J19=\"need data\",\"need data\",IF(AD19<>\"no data\",AD19,IF(AC19<>\"no data\",AC19,AB19))))","v":"need data"},null,null,null,null,null,null,{"$f":"IF(J19=\"\",\" \",IF(RoundEven($J19-K19,0)>0,$J19-K19,\" \"))","v":{"$error":"#VALUE!"}},{"$f":"IF(L19=\"no data\",\"no data\",IF(L19=\"\",\" \",IF(RoundEven($J19-L19,0)>0,$J19-L19,\" \")))","v":"no data"},{"$f":"IF(M19=\"no data\",\"no data\",IF(M19=\"\",\" \",IF(RoundEven($J19-M19,0)>0,$J19-M19,\" \")))","v":"no data"},{"$f":"IF($J19=\"\",\" \",IF(RoundEven($J19-O19,0)>0,$J19-O19,\" \"))","v":{"$error":"#VALUE!"}},{"$f":"IF(P19=\"no data\",\"no data\",IF(P19=\"\",\" \",IF(RoundEven($J19-P19,0)>0,$J19-P19,\" \")))","v":"no data"},{"$f":"IF(Q19=\"no data\",\"no data\",IF(Q19=\"\",\" \",IF(RoundEven($J19-Q19,0)>0,$J19-Q19,\" \")))","v":"no data"},183,{"$f":"IF(COUNT(AF10:AF14,C18:C19)<>7,\"need data\",AVERAGE(AF10:AF14,C18:C19))","v":"need data"},{"$f":"IF(COUNT(AG10:AG14,D18:D19)<>7,\"need data\",AVERAGE(AG10:AG14,D18:D19))","v":"need data"},{"$f":"IF(COUNT(AH10:AH14,F18:F19)<>7,\"need data\",AVERAGE(AH10:AH14,F18:F19))","v":"need data"},0,{"$f":"AVERAGE(June!AI43:AI47,July!AI18:AI19)","v":0},0,0,{"$f":"AVERAGE(June!AL43:AL47,July!AL18:AL19)","v":0},0,0,{"$error":"#DIV/0!"},0,0,0]
[3,"2011-07-03",null,null,"",null,"",null,null,"need data",0,{"$f":"IF(K20=\"\",\"\",IF(COUNT(June!F44:F47,July!F18:F20)<>7,\"no data\",($AQ20*$AH20+$AR20-$AP20)*$D$11*2.447*($C$11-$AN20)))","v":"no data"},{"$f":"IF(K20=\"\",\"\",IF(OR(COUNT(June!F44:F47,July!F18:F20)<>7,COUNT(June!H44:H47,July!H18:H20)<>7,COUNT(June!I44:I47,July!I18:I20)<>7),\"no data\",($AQ20*$AH20+$AR20-$AO20)*$D$11*2.447*($C$11-$AN20)))","v":"no data"},"need data",0,"no data","no data","need data",null,null,null,null,null,null,{"$error":"#VALUE!"},"no data","no data",{"$error":"#VALUE!"},"no data","no data",184,{"$f":"IF(COUNT(AF11:AF14,C18:C20)<>7,\"need data\",AVERAGE(AF11:AF14,C18:C20))","v":"need data"},{"$f":"IF(COUNT(AG11:AG14,D18:D20)<>7,\"need data\",AVERAGE(AG11:AG14,D18:D20))","v":"need data"},{"$f":"IF(COUNT(AH11:AH14,F18:F20)<>7,\"need data\",AVERAGE(AH11:AH14,F18:F20))","v":"need data"},0,{"$f":"AVERAGE(June!AI44:AI47,July!AI18:AI20)","v":0},0,0,{"$f":"AVERAGE(June!AL44:AL47,July!AL18:AL20)","v":0},0,0,{"$error":"#DIV/0!"},0,0,0]
[4,"2011-07-04",null,null,"",null,"",null,null,"need data",0,{"$f":"IF(K21=\"\",\"\",IF(COUNT(June!F45:F47,July!F18:F21)<>7,\"no data\",($AQ21*$AH21+$AR21-$AP21)*$D$11*2.447*($C$11-$AN21)))","v":"no data"},{"$f":"IF(K21=\"\",\"\",IF(OR(COUNT(June!F45:F47,July!F18:F21)<>7,COUNT(June!H45:H47,July!H18:H21)<>7,COUNT(June!I45:I47,July!I18:I21)<>7),\"no data\",($AQ21*$AH21+$AR21-$AO21)*$D$11*2.447*($C$11-$AN21)))","v":"no data"},"need data",0,"no data","no data","need data",null,null,null,null,null,null,{"$error":"#VALUE!"},"no data","no data",{"$error":"#VALUE!"},"no data","no data",185,{"$f":"IF(COUNT(AF12:AF14,C18:C21)<>7,\"need data\",AVERAGE(AF12:AF14,C18:C21))","v":"need data"},{"$f":"IF(COUNT(AG12:AG14,D18:D21)<>7,\"need data\",AVERAGE(AG12:AG14,D18:D21))","v":"need data"},{"$f":"IF(COUNT(AH12:AH14,F18:F21)<>7,\"need data\",AVERAGE(AH12:AH14,F18:F21))","v":"need data"},0,{"$f":"AVERAGE(June!AI45:AI47,July!AI18:AI21)","v":0},0,0,{"$f":"AVERAGE(June!AL45:AL47,July!AL18:AL21)","v":0},0,0,{"$error":"#DIV/0!"},0,0,0]
[5,"2011-07-05",null,null,"",null,"",null,null,"need data",0,{"$f":"IF(K22=\"\",\"\",IF(COUNT(June!F46:F47,July!F18:F22)<>7,\"no data\",($AQ22*$AH22+$AR22-$AP22)*$D$11*2.447*($C$11-$AN22)))","v":"no data"},{"$f":"IF(K22=\"\",\"\",IF(OR(COUNT(June!F46:F47,July!F18:F22)<>7,COUNT(June!H46:H47,July!H18:H22)<>7,COUNT(June!I46:I47,July!I18:I22)<>7),\"no data\",($AQ22*$AH22+$AR22-$AO22)*$D$11*2.447*($C$11-$AN22)))","v":"no data"},"need data",0,"no data","no data","need data",null,null,null,null,null,null,{"$error":"#VALUE!"},"no data","no data",{"$error":"#VALUE!"},"no data","no data",186,{"$f":"IF(COUNT(AF13:AF14,C18:C22)<>7,\"need data\",AVERAGE(AF13:AF14,C18:C22))","v":"need data"},{"$f":"IF(COUNT(AG13:AG14,D18:D22)<>7,\"need data\",AVERAGE(AG13:AG14,D18:D22))","v":"need data"},{"$f":"IF(COUNT(AH13:AH14,F18:F22)<>7,\"need data\",AVERAGE(AH13:AH14,F18:F22))","v":"need data"},0,{"$f":"AVERAGE(June!AI46:AI47,July!AI18:AI22)","v":0},0,0,{"$f":"AVERAGE(June!AL46:AL47,July!AL18:AL22)","v":0},0,0,{"$error":"#DIV/0!"},0,0,0]
[6,"2011-07-06",null,null,"",null,"",null,null,"need data",0,{"$f":"IF(K23=\"\",\"\",IF(COUNT(June!F47:F47,July!F18:F23)<>7,\"no data\",($AQ23*$AH23+$AR23-$AP23)*$D$11*2.447*($C$11-$AN23)))","v":"no data"},{"$f":"IF(K23=\"\",\"\",IF(OR(COUNT(June!F47:F47,July!F18:F23)<>7,COUNT(June!H47:H47,July!H18:H23)<>7,COUNT(June!I47:I47,July!I18:I23)<>7),\"no data\",($AQ23*$AH23+$AR23-$AO23)*$D$11*2.447*($C$11-$AN23)))","v":"no data"},"need data",0,"no data","no data","need data",null,null,null,null,null,null,{"$error":"#VALUE!"},"no data","no data",{"$error":"#VALUE!"},"no data","no data",187,{"$f":"IF(COUNT(AF14,C18:C23)<>7,\"need data\",AVERAGE(AF14,C18:C23))","v":"need data"},{"$f":"IF(COUNT(AG14,D18:D23)<>7,\"need data\",AVERAGE(AG14,D18:D23))","v":"need data"},{"$f":"IF(COUNT(AH14,F18:F23)<>7,\"need data\",AVERAGE(AH14,F18:F23))","v":"need data"},0,{"$f":"AVERAGE(June!AI47:AI47,July!AI18:AI23)","v":0},0,0,{"$f":"AVERAGE(June!AL47:AL47,July!AL18:AL23)","v":0},0,0,{"$error":"#DIV/0!"},0,0,0]
[7,"2011-07-07",null,null,"",null,"",null,null,"need data",0,{"$f":"IF(K24=\"\",\"\",IF(COUNT(F18:F24)<>7,\"no data\",($AQ24*$AH24+$AR24-$AP24)*$D$11*2.447*($C$11-$AN24)))","v":"no data"},{"$f":"IF(K24=\"\",\"\",IF(OR(COUNT(F18:F24)<>7,COUNT(H18:H24)<>7,COUNT(I18:I24)<>7),\"no data\",($AQ24*$AH24+$AR24-$AO24)*$D$11*2.447*($C$11-$AN24)))","v":"no data"},"need data",0,"no data","no data","need data",null,null,null,null,null,null,{"$error":"#VALUE!"},"no data","no data",{"$error":"#VALUE!"},"no data","no data",188,{"$f":"IF(COUNT(C18:C24)<>7,\"need data\",AVERAGE(C18:C24))","v":"need data"},{"$f":"IF(COUNT(D18:D24)<>7,\"need data\",AVERAGE(D18:D24))","v":"need data"},{"$f":"IF(COUNT(F18:F24)<>7,\"need data\",AVERAGE(F18:F24))","v":"need data"},0,{"$f":"AVERAGE(AI18:AI24)","v":0},0,0,{"$f":"AVERAGE(AL18:AL24)","v":0},0,0,{"$error":"#DIV/0!"},0,0,0]
[8,"2011-07-08",null,null,"",null,"",null,null,"need data",0,"no data","no data",{"$f":"IF(K25=\"\",\"\",IF(J25=\"need data\",\"need data\",IF(AA25<>\"no data\",AA25,IF(Z25<>\"no data\",Z25,Y25))))","v":"need data"},0,"no data","no data","need data",null,null,null,null,null,null,{"$error":"#VALUE!"},"no data","no data",{"$error":"#VALUE!"},"no data","no data",189,"need data","need data","need data",0,0,0,0,0,0,0,{"$error":"#DIV/0!"},0,0,0]
[9,"2011-07-09",null,null,"",null,"",null,null,"need data",0,"no data","no data",{"$f":"IF(K26=\"\",\"\",IF(J26=\"need data\",\"need data\",IF(AA26<>\"no data\",AA26,IF(Z26<>\"no data\",Z26,Y26))))","v":"need data"},0,"no data","no data","need data",null,null,null,null,null,null,{"$error":"#VALUE!"},"no data","no data",{"$error":"#VALUE!"},"no data","no data",190,"need data","need data","need data",0,0,0,0,0,0,0,{"$error":"#DIV/0!"},0,0,0]
[10,"2011-07-10",null,null,"",null,"",null,null,"need data",0,"no data","no data","need data",0,"no data","no data","need data",null,null,null,null,null,null,{"$error":"#VALUE!"},"no data","no data",{"$error":"#VALUE!"},"no data","no data",191,"need data","need data","need data",0,0,0,0,0,0,0,{"$error":"#DIV/0!"},0,0,0]
[11,"2011-07-11",null,null,"",null,"",null,null,"need data",0,"no data","no data","need data",0,"no data","no data","need data",null,null,null,null,null,null,{"$error":"#VALUE!"},"no data","no data",{"$error":"#VALUE!"},"no data","no data",192,"need data","need data","need data",0,0,0,0,0,0,0,{"$error":"#DIV/0!"},0,0,0]
[12,"2011-07-12",null,null,"",null,"",null,null,"need data",0,"no data","no data","need data",0,"no data","no data","need data",null,null,null,null,null,null,{"$error":"#VALUE!"},"no data","no data",{"$error":"#VALUE!"},"no data","no data",193,"need data","need data","need data",0,0,0,0,0,0,0,{"$error":"#DIV/0!"},0,0,0]
[13,"2011-07-13",null,null,"",null,"",null,null,"need data",0,"no data","no data","need data",0,"no data","no data","need data",null,null,null,null,null,null,{"$error":"#VALUE!"},"no data","no data",{"$error":"#VALUE!"},"no data","no data",194,"need data","need data","need data",0,0,0,0,0,0,0,{"$error":"#DIV/0!"},0,0,0]
[14,"2011-07-14",null,null,"",null,"",null,null,"need data",0,"no data","no data","need data",0,"no data","no data","need data",null,null,null,null,null,null,{"$error":"#VALUE!"},"no data","no data",{"$error":"#VALUE!"},"no data","no data",195,"need data","need data","need data",0,0,0,0,0,0,0,{"$error":"#DIV/0!"},0,0,0]
[15,"2011-07-15",null,null,"",null,"",null,null,"need data",0,"no data","no data","need data",0,"no data","no data","need data",null,null,null,null,null,null,{"$error":"#VALUE!"},"no data","no data",{"$error":"#VALUE!"},"no data","no data",196,"need data","need data","need data",0,0,0,0,0,0,0,{"$error":"#DIV/0!"},0,0,0]
[16,"2011-07-16",null,null,"",null,"",null,null,"need data",0,"no data","no data","need data",0,"no data","no data","need data",null,null,null,null,null,null,{"$error":"#VALUE!"},"no data","no data",{"$error":"#VALUE!"},"no data","no data",197,"need data","need data","need data",0,0,0,0,0,0,0,{"$error":"#DIV/0!"},0,0,0]
[17,"2011-07-17",null,null,"",null,"",null,null,"need data",0,"no data","no data","need data",0,"no data","no data","need data",null,null,null,null,null,null,{"$error":"#VALUE!"},"no data","no data",{"$error":"#VALUE!"},"no data","no data",198,"need data","need data","need data",0,0,0,0,0,0,0,{"$error":"#DIV/0!"},0,0,0]
[18,"2011-07-18",null,null,"",null,"",null,null,"need data",0,"no data","no data","need data",0,"no data","no data","need data",null,null,null,null,null,null,{"$error":"#VALUE!"},"no data","no data",{"$error":"#VALUE!"},"no data","no data",199,"need data","need data","need data",0,0,0,0,0,0,0,{"$error":"#DIV/0!"},0,0,0]
[19,"2011-07-19",null,null,"",null,"",null,null,"need data",0,"no data","no data","need data",0,"no data","no data","need data",null,null,null,null,null,null,{"$error":"#VALUE!"},"no data","no data",{"$error":"#VALUE!"},"no data","no data",200,"need data","need data","need data",0,0,0,0,0,0,0,{"$error":"#DIV/0!"},0,0,0]
[20,"2011-07-20",null,null,"",null,"",null,null,"need data",0,"no data","no data","need data",0,"no data","no data","need data",null,null,null,null,null,null,{"$error":"#VALUE!"},"no data","no data",{"$error":"#VALUE!"},"no data","no data",201,"need data","need data","need data",0,0,0,0,0,0,0,{"$error":"#DIV/0!"},0,0,0]
[21,"2011-07-21",null,null,"",null,"",null,null,"need data",0,"no data","no data","need data",0,"no data","no data","need data",null,null,null,null,null,null,{"$error":"#VALUE!"},"no data","no data",{"$error":"#VALUE!"},"no data","no data",202,"need data","need data","need data",0,0,0,0,0,0,0,{"$error":"#DIV/0!"},0,0,0]
[22,"2011-07-22",null,null,"",null,"",null,null,"need data",0,"no data","no data","need data",0,"no data","no data","need data",null,null,null,null,null,null,{"$error":"#VALUE!"},"no data","no data",{"$error":"#VALUE!"},"no data","no data",203,"need data","need data","need data",0,0,0,0,0,0,0,{"$error":"#DIV/0!"},0,0,0]
[23,"2011-07-23",null,null,"",null,"",null,null,"need data",0,"no data","no data","need data",0,"no data","no data","need data",null,null,null,null,null,null,{"$error":"#VALUE!"},"no data","no data",{"$error":"#VALUE!"},"no data","no data",204,"need data","need data",{"$f":"IF(COUNT(F34:F40)<>7,\"need data\",AVERAGE(F34:F40))","v":"need data"},0,0,0,0,0,0,0,{"$error":"#DIV/0!"},0,0,0]
[24,"2011-07-24",null,null,"",null,"",null,null,"need data",0,"no data","no data",{"$f":"IF(K41=\"\",\"\",IF(J41=\"need data\",\"need data\",IF(AA41<>\"no data\",AA41,IF(Z41<>\"no data\",Z41,Y41))))","v":"need data"},0,"no data","no data","need data",null,null,null,null,null,null,{"$error":"#VALUE!"},"no data","no data",{"$error":"#VALUE!"},"no data","no data",205,"need data","need data",{"$f":"IF(COUNT(F35:F41)<>7,\"need data\",AVERAGE(F35:F41))","v":"need data"},0,0,0,0,0,0,0,{"$error":"#DIV/0!"},0,0,0]
[25,"2011-07-25",null,null,"",null,"",null,null,"need data",0,"no data","no data","need data",0,"no data","no data","need data",null,null,null,null,null,null,{"$error":"#VALUE!"},"no data","no data",{"$error":"#VALUE!"},"no data","no data",206,"need data","need data","need data",0,0,0,0,0,0,0,{"$error":"#DIV/0!"},0,0,0]
[26,"2011-07-26",null,null,"",null,"",null,null,"need data",0,"no data","no data","need data",0,"no data","no data","need data",null,null,null,null,null,null,{"$error":"#VALUE!"},"no data","no data",{"$error":"#VALUE!"},"no data","no data",207,"need data","need data","need data",0,0,0,0,0,0,0,{"$error":"#DIV/0!"},0,0,0]
[27,"2011-07-27",null,null,"",null,"",null,null,"need data",0,"no data","no data","need data",0,"no data","no data","need data",null,null,null,null,null,null,{"$error":"#VALUE!"},"no data","no data",{"$error":"#VALUE!"},"no data","no data",208,"need data","need data","need data",0,0,0,0,0,0,0,{"$error":"#DIV/0!"},0,0,0]
[28,"2011-07-28",null,null,"",null,"",null,null,"need data",0,"no data","no data","need data",0,"no data","no data","need data",null,null,null,null,null,null,{"$error":"#VALUE!"},"no data","no data",{"$error":"#VALUE!"},"no data","no data",209,"need data","need data","need data",0,0,0,0,0,0,0,{"$error":"#DIV/0!"},0,0,0]
[29,"2011-07-29",null,null,"",null,"",null,null,"need data",0,"no data","no data","need data",0,"no data","no data","need data",null,null,null,null,null,null,{"$error":"#VALUE!"},"no data","no data",{"$error":"#VALUE!"},"no data","no data",210,"need data","need data","need data",0,0,0,0,0,0,0,{"$error":"#DIV/0!"},0,0,0]
[30,"2011-07-30",null,null,"",null,"",null,null,"need data",0,"no data","no data","need data",0,"no data","no data","need data",null,null,null,null,null,null,{"$error":"#VALUE!"},"no data","no data",{"$error":"#VALUE!"},"no data","no data",211,"need data","need data","need data",0,0,0,0,0,0,0,{"$error":"#DIV/0!"},0,0,0]
[31,"2011-07-31",null,null,"",null,"",null,null,"need data",0,"no data","no data","need data",0,"no data","no data","need data",null,null,null,null,null,null,{"$error":"#VALUE!"},"no data","no data",{"$error":"#VALUE!"},"no data","no data",{"$f":"VALUE(TEXT((B48-DATEVALUE(\"1/1/\"&TEXT(B48,\"yy\"))+1),\"000\"))","v":212},{"$f":"IF(COUNT(C42:C48)<>7,\"need data\",AVERAGE(C42:C48))","v":"need data"},{"$f":"IF(COUNT(D42:D48)<>7,\"need data\",AVERAGE(D42:D48))","v":"need data"},{"$f":"IF(COUNT(F42:F48)<>7,\"need data\",AVERAGE(F42:F48))","v":"need data"},0,0,0,0,0,0,{"$f":"IF(OR(AM48<=AN48,AND(AM48>AN48,AJ48>=AN48)),0,(1-(AJ48/AN48)))","v":0},{"$f":"1-AK48/AN48","v":{"$error":"#DIV/0!"}},0,0,0]

{"sheet":"August","index":5,"n_rows":48,"n_cols":45,"rows_kept":48,"cut":false,"hidden":false,"merged":[[15,27,15,29],[9,11,10,11],[15,14,15,16],[14,14,14,16],[3,4,3,10],[9,4,10,5],[15,10,15,12],[4,2,4,10],[5,4,5,5],[5,6,5,7],[5,23,5,24],[14,2,14,4],[14,5,14,8]]}
[]
[]
[]
[null,null,null,"Facility Name:",{"$f":"April!E4","v":"Enter Name Here"}]
[null,null,"Constants used to calculate Thermal Load Limits (TLL)"]
[null,null,null,null,"Start",null,"End",null,null,null,null,"Option 2","Option 1","TRC Loan",null,null,null,null,null,null,null,null,null,"Julian Dates"]
[null,null,null,null,"Month","Day","Month","Day","Trc","m","b","TRA_N","TLL","Factor",null,null,null,null,null,null,null,null,null,"Rearing/Mig","Spawning"]
[null,null,null,"Rearing & Migration",{"$f":"April!E8","v":5},{"$f":"April!F8","v":16},{"$f":"April!G8","v":10},{"$f":"April!H8","v":14},{"$f":"April!I8","v":0},{"$f":"April!J8","v":0},{"$f":"April!K8","v":0},{"$f":"April!L8","v":0},{"$f":"April!M8","v":0},{"$f":"April!N8","v":0},null,null,null,null,null,null,null,null,null,{"$f":"X9-DATEVALUE(\"1/1/\"&$B16)+1","v":136},{"$f":"Y9-DATEVALUE(\"1/1/\"&B16)+1","v":287},null,null,null,null,null,null,"Qe","Te","Qr"]
[null,null,null,"Spawning",null,null,null,null,{"$f":"April!I9","v":0},{"$f":"April!J9","v":0},{"$f":"April!K9","v":0},{"$f":"April!L9","v":0},{"$f":"April!M9","v":0},{"$f":"April!N9","v":0},null,null,null,null,null,null,null,null,null,{"$f":"DATE($B16,E8,F8)","v":"2011-05-16"},{"$f":"DATE($B16,G8,H8)","v":"2011-10-14"},null,null,null,null,null,null,{"$f":"IF(July!C43=\"\",\"\",July!C43)","v":""},{"$f":"IF(July!D43=\"\",\"\",July!D43)","v":""},{"$f":"IF(July!F43=\"\",\"\",July!F43)","v":""}]
[null,null,"TPS","QPS","NTP Coefficients",null,"Maximum",{"$f":"April!H10","v":0},{"$f":"April!I10","v":0},null,null,null,null,null,null,null,null,null,null,null,null,null,null,null,null,null,null,null,null,null,null,{"$f":"IF(July!C44=\"\",\"\",July!C44)","v":""},{"$f":"IF(July!D44=\"\",\"\",July!D44)","v":""},{"$f":"IF(July!F44=\"\",\"\",July!F44)","v":""}]
[null,null,{"$f":"April!C11","v":0},{"$f":"April!D11","v":0},null,null,"Average",{"$f":"April!H11","v":0},{"$f":"April!I11","v":0},null,null,null,null,null,null,null,null,null,null,null,null,null,null,null,null,null,null,null,null,null,"Last 6 days",{"$f":"IF(July!C45=\"\",\"\",July!C45)","v":""},{"$f":"IF(July!D45=\"\",\"\",July!D45)","v":""},{"$f":"IF(July!F45=\"\",\"\",July!F45)","v":""}]
[null,null,null,null,null,null,null,null,null,null,null,{"$f":"April!L12","v":"Version 1.1"},null,null,null,null,null,null,null,null,null,null,null,null,null,null,null,null,null,null,"in July",{"$f":"IF(July!C46=\"\",\"\",July!C46)","v":""},{"$f":"IF(July!D46=\"\",\"\",July!D46)","v":""},{"$f":"IF(July!F46=\"\",\"\",July!F46)","v":""}]
[null,null,null,null,null,null,null,null,null,null,null,null,null,null,null,null,null,null,null,null,null,null,null,null,null,null,null,null,null,null,null,{"$f":"IF(July!C47=\"\",\"\",July!C47)","v":""},{"$f":"IF(July!D47=\"\",\"\",July!D47)","v":""},{"$f":"IF(July!F47=\"\",\"\",July!F47)","v":""}]
[null,{"$f":"IF(B15=\"april\",4,IF(B15=\"may\",5,IF(B15=\"june\",6,IF(B15=\"july\",7,IF(B15=\"august\",8,IF(B15=\"september\",9,10))))))","v":8},null,null,null,null,null,null,null,null,null,null,null,null,null,null,null,null,null,null,null,null,null,null,null,null,null,null,null,null,null,{"$f":"IF(July!C48=\"\",\"\",July!C48)","v":""},{"$f":"IF(July!D48=\"\",\"\",July!D48)","v":""},{"$f":"IF(July!F48=\"\",\"\",July!F48)","v":""}]
[null,"August","Effluent",null,null,"Ambient",null,null,null,null,null,null,null,null,"Thermal Load Option"]
[null,{"$f":"April!B16","v":2011},"Flow","Max Temp","7-day Temp","Flow","7-day Flow","Avg Temp","Max Temp",null,"Thermal Load Option",null,null,null,"With Temporary Loan",null,null,null,null,null,null,null,null,null,"Exceedances",null,null,"Exceedances with loan"]
[null,"Date","(mgd)","(deg C)","(deg C)","(cfs)","(cfs)","TRA","TRM","ETL","Option 1","Option 2","Option 3","Exceedance","Option 1","Option 2","Option 3","Exceedance","Comments",null,null,null,null,null,"Option 1","Option 2","Option 3","Option 1","Option 2","Option 3","Julian Day","Qe7 (cfs)","Te7","Qr7","TRA_N","TRA_N7","TRA_N'","TRM_N","TRM_N7","Trc","a","a'","m","b","d"]
[1,{"$f":"DATE(B$16,B$14,A18)","v":"2011-08-01"},null,null,{"$f":"IF(AG18=\"need data\",\"\",AG18)","v":""},null,{"$f":"IF(AH18=\"need data\",\"\",AH18)","v":""},null,null,{"$f":"IF(K18=\"\",\"\",IF(OR(AF18=\"need data\",AG18=\"need data\"),\"need data\",IF(AF18*2.447*(AG18-AN18)*1.547<0,0,AF18*2.447*(AG18-AN18)*1.547)))","v":"need data"},{"$f":"IF(OR(AND($AE18>=X$8,$AE18<X$8+6),AND($AE18>Y$8,$AE18<Y$8+7)),\"\",IF(AND($AE18>=X$8,$AE18<=Y$8),$M$8,$M$9))","v":0},{"$f":"IF(K18=\"\",\"\",IF(COUNT(July!F43:F48,August!F18)<>7,\"no data\",($AQ18*$AH18+$AR18-$AP18)*$D$11*2.447*($C$11-$AN18)))","v":"no data"},{"$f":"IF(K18=\"\",\"\",IF(OR(COUNT(July!F$42:F$47,August!F18)<>7,COUNT(July!H42:H47,August!H18)<>7,COUNT(July!I42:I47,August!I18)<>7),\"no data\",($AQ18*$AH18+$AR18-$AO18)*$D$11*2.447*($C$11-$AN18)))","v":"no data"},{"$f":"IF(K18=\"\",\"\",IF(J18=\"need data\",\"need data\",IF(AA18<>\"no data\",AA18,IF(Z18<>\"no data\",Z18,Y18))))","v":"need data"},{"$f":"IF($K18=\"\",\"\",IF($K18=$M$9,K18*$N$9,K18*$N$8))","v":0},{"$f":"IF($K18=\"\",\"\",IF(L18=\"no data\",\"no data\",IF($K18=$M$9,L18*$N$9,L18*$N$8)))","v":"no data"},{"$f":"IF($K18=\"\",\"\",IF(M18=\"no data\",\"no data\",IF($K18=$M$9,M18*$N$9,M18*$N$8)))","v":"no data"},{"$f":"IF(O18=\"\",\"\",IF(J18=\"need data\",\"need data\",IF(AD18<>\"no data\",AD18,IF(AC18<>\"no data\",AC18,AB18))))","v":"need data"},null,null,null,null,null,null,{"$f":"IF(J18=\"\",\" \",IF(RoundEven($J18-K18,0)>0,$J18-K18,\" \"))","v":{"$error":"#VALUE!"}},{"$f":"IF(L18=\"no data\",\"no data\",IF(L18=\"\",\" \",IF(RoundEven($J18-L18,0)>0,$J18-L18,\" \")))","v":"no data"},{"$f":"IF(M18=\"no data\",\"no data\",IF(M18=\"\",\" \",IF(RoundEven($J18-M18,0)>0,$J18-M18,\" \")))","v":"no data"},{"$f":"IF($J18=\"\",\" \",IF(RoundEven($J18-O18,0)>0,$J18-O18,\" \"))","v":{"$error":"#VALUE!"}},{"$f":"IF(P18=\"no data\",\"no data\",IF(P18=\"\",\" \",IF(RoundEven($J18-P18,0)>0,$J18-P18,\" \")))","v":"no data"},{"$f":"IF(Q18=\"no data\",\"no data\",IF(Q18=\"\",\" \",IF(RoundEven($J18-Q18,0)>0,$J18-Q18,\" \")))","v":"no data"},{"$f":"VALUE(TEXT((B18-DATEVALUE(\"1/1/\"&TEXT(B18,\"yy\"))+1),\"000\"))","v":213},{"$f":"IF(COUNT(AF9:AF14,C18)<>7,\"need data\",AVERAGE(AF9:AF14,C18))","v":"need data"},{"$f":"IF(COUNT(AG9:AG14,D18)<>7,\"need data\",AVERAGE(AG9:AG14,D18))","v":"need data"},{"$f":"IF(COUNT(AH9:AH14,F18)<>7,\"need data\",AVERAGE(AH9:AH14,F18))","v":"need data"},{"$f":"H$11*H18+I$11","v":0},{"$f":"AVERAGE(July!AI43:AI48,August!AI18)","v":0},{"$f":"IF(AND($AE18>=X$8,$AE18<=Y$8),$L$8,$L$9)","v":0},{"$f":"H$10*I18+I$10","v":0},{"$f":"AVERAGE(July!AL43:AL48,August!AL18)","v":0},{"$f":"IF(AND($AE18>=$X$8,$AE18<=$Y$8),$I$8,$I$9)","v":0},{"$f":"IF(OR(AM18<=AN18,AND(AM18>AN18,AJ18>=AN18)),0,(1-(AJ18/AN18)))","v":0},{"$f":"1-AK18/AN18","v":{"$error":"#DIV/0!"}},{"$f":"IF($AN18=13,J$9,J$8)","v":0},{"$f":"IF($AN18=13,K$9,K$8)","v":0},{"$f":"(AQ18*F18+AR18-AO18)","v":0}]
[2,"2011-08-02",null,null,{"$f":"IF(AG19=\"need data\",\"\",AG19)","v":""},null,{"$f":"IF(AH19=\"need data\",\"\",AH19)","v":""},null,null,{"$f":"IF(K19=\"\",\"\",IF(OR(AF19=\"need data\",AG19=\"need data\"),\"need data\",IF(AF19*2.447*(AG19-AN19)*1.547<0,0,AF19*2.447*(AG19-AN19)*1.547)))","v":"need data"},0,{"$f":"IF(K19=\"\",\"\",IF(COUNT(July!F44:F48,August!F18:F19)<>7,\"no data\",($AQ19*$AH19+$AR19-$AP19)*$D$11*2.447*($C$11-$AN19)))","v":"no data"},{"$f":"IF(K19=\"\",\"\",IF(OR(COUNT(July!F$43:F$47,August!F18:F19)<>7,COUNT(July!H$43:H$47,August!H18:H19)<>7,COUNT(July!I$43:I$47,August!I18:I19)<>7),\"no data\",($AQ19*$AH19+$AR19-$AO19)*$D$11*2.447*($C$11-$AN19)))","v":"no data"},"need data",0,"no data","no data",{"$f":"IF(O19=\"\",\"\",IF(J19=\"need data\",\"need data\",IF(AD19<>\"no data\",AD19,IF(AC19<>\"no data\",AC19,AB19))))","v":"need data"},null,null,null,null,null,null,{"$f":"IF(J19=\"\",\" \",IF(RoundEven($J19-K19,0)>0,$J19-K19,\" \"))","v":{"$error":"#VALUE!"}},{"$f":"IF(L19=\"no data\",\"no data\",IF(L19=\"\",\" \",IF(RoundEven($J19-L19,0)>0,$J19-L19,\" \")))","v":"no data"},{"$f":"IF(M19=\"no data\",\"no data\",IF(M19=\"\",\" \",IF(RoundEven($J19-M19,0)>0,$J19-M19,\" \")))","v":"no data"},{"$f":"IF($J19=\"\",\" \",IF(RoundEven($J19-O19,0)>0,$J19-O19,\" \"))","v":{"$error":"#VALUE!"}},{"$f":"IF(P19=\"no data\",\"no data\",IF(P19=\"\",\" \",IF(RoundEven($J19-P19,0)>0,$J19-P19,\" \")))","v":"no data"},"no data",214,{"$f":"IF(COUNT(AF10:AF14,C18:C19)<>7,\"need data\",AVERAGE(AF10:AF14,C18:C19))","v":"need data"},{"$f":"IF(COUNT(AG10:AG14,D18:D19)<>7,\"need data\",AVERAGE(AG10:AG14,D18:D19))","v":"need data"},{"$f":"IF(COUNT(AH10:AH14,F18:F19)<>7,\"need data\",AVERAGE(AH10:AH14,F18:F19))","v":"need data"},0,{"$f":"AVERAGE(July!AI44:AI48,August!AI18:AI19)","v":0},0,0,{"$f":"AVERAGE(July!AL44:AL48,August!AL18:AL19)","v":0},0,0,{"$error":"#DIV/0!"},0,0,0]
[3,"2011-08-03",null,null,"",null,"",null,null,"need data",0,{"$f":"IF(K20=\"\",\"\",IF(COUNT(July!F45:F48,August!F18:F20)<>7,\"no data\",($AQ20*$AH20+$AR20-$AP20)*$D$11*2.447*($C$11-$AN20)))","v":"no data"},{"$f":"IF(K20=\"\",\"\",IF(OR(COUNT(July!F44:F47,August!F18:F20)<>7,COUNT(July!H44:H47,August!H18:H20)<>7,COUNT(July!I44:I47,August!I18:I20)<>7),\"no data\",($AQ20*$AH20+$AR20-$AO20)*$D$11*2.447*($C$11-$AN20)))","v":"no data"},"need data",0,"no data","no data","need data",null,null,null,null,null,null,{"$error":"#VALUE!"},"no data","no data",{"$error":"#VALUE!"},"no data","no data",215,{"$f":"IF(COUNT(AF11:AF14,C18:C20)<>7,\"need data\",AVERAGE(AF11:AF14,C18:C20))","v":"need data"},{"$f":"IF(COUNT(AG11:AG14,D18:D20)<>7,\"need data\",AVERAGE(AG11:AG14,D18:D20))","v":"need data"},{"$f":"IF(COUNT(AH11:AH14,F18:F20)<>7,\"need data\",AVERAGE(AH11:AH14,F18:F20))","v":"need data"},0,{"$f":"AVERAGE(July!AI45:AI48,August!AI18:AI20)","v":0},0,0,{"$f":"AVERAGE(July!AL45:AL48,August!AL18:AL20)","v":0},0,0,{"$error":"#DIV/0!"},0,0,0]
[4,"2011-08-04",null,null,"",null,"",null,null,"need data",0,{"$f":"IF(K21=\"\",\"\",IF(COUNT(July!F46:F48,August!F18:F21)<>7,\"no data\",($AQ21*$AH21+$AR21-$AP21)*$D$11*2.447*($C$11-$AN21)))","v":"no data"},{"$f":"IF(K21=\"\",\"\",IF(OR(COUNT(July!F45:F47,August!F18:F21)<>7,COUNT(July!H45:H47,August!H18:H21)<>7,COUNT(July!I45:I47,August!I18:I21)<>7),\"no data\",($AQ21*$AH21+$AR21-$AO21)*$D$11*2.447*($C$11-$AN21)))","v":"no data"},"need data",0,"no data","no data","need data",null,null,null,null,null,null,{"$error":"#VALUE!"},"no data","no data",{"$error":"#VALUE!"},"no data","no data",216,{"$f":"IF(COUNT(AF12:AF14,C18:C21)<>7,\"need data\",AVERAGE(AF12:AF14,C18:C21))","v":"need data"},{"$f":"IF(COUNT(AG12:AG14,D18:D21)<>7,\"need data\",AVERAGE(AG12:AG14,D18:D21))","v":"need data"},{"$f":"IF(COUNT(AH12:AH14,F18:F21)<>7,\"need data\",AVERAGE(AH12:AH14,F18:F21))","v":"need data"},0,{"$f":"AVERAGE(July!AI46:AI48,August!AI18:AI21)","v":0},0,0,{"$f":"AVERAGE(July!AL46:AL48,August!AL18:AL21)","v":0},0,0,{"$error":"#DIV/0!"},0,0,0]
[5,"2011-08-05",null,null,"",null,"",null,null,"need data",0,{"$f":"IF(K22=\"\",\"\",IF(COUNT(July!F47:F48,August!F18:F22)<>7,\"no data\",($AQ22*$AH22+$AR22-$AP22)*$D$11*2.447*($C$11-$AN22)))","v":"no data"},{"$f":"IF(K22=\"\",\"\",IF(OR(COUNT(July!F46:F47,August!F18:F22)<>7,COUNT(July!H46:H47,August!H18:H22)<>7,COUNT(July!I46:I47,August!I18:I22)<>7),\"no data\",($AQ22*$AH22+$AR22-$AO22)*$D$11*2.447*($C$11-$AN22)))","v":"no data"},"need data",0,"no data","no data","need data",null,null,null,null,null,null,{"$error":"#VALUE!"},"no data","no data",{"$error":"#VALUE!"},"no data","no data",217,{"$f":"IF(COUNT(AF13:AF14,C18:C22)<>7,\"need data\",AVERAGE(AF13:AF14,C18:C22))","v":"need data"},{"$f":"IF(COUNT(AG13:AG14,D18:D22)<>7,\"need data\",AVERAGE(AG13:AG14,D18:D22))","v":"need data"},{"$f":"IF(COUNT(AH13:AH14,F18:F22)<>7,\"need data\",AVERAGE(AH13:AH14,F18:F22))","v":"need data"},0,{"$f":"AVERAGE(July!AI47:AI48,August!AI18:AI22)","v":0},0,0,{"$f":"AVERAGE(July!AL47:AL48,August!AL18:AL22)","v":0},0,0,{"$error":"#DIV/0!"},0,0,0]
[6,"2011-08-06",null,null,"",null,"",null,null,"need data",0,{"$f":"IF(K23=\"\",\"\",IF(COUNT(July!F48:F48,August!F18:F23)<>7,\"no data\",($AQ23*$AH23+$AR23-$AP23)*$D$11*2.447*($C$11-$AN23)))","v":"no data"},{"$f":"IF(K23=\"\",\"\",IF(OR(COUNT(July!F47:F47,August!F18:F23)<>7,COUNT(July!H47:H47,August!H18:H23)<>7,COUNT(July!I47:I47,August!I18:I23)<>7),\"no data\",($AQ23*$AH23+$AR23-$AO23)*$D$11*2.447*($C$11-$AN23)))","v":"no data"},"need data",0,"no data","no data","need data",null,null,null,null,null,null,{"$error":"#VALUE!"},"no data","no data",{"$error":"#VALUE!"},"no data","no data",218,{"$f":"IF(COUNT(AF14,C18:C23)<>7,\"need data\",AVERAGE(AF14,C18:C23))","v":"need data"},{"$f":"IF(COUNT(AG14,D18:D23)<>7,\"need data\",AVERAGE(AG14,D18:D23))","v":"need data"},{"$f":"IF(COUNT(AH14,F18:F23)<>7,\"need data\",AVERAGE(AH14,F18:F23))","v":"need data"},0,{"$f":"AVERAGE(July!AI48:AI48,August!AI18:AI23)","v":0},0,0,{"$f":"AVERAGE(July!AL48:AL48,August!AL18:AL23)","v":0},0,0,{"$error":"#DIV/0!"},0,0,0]
[7,"2011-08-07",null,null,"",null,"",null,null,"need data",0,{"$f":"IF(K24=\"\",\"\",IF(COUNT(F18:F24)<>7,\"no data\",($AQ24*$AH24+$AR24-$AP24)*$D$11*2.447*($C$11-$AN24)))","v":"no data"},{"$f":"IF(K24=\"\",\"\",IF(OR(COUNT(F18:F24)<>7,COUNT(H18:H24)<>7,COUNT(I18:I24)<>7),\"no data\",($AQ24*$AH24+$AR24-$AO24)*$D$11*2.447*($C$11-$AN24)))","v":"no data"},"need data",0,"no data","no data","need data",null,null,null,null,null,null,{"$error":"#VALUE!"},"no data","no data",{"$error":"#VALUE!"},"no data","no data",219,{"$f":"IF(COUNT(C18:C24)<>7,\"need data\",AVERAGE(C18:C24))","v":"need data"},{"$f":"IF(COUNT(D18:D24)<>7,\"need data\",AVERAGE(D18:D24))","v":"need data"},{"$f":"IF(COUNT(F18:F24)<>7,\"need data\",AVERAGE(F18:F24))","v":"need data"},0,{"$f":"AVERAGE(AI18:AI24)","v":0},0,0,{"$f":"AVERAGE(AL18:AL24)","v":0},0,0,{"$error":"#DIV/0!"},0,0,0]
[8,"2011-08-08",null,null,"",null,"",null,null,"need data",0,"no data","no data",{"$f":"IF(K25=\"\",\"\",IF(J25=\"need data\",\"need data\",IF(AA25<>\"no data\",AA25,IF(Z25<>\"no data\",Z25,Y25))))","v":"need data"},0,"no data","no data","need data",null,null,null,null,null,null,{"$error":"#VALUE!"},"no data","no data",{"$error":"#VALUE!"},"no data","no data",220,"need data","need data","need data",0,0,0,0,0,0,0,{"$error":"#DIV/0!"},0,0,0]
[9,"2011-08-09",null,null,"",null,"",null,null,"need data",0,"no data","no data",{"$f":"IF(K26=\"\",\"\",IF(J26=\"need data\",\"need data\",IF(AA26<>\"no data\",AA26,IF(Z26<>\"no data\",Z26,Y26))))","v":"need data"},0,"no data","no data","need data",null,null,null,null,null,null,{"$error":"#VALUE!"},"no data","no data",{"$error":"#VALUE!"},"no data","no data",221,"need data","need data","need data",0,0,0,0,0,0,0,{"$error":"#DIV/0!"},0,0,0]
[10,"2011-08-10",null,null,"",null,"",null,null,"need data",0,"no data","no data","need data",0,"no data","no data","need data",null,null,null,null,null,null,{"$error":"#VALUE!"},"no data","no data",{"$error":"#VALUE!"},"no data","no data",222,"need data","need data","need data",0,0,0,0,0,0,0,{"$error":"#DIV/0!"},0,0,0]
[11,"2011-08-11",null,null,"",null,"",null,null,"need data",0,"no data","no data","need data",0,"no data","no data","need data",null,null,null,null,null,null,{"$error":"#VALUE!"},"no data","no data",{"$error":"#VALUE!"},"no data","no data",223,"need data","need data","need data",0,0,0,0,0,0,0,{"$error":"#DIV/0!"},0,0,0]
[12,"2011-08-12",null,null,"",null,"",null,null,"need data",0,"no data","no data","need data",0,"no data","no data","need data",null,null,null,null,null,null,{"$error":"#VALUE!"},"no data","no data",{"$error":"#VALUE!"},"no data","no data",224,"need data","need data","need data",0,0,0,0,0,0,0,{"$error":"#DIV/0!"},0,0,0]
[13,"2011-08-13",null,null,"",null,"",null,null,"need data",0,"no data","no data","need data",0,"no data","no data","need data",null,null,null,null,null,null,{"$error":"#VALUE!"},"no data","no data",{"$error":"#VALUE!"},"no data","no data",225,"need data","need data","need data",0,0,0,0,0,0,0,{"$error":"#DIV/0!"},0,0,0]
[14,"2011-08-14",null,null,"",null,"",null,null,"need data",0,"no data","no data","need data",0,"no data","no data","need data",null,null,null,null,null,null,{"$error":"#VALUE!"},"no data","no data",{"$error":"#VALUE!"},"no data","no data",226,"need data","need data","need data",0,0,0,0,0,0,0,{"$error":"#DIV/0!"},0,0,0]
[15,"2011-08-15",null,null,"",null,"",null,null,"need data",0,"no data","no data","need data",0,"no data","no data","need data",null,null,null,null,null,null,{"$error":"#VALUE!"},"no data","no data",{"$error":"#VALUE!"},"no data","no data",227,"need data","need data","need data",0,0,0,0,0,0,0,{"$error":"#DIV/0!"},0,0,0]
[16,"2011-08-16",null,null,"",null,"",null,null,"need data",0,"no data","no data","need data",0,"no data","no data","need data",null,null,null,null,null,null,{"$error":"#VALUE!"},"no data","no data",{"$error":"#VALUE!"},"no data","no data",228,"need data","need data","need data",0,0,0,0,0,0,0,{"$error":"#DIV/0!"},0,0,0]
[17,"2011-08-17",null,null,"",null,"",null,null,"need data",0,"no data","no data","need data",0,"no data","no data","need data",null,null,null,null,null,null,{"$error":"#VALUE!"},"no data","no data",{"$error":"#VALUE!"},"no data","no data",229,"need data","need data","need data",0,0,0,0,0,0,0,{"$error":"#DIV/0!"},0,0,0]
[18,"2011-08-18",null,null,"",null,"",null,null,"need data",0,"no data","no data","need data",0,"no data","no data","need data",null,null,null,null,null,null,{"$error":"#VALUE!"},"no data","no data",{"$error":"#VALUE!"},"no data","no data",230,"need data","need data","need data",0,0,0,0,0,0,0,{"$error":"#DIV/0!"},0,0,0]
[19,"2011-08-19",null,null,"",null,"",null,null,"need data",0,"no data","no data","need data",0,"no data","no data","need data",null,null,null,null,null,null,{"$error":"#VALUE!"},"no data","no data",{"$error":"#VALUE!"},"no data","no data",231,"need data","need data","need data",0,0,0,0,0,0,0,{"$error":"#DIV/0!"},0,0,0]
[20,"2011-08-20",null,null,"",null,"",null,null,"need data",0,"no data","no data","need data",0,"no data","no data","need data",null,null,null,null,null,null,{"$error":"#VALUE!"},"no data","no data",{"$error":"#VALUE!"},"no data","no data",232,"need data","need data","need data",0,0,0,0,0,0,0,{"$error":"#DIV/0!"},0,0,0]
[21,"2011-08-21",null,null,"",null,"",null,null,"need data",0,"no data","no data","need data",0,"no data","no data","need data",null,null,null,null,null,null,{"$error":"#VALUE!"},"no data","no data",{"$error":"#VALUE!"},"no data","no data",233,"need data","need data","need data",0,0,0,0,0,0,0,{"$error":"#DIV/0!"},0,0,0]
[22,"2011-08-22",null,null,"",null,"",null,null,"need data",0,"no data","no data","need data",0,"no data","no data","need data",null,null,null,null,null,null,{"$error":"#VALUE!"},"no data","no data",{"$error":"#VALUE!"},"no data","no data",234,"need data","need data","need data",0,0,0,0,0,0,0,{"$error":"#DIV/0!"},0,0,0]
[23,"2011-08-23",null,null,"",null,"",null,null,"need data",0,"no data","no data","need data",0,"no data","no data","need data",null,null,null,null,null,null,{"$error":"#VALUE!"},"no data","no data",{"$error":"#VALUE!"},"no data","no data",235,"need data","need data",{"$f":"IF(COUNT(F34:F40)<>7,\"need data\",AVERAGE(F34:F40))","v":"need data"},0,0,0,0,0,0,0,{"$error":"#DIV/0!"},0,0,0]
[24,"2011-08-24",null,null,"",null,"",null,null,"need data",0,"no data","no data",{"$f":"IF(K41=\"\",\"\",IF(J41=\"need data\",\"need data\",IF(AA41<>\"no data\",AA41,IF(Z41<>\"no data\",Z41,Y41))))","v":"need data"},0,"no data","no data","need data",null,null,null,null,null,null,{"$error":"#VALUE!"},"no data","no data",{"$error":"#VALUE!"},"no data","no data",236,"need data","need data",{"$f":"IF(COUNT(F35:F41)<>7,\"need data\",AVERAGE(F35:F41))","v":"need data"},0,0,0,0,0,0,0,{"$error":"#DIV/0!"},0,0,0]
[25,"2011-08-25",null,null,"",null,"",null,null,"need data",0,"no data","no data","need data",0,"no data","no data","need data",null,null,null,null,null,null,{"$error":"#VALUE!"},"no data","no data",{"$error":"#VALUE!"},"no data","no data",237,"need data","need data","need data",0,0,0,0,0,0,0,{"$error":"#DIV/0!"},0,0,0]
[26,"2011-08-26",null,null,"",null,"",null,null,"need data",0,"no data","no data","need data",0,"no data","no data","need data",null,null,null,null,null,null,{"$error":"#VALUE!"},"no data","no data",{"$error":"#VALUE!"},"no data","no data",238,"need data","need data","need data",0,0,0,0,0,0,0,{"$error":"#DIV/0!"},0,0,0]
[27,"2011-08-27",null,null,"",null,"",null,null,"need data",0,"no data","no data","need data",0,"no data","no data","need data",null,null,null,null,null,null,{"$error":"#VALUE!"},"no data","no data",{"$error":"#VALUE!"},"no data","no data",239,"need data","need data","need data",0,0,0,0,0,0,0,{"$error":"#DIV/0!"},0,0,0]
[28,"2011-08-28",null,null,"",null,"",null,null,"need data",0,"no data","no data","need data",0,"no data","no data","need data",null,null,null,null,null,null,{"$error":"#VALUE!"},"no data","no data",{"$error":"#VALUE!"},"no data","no data",240,"need data","need data","need data",0,0,0,0,0,0,0,{"$error":"#DIV/0!"},0,0,0]
[29,"2011-08-29",null,null,"",null,"",null,null,"need data",0,"no data","no data","need data",0,"no data","no data","need data",null,null,null,null,null,null,{"$error":"#VALUE!"},"no data","no data",{"$error":"#VALUE!"},"no data","no data",241,"need data","need data","need data",0,0,0,0,0,0,0,{"$error":"#DIV/0!"},0,0,0]
[30,"2011-08-30",null,null,"",null,"",null,null,"need data",0,"no data","no data","need data",0,"no data","no data","need data",null,null,null,null,null,null,{"$error":"#VALUE!"},"no data","no data",{"$error":"#VALUE!"},"no data","no data",242,"need data","need data","need data",0,0,0,0,0,0,0,{"$error":"#DIV/0!"},0,0,0]
[31,"2011-08-31",null,null,"",null,"",null,null,"need data",0,"no data","no data","need data",0,"no data","no data","need data",null,null,null,null,null,null,{"$error":"#VALUE!"},"no data","no data",{"$error":"#VALUE!"},"no data","no data",{"$f":"VALUE(TEXT((B48-DATEVALUE(\"1/1/\"&TEXT(B48,\"yy\"))+1),\"000\"))","v":243},{"$f":"IF(COUNT(C42:C48)<>7,\"need data\",AVERAGE(C42:C48))","v":"need data"},{"$f":"IF(COUNT(D42:D48)<>7,\"need data\",AVERAGE(D42:D48))","v":"need data"},{"$f":"IF(COUNT(F42:F48)<>7,\"need data\",AVERAGE(F42:F48))","v":"need data"},0,0,0,0,0,0,{"$f":"IF(OR(AM48<=AN48,AND(AM48>AN48,AJ48>=AN48)),0,(1-(AJ48/AN48)))","v":0},{"$f":"1-AK48/AN48","v":{"$error":"#DIV/0!"}},0,0,0]

{"sheet":"September","index":6,"n_rows":48,"n_cols":45,"rows_kept":48,"cut":false,"hidden":false,"merged":[[14,14,14,16],[15,14,15,16],[9,11,10,11],[15,27,15,29],[3,4,3,10],[9,4,10,5],[15,10,15,12],[4,2,4,10],[5,4,5,5],[5,6,5,7],[5,23,5,24],[14,2,14,4],[14,5,14,8]]}
[]
[]
[]
[null,null,null,"Facility Name:",{"$f":"April!E4","v":"Enter Name Here"}]
[null,null,"Constants used to calculate Thermal Load Limits (TLL)"]
[null,null,null,null,"Start",null,"End",null,null,null,null,"Option 2","Option 1","TRC Loan",null,null,null,null,null,null,null,null,null,"Julian Dates"]
[null,null,null,null,"Month","Day","Month","Day","Trc","m","b","TRA_N","TLL","Factor",null,null,null,null,null,null,null,null,null,"Rearing/Mig","Spawning"]
[null,null,null,"Rearing & Migration",{"$f":"April!E8","v":5},{"$f":"April!F8","v":16},{"$f":"April!G8","v":10},{"$f":"April!H8","v":14},{"$f":"April!I8","v":0},{"$f":"April!J8","v":0},{"$f":"April!K8","v":0},{"$f":"April!L8","v":0},{"$f":"April!M8","v":0},{"$f":"April!N8","v":0},null,null,null,null,null,null,null,null,null,{"$f":"X9-DATEVALUE(\"1/1/\"&$B16)+1","v":136},{"$f":"Y9-DATEVALUE(\"1/1/\"&B16)+1","v":287},null,null,null,null,null,null,"Qe","Te","Qr"]
[null,null,null,"Spawning",null,null,null,null,{"$f":"April!I9","v":0},{"$f":"April!J9","v":0},{"$f":"April!K9","v":0},{"$f":"April!L9","v":0},{"$f":"April!M9","v":0},{"$f":"April!N9","v":0},null,null,null,null,null,null,null,null,null,{"$f":"DATE($B16,E8,F8)","v":"2011-05-16"},{"$f":"DATE($B16,G8,H8)","v":"2011-10-14"},null,null,null,null,null,null,{"$f":"IF(August!C43=\"\",\"\",August!C43)","v":""},{"$f":"IF(August!D43=\"\",\"\",August!D43)","v":""},{"$f":"IF(August!F43=\"\",\"\",August!F43)","v":""}]
[null,null,"TPS","QPS","NTP Coefficients",null,"Maximum",{"$f":"April!H10","v":0},{"$f":"April!I10","v":0},null,null,null,null,null,null,null,null,null,null,null,null,null,null,null,null,null,null,null,null,null,null,{"$f":"IF(August!C44=\"\",\"\",August!C44)","v":""},{"$f":"IF(August!D44=\"\",\"\",August!D44)","v":""},{"$f":"IF(August!F44=\"\",\"\",August!F44)","v":""}]
[null,null,{"$f":"April!C11","v":0},{"$f":"April!D11","v":0},null,null,"Average",{"$f":"April!H11","v":0},{"$f":"April!I11","v":0},null,null,null,null,null,null,null,null,null,null,null,null,null,null,null,null,null,null,null,null,null,"Last 6 days",{"$f":"IF(August!C45=\"\",\"\",August!C45)","v":""},{"$f":"IF(August!D45=\"\",\"\",August!D45)","v":""},{"$f":"IF(August!F45=\"\",\"\",August!F45)","v":""}]
[null,null,null,null,null,null,null,null,null,null,null,{"$f":"April!L12","v":"Version 1.1"},null,null,null,null,null,null,null,null,null,null,null,null,null,null,null,null,null,null,"in August",{"$f":"IF(August!C46=\"\",\"\",August!C46)","v":""},{"$f":"IF(August!D46=\"\",\"\",August!D46)","v":""},{"$f":"IF(August!F46=\"\",\"\",August!F46)","v":""}]
[null,null,null,null,null,null,null,null,null,null,null,null,null,null,null,null,null,null,null,null,null,null,null,null,null,null,null,null,null,null,null,{"$f":"IF(August!C47=\"\",\"\",August!C47)","v":""},{"$f":"IF(August!D47=\"\",\"\",August!D47)","v":""},{"$f":"IF(August!F47=\"\",\"\",August!F47)","v":""}]
[null,{"$f":"IF(B15=\"april\",4,IF(B15=\"may\",5,IF(B15=\"june\",6,IF(B15=\"july\",7,IF(B15=\"august\",8,IF(B15=\"september\",9,10))))))","v":9},null,null,null,null,null,null,null,null,null,null,null,null,null,null,null,null,null,null,null,null,null,null,null,null,null,null,null,null,null,{"$f":"IF(August!C48=\"\",\"\",August!C48)","v":""},{"$f":"IF(August!D48=\"\",\"\",August!D48)","v":""},{"$f":"IF(August!F48=\"\",\"\",August!F48)","v":""}]
[null,"September","Effluent",null,null,"Ambient",null,null,null,null,null,null,null,null,"Thermal Load Option"]
[null,{"$f":"April!B16","v":2011},"Flow","Max Temp","7-day Temp","Flow","7-day Flow","Avg Temp","Max Temp",null,"Thermal Load Option",null,null,null,"With Temporary Loan",null,null,null,null,null,null,null,null,null,"Exceedances",null,null,"Exceedances with loan"]
[null,"Date","(mgd)","(deg C)","(deg C)","(cfs)","(cfs)","TRA","TRM","ETL","Option 1","Option 2","Option 3","Exceedance","Option 1","Option 2","Option 3","Exceedance","Comments",null,null,null,null,null,"Option 1","Option 2","Option 3","Option 1","Option 2","Option 3","Julian Day","Qe7 (cfs)","Te7","Qr7","TRA_N","TRA_N7","TRA_N'","TRM_N","TRM_N7","Trc","a","a'","m","b","d"]
[1,{"$f":"DATE(B$16,B$14,A18)","v":"2011-09-01"},null,null,{"$f":"IF(AG18=\"need data\",\"\",AG18)","v":""},null,{"$f":"IF(AH18=\"need data\",\"\",AH18)","v":""},null,null,{"$f":"IF(K18=\"\",\"\",IF(OR(AF18=\"need data\",AG18=\"need data\"),\"need data\",IF(AF18*2.447*(AG18-AN18)*1.547<0,0,AF18*2.447*(AG18-AN18)*1.547)))","v":"need data"},{"$f":"IF(OR(AND($AE18>=X$8,$AE18<X$8+6),AND($AE18>Y$8,$AE18<Y$8+7)),\"\",IF(AND($AE18>=X$8,$AE18<=Y$8),$M$8,$M$9))","v":0},{"$f":"IF(K18=\"\",\"\",IF(COUNT(August!F43:F48,September!F18)<>7,\"no data\",($AQ18*$AH18+$AR18-$AP18)*$D$11*2.447*($C$11-$AN18)))","v":"no data"},{"$f":"IF(K18=\"\",\"\",IF(OR(COUNT(August!F$42:F$47,September!F18)<>7,COUNT(August!H42:H47,September!H18)<>7,COUNT(August!I42:I47,September!I18)<>7),\"no data\",($AQ18*$AH18+$AR18-$AO18)*$D$11*2.447*($C$11-$AN18)))","v":"no data"},{"$f":"IF(K18=\"\",\"\",IF(J18=\"need data\",\"need data\",IF(AA18<>\"no data\",AA18,IF(Z18<>\"no data\",Z18,Y18))))","v":"need data"},{"$f":"IF($K18=\"\",\"\",IF($K18=$M$9,K18*$N$9,K18*$N$8))","v":0},{"$f":"IF($K18=\"\",\"\",IF(L18=\"no data\",\"no data\",IF($K18=$M$9,L18*$N$9,L18*$N$8)))","v":"no data"},{"$f":"IF($K18=\"\",\"\",IF(M18=\"no data\",\"no data\",IF($K18=$M$9,M18*$N$9,M18*$N$8)))","v":"no data"},{"$f":"IF(O18=\"\",\"\",IF(J18=\"need data\",\"need data\",IF(AD18<>\"no data\",AD18,IF(AC18<>\"no data\",AC18,AB18))))","v":"need data"},null,null,null,null,null,null,{"$f":"IF(J18=\"\",\" \",IF(RoundEven($J18-K18,0)>0,$J18-K18,\" \"))","v":{"$error":"#VALUE!"}},{"$f":"IF(L18=\"no data\",\"no data\",IF(L18=\"\",\" \",IF(RoundEven($J18-L18,0)>0,$J18-L18,\" \")))","v":"no data"},{"$f":"IF(M18=\"no data\",\"no data\",IF(M18=\"\",\" \",IF(RoundEven($J18-M18,0)>0,$J18-M18,\" \")))","v":"no data"},{"$f":"IF($J18=\"\",\" \",IF(RoundEven($J18-O18,0)>0,$J18-O18,\" \"))","v":{"$error":"#VALUE!"}},{"$f":"IF(P18=\"no data\",\"no data\",IF(P18=\"\",\" \",IF(RoundEven($J18-P18,0)>0,$J18-P18,\" \")))","v":"no data"},{"$f":"IF(Q18=\"no data\",\"no data\",IF(Q18=\"\",\" \",IF(RoundEven($J18-Q18,0)>0,$J18-Q18,\" \")))","v":"no data"},{"$f":"VALUE(TEXT((B18-DATEVALUE(\"1/1/\"&TEXT(B18,\"yy\"))+1),\"000\"))","v":244},{"$f":"IF(COUNT(AF9:AF14,C18)<>7,\"need data\",AVERAGE(AF9:AF14,C18))","v":"need data"},{"$f":"IF(COUNT(AG9:AG14,D18)<>7,\"need data\",AVERAGE(AG9:AG14,D18))","v":"need data"},{"$f":"IF(COUNT(AH9:AH14,F18)<>7,\"need data\",AVERAGE(AH9:AH14,F18))","v":"need data"},{"$f":"H$11*H18+I$11","v":0},{"$f":"AVERAGE(August!AI43:AI48,September!AI18)","v":0},{"$f":"IF(AND($AE18>=X$8,$AE18<=Y$8),$L$8,$L$9)","v":0},{"$f":"H$10*I18+I$10","v":0},{"$f":"AVERAGE(August!AL43:AL48,September!AL18)","v":0},{"$f":"IF(AND($AE18>=$X$8,$AE18<=$Y$8),$I$8,$I$9)","v":0},{"$f":"IF(OR(AM18<=AN18,AND(AM18>AN18,AJ18>=AN18)),0,(1-(AJ18/AN18)))","v":0},{"$f":"1-AK18/AN18","v":{"$error":"#DIV/0!"}},{"$f":"IF($AN18=13,J$9,J$8)","v":0},{"$f":"IF($AN18=13,K$9,K$8)","v":0},{"$f":"(AQ18*F18+AR18-AO18)","v":0}]
[2,"2011-09-02",null,null,{"$f":"IF(AG19=\"need data\",\"\",AG19)","v":""},null,{"$f":"IF(AH19=\"need data\",\"\",AH19)","v":""},null,null,{"$f":"IF(K19=\"\",\"\",IF(OR(AF19=\"need data\",AG19=\"need data\"),\"need data\",IF(AF19*2.447*(AG19-AN19)*1.547<0,0,AF19*2.447*(AG19-AN19)*1.547)))","v":"need data"},0,{"$f":"IF(K19=\"\",\"\",IF(COUNT(August!F44:F48,September!F18:F19)<>7,\"no data\",($AQ19*$AH19+$AR19-$AP19)*$D$11*2.447*($C$11-$AN19)))","v":"no data"},{"$f":"IF(K19=\"\",\"\",IF(OR(COUNT(August!F$43:F$47,September!F18:F19)<>7,COUNT(August!H$43:H$47,September!H18:H19)<>7,COUNT(August!I$43:I$47,September!I18:I19)<>7),\"no data\",($AQ19*$AH19+$AR19-$AO19)*$D$11*2.447*($C$11-$AN19)))","v":"no data"},"need data",0,"no data","no data",{"$f":"IF(O19=\"\",\"\",IF(J19=\"need data\",\"need data\",IF(AD19<>\"no data\",AD19,IF(AC19<>\"no data\",AC19,AB19))))","v":"need data"},null,null,null,null,null,null,{"$f":"IF(J19=\"\",\" \",IF(RoundEven($J19-K19,0)>0,$J19-K19,\" \"))","v":{"$error":"#VALUE!"}},{"$f":"IF(L19=\"no data\",\"no data\",IF(L19=\"\",\" \",IF(RoundEven($J19-L19,0)>0,$J19-L19,\" \")))","v":"no data"},{"$f":"IF(M19=\"no data\",\"no data\",IF(M19=\"\",\" \",IF(RoundEven($J19-M19,0)>0,$J19-M19,\" \")))","v":"no data"},{"$f":"IF($J19=\"\",\" \",IF(RoundEven($J19-O19,0)>0,$J19-O19,\" \"))","v":{"$error":"#VALUE!"}},{"$f":"IF(P19=\"no data\",\"no data\",IF(P19=\"\",\" \",IF(RoundEven($J19-P19,0)>0,$J19-P19,\" \")))","v":"no data"},{"$f":"IF(Q19=\"no data\",\"no data\",IF(Q19=\"\",\" \",IF(RoundEven($J19-Q19,0)>0,$J19-Q19,\" \")))","v":"no data"},245,{"$f":"IF(COUNT(AF10:AF14,C18:C19)<>7,\"need data\",AVERAGE(AF10:AF14,C18:C19))","v":"need data"},{"$f":"IF(COUNT(AG10:AG14,D18:D19)<>7,\"need data\",AVERAGE(AG10:AG14,D18:D19))","v":"need data"},{"$f":"IF(COUNT(AH10:AH14,F18:F19)<>7,\"need data\",AVERAGE(AH10:AH14,F18:F19))","v":"need data"},0,{"$f":"AVERAGE(August!AI44:AI48,September!AI18:AI19)","v":0},0,0,{"$f":"AVERAGE(August!AL44:AL48,September!AL18:AL19)","v":0},0,0,{"$error":"#DIV/0!"},0,0,0]
[3,"2011-09-03",null,null,"",null,"",null,null,"need data",0,{"$f":"IF(K20=\"\",\"\",IF(COUNT(August!F45:F48,September!F18:F20)<>7,\"no data\",($AQ20*$AH20+$AR20-$AP20)*$D$11*2.447*($C$11-$AN20)))","v":"no data"},{"$f":"IF(K20=\"\",\"\",IF(OR(COUNT(August!F44:F47,September!F18:F20)<>7,COUNT(August!H44:H47,September!H18:H20)<>7,COUNT(August!I44:I47,September!I18:I20)<>7),\"no data\",($AQ20*$AH20+$AR20-$AO20)*$D$11*2.447*($C$11-$AN20)))","v":"no data"},"need data",0,"no data","no data","need data",null,null,null,null,null,null,{"$error":"#VALUE!"},"no data","no data",{"$f":"IF($J20=\"\",\" \",IF(RoundEven($J20-O20,0)>0,$J20-O20,\" \"))","v":{"$error":"#VALUE!"}},{"$f":"IF(P20=\"no data\",\"no data\",IF(P20=\"\",\" \",IF(RoundEven($J20-P20,0)>0,$J20-P20,\" \")))","v":"no data"},{"$f":"IF(Q20=\"no data\",\"no data\",IF(Q20=\"\",\" \",IF(RoundEven($J20-Q20,0)>0,$J20-Q20,\" \")))","v":"no data"},246,{"$f":"IF(COUNT(AF11:AF14,C18:C20)<>7,\"need data\",AVERAGE(AF11:AF14,C18:C20))","v":"need data"},{"$f":"IF(COUNT(AG11:AG14,D18:D20)<>7,\"need data\",AVERAGE(AG11:AG14,D18:D20))","v":"need data"},{"$f":"IF(COUNT(AH11:AH14,F18:F20)<>7,\"need data\",AVERAGE(AH11:AH14,F18:F20))","v":"need data"},0,{"$f":"AVERAGE(August!AI45:AI48,September!AI18:AI20)","v":0},0,0,{"$f":"AVERAGE(August!AL45:AL48,September!AL18:AL20)","v":0},0,0,{"$error":"#DIV/0!"},0,0,0]
[4,"2011-09-04",null,null,"",null,"",null,null,"need data",0,{"$f":"IF(K21=\"\",\"\",IF(COUNT(August!F46:F48,September!F18:F21)<>7,\"no data\",($AQ21*$AH21+$AR21-$AP21)*$D$11*2.447*($C$11-$AN21)))","v":"no data"},{"$f":"IF(K21=\"\",\"\",IF(OR(COUNT(August!F45:F47,September!F18:F21)<>7,COUNT(August!H45:H47,September!H18:H21)<>7,COUNT(August!I45:I47,September!I18:I21)<>7),\"no data\",($AQ21*$AH21+$AR21-$AO21)*$D$11*2.447*($C$11-$AN21)))","v":"no data"},"need data",0,"no data","no data","need data",null,null,null,null,null,null,{"$error":"#VALUE!"},"no data","no data",{"$f":"IF($J21=\"\",\" \",IF(RoundEven($J21-O21,0)>0,$J21-O21,\" \"))","v":{"$error":"#VALUE!"}},{"$f":"IF(P21=\"no data\",\"no data\",IF(P21=\"\",\" \",IF(RoundEven($J21-P21,0)>0,$J21-P21,\" \")))","v":"no data"},{"$f":"IF(Q21=\"no data\",\"no data\",IF(Q21=\"\",\" \",IF(RoundEven($J21-Q21,0)>0,$J21-Q21,\" \")))","v":"no data"},247,{"$f":"IF(COUNT(AF12:AF14,C18:C21)<>7,\"need data\",AVERAGE(AF12:AF14,C18:C21))","v":"need data"},{"$f":"IF(COUNT(AG12:AG14,D18:D21)<>7,\"need data\",AVERAGE(AG12:AG14,D18:D21))","v":"need data"},{"$f":"IF(COUNT(AH12:AH14,F18:F21)<>7,\"need data\",AVERAGE(AH12:AH14,F18:F21))","v":"need data"},0,{"$f":"AVERAGE(August!AI46:AI48,September!AI18:AI21)","v":0},0,0,{"$f":"AVERAGE(August!AL46:AL48,September!AL18:AL21)","v":0},0,0,{"$error":"#DIV/0!"},0,0,0]
[5,"2011-09-05",null,null,"",null,"",null,null,"need data",0,{"$f":"IF(K22=\"\",\"\",IF(COUNT(August!F47:F48,September!F18:F22)<>7,\"no data\",($AQ22*$AH22+$AR22-$AP22)*$D$11*2.447*($C$11-$AN22)))","v":"no data"},{"$f":"IF(K22=\"\",\"\",IF(OR(COUNT(August!F46:F47,September!F18:F22)<>7,COUNT(August!H46:H47,September!H18:H22)<>7,COUNT(August!I46:I47,September!I18:I22)<>7),\"no data\",($AQ22*$AH22+$AR22-$AO22)*$D$11*2.447*($C$11-$AN22)))","v":"no data"},"need data",0,"no data","no data","need data",null,null,null,null,null,null,{"$error":"#VALUE!"},"no data","no data",{"$f":"IF($J22=\"\",\" \",IF(RoundEven($J22-O22,0)>0,$J22-O22,\" \"))","v":{"$error":"#VALUE!"}},{"$f":"IF(P22=\"no data\",\"no data\",IF(P22=\"\",\" \",IF(RoundEven($J22-P22,0)>0,$J22-P22,\" \")))","v":"no data"},{"$f":"IF(Q22=\"no data\",\"no data\",IF(Q22=\"\",\" \",IF(RoundEven($J22-Q22,0)>0,$J22-Q22,\" \")))","v":"no data"},248,{"$f":"IF(COUNT(AF13:AF14,C18:C22)<>7,\"need data\",AVERAGE(AF13:AF14,C18:C22))","v":"need data"},{"$f":"IF(COUNT(AG13:AG14,D18:D22)<>7,\"need data\",AVERAGE(AG13:AG14,D18:D22))","v":"need data"},{"$f":"IF(COUNT(AH13:AH14,F18:F22)<>7,\"need data\",AVERAGE(AH13:AH14,F18:F22))","v":"need data"},0,{"$f":"AVERAGE(August!AI47:AI48,September!AI18:AI22)","v":0},0,0,{"$f":"AVERAGE(August!AL47:AL48,September!AL18:AL22)","v":0},0,0,{"$error":"#DIV/0!"},0,0,0]
[6,"2011-09-06",null,null,"",null,"",null,null,"need data",0,{"$f":"IF(K23=\"\",\"\",IF(COUNT(August!F48:F48,September!F18:F23)<>7,\"no data\",($AQ23*$AH23+$AR23-$AP23)*$D$11*2.447*($C$11-$AN23)))","v":"no data"},{"$f":"IF(K23=\"\",\"\",IF(OR(COUNT(August!F47:F47,September!F18:F23)<>7,COUNT(August!H47:H47,September!H18:H23)<>7,COUNT(August!I47:I47,September!I18:I23)<>7),\"no data\",($AQ23*$AH23+$AR23-$AO23)*$D$11*2.447*($C$11-$AN23)))","v":"no data"},"need data",0,"no data","no data","need data",null,null,null,null,null,null,{"$error":"#VALUE!"},"no data","no data",{"$f":"IF($J23=\"\",\" \",IF(RoundEven($J23-O23,0)>0,$J23-O23,\" \"))","v":{"$error":"#VALUE!"}},{"$f":"IF(P23=\"no data\",\"no data\",IF(P23=\"\",\" \",IF(RoundEven($J23-P23,0)>0,$J23-P23,\" \")))","v":"no data"},{"$f":"IF(Q23=\"no data\",\"no data\",IF(Q23=\"\",\" \",IF(RoundEven($J23-Q23,0)>0,$J23-Q23,\" \")))","v":"no data"},249,{"$f":"IF(COUNT(AF14,C18:C23)<>7,\"need data\",AVERAGE(AF14,C18:C23))","v":"need data"},{"$f":"IF(COUNT(AG14,D18:D23)<>7,\"need data\",AVERAGE(AG14,D18:D23))","v":"need data"},{"$f":"IF(COUNT(AH14,F18:F23)<>7,\"need data\",AVERAGE(AH14,F18:F23))","v":"need data"},0,{"$f":"AVERAGE(August!AI48:AI48,September!AI18:AI23)","v":0},0,0,{"$f":"AVERAGE(August!AL48:AL48,September!AL18:AL23)","v":0},0,0,{"$error":"#DIV/0!"},0,0,0]
[7,"2011-09-07",null,null,"",null,"",null,null,"need data",0,{"$f":"IF(K24=\"\",\"\",IF(COUNT(F18:F24)<>7,\"no data\",($AQ24*$AH24+$AR24-$AP24)*$D$11*2.447*($C$11-$AN24)))","v":"no data"},{"$f":"IF(K24=\"\",\"\",IF(OR(COUNT(F18:F24)<>7,COUNT(H18:H24)<>7,COUNT(I18:I24)<>7),\"no data\",($AQ24*$AH24+$AR24-$AO24)*$D$11*2.447*($C$11-$AN24)))","v":"no data"},"need data",0,"no data","no data","need data",null,null,null,null,null,null,{"$error":"#VALUE!"},"no data","no data",{"$f":"IF($J24=\"\",\" \",IF(RoundEven($J24-O24,0)>0,$J24-O24,\" \"))","v":{"$error":"#VALUE!"}},{"$f":"IF(P24=\"no data\",\"no data\",IF(P24=\"\",\" \",IF(RoundEven($J24-P24,0)>0,$J24-P24,\" \")))","v":"no data"},{"$f":"IF(Q24=\"no data\",\"no data\",IF(Q24=\"\",\" \",IF(RoundEven($J24-Q24,0)>0,$J24-Q24,\" \")))","v":"no data"},250,{"$f":"IF(COUNT(C18:C24)<>7,\"need data\",AVERAGE(C18:C24))","v":"need data"},{"$f":"IF(COUNT(D18:D24)<>7,\"need data\",AVERAGE(D18:D24))","v":"need data"},{"$f":"IF(COUNT(F18:F24)<>7,\"need data\",AVERAGE(F18:F24))","v":"need data"},0,{"$f":"AVERAGE(AI18:AI24)","v":0},0,0,{"$f":"AVERAGE(AL18:AL24)","v":0},0,0,{"$error":"#DIV/0!"},0,0,0]
[8,"2011-09-08",null,null,"",null,"",null,null,"need data",0,"no data","no data",{"$f":"IF(K25=\"\",\"\",IF(J25=\"need data\",\"need data\",IF(AA25<>\"no data\",AA25,IF(Z25<>\"no data\",Z25,Y25))))","v":"need data"},0,"no data","no data","need data",null,null,null,null,null,null,{"$error":"#VALUE!"},"no data","no data",{"$f":"IF($J25=\"\",\" \",IF(RoundEven($J25-O25,0)>0,$J25-O25,\" \"))","v":{"$error":"#VALUE!"}},{"$f":"IF(P25=\"no data\",\"no data\",IF(P25=\"\",\" \",IF(RoundEven($J25-P25,0)>0,$J25-P25,\" \")))","v":"no data"},{"$f":"IF(Q25=\"no data\",\"no data\",IF(Q25=\"\",\" \",IF(RoundEven($J25-Q25,0)>0,$J25-Q25,\" \")))","v":"no data"},251,"need data","need data","need data",0,0,0,0,0,0,0,{"$error":"#DIV/0!"},0,0,0]
[9,"2011-09-09",null,null,"",null,"",null,null,"need data",0,"no data","no data",{"$f":"IF(K26=\"\",\"\",IF(J26=\"need data\",\"need data\",IF(AA26<>\"no data\",AA26,IF(Z26<>\"no data\",Z26,Y26))))","v":"need data"},0,"no data","no data","need data",null,null,null,null,null,null,{"$error":"#VALUE!"},"no data","no data",{"$f":"IF($J26=\"\",\" \",IF(RoundEven($J26-O26,0)>0,$J26-O26,\" \"))","v":{"$error":"#VALUE!"}},{"$f":"IF(P26=\"no data\",\"no data\",IF(P26=\"\",\" \",IF(RoundEven($J26-P26,0)>0,$J26-P26,\" \")))","v":"no data"},{"$f":"IF(Q26=\"no data\",\"no data\",IF(Q26=\"\",\" \",IF(RoundEven($J26-Q26,0)>0,$J26-Q26,\" \")))","v":"no data"},252,"need data","need data","need data",0,0,0,0,0,0,0,{"$error":"#DIV/0!"},0,0,0]
[10,"2011-09-10",null,null,"",null,"",null,null,"need data",0,"no data","no data","need data",0,"no data","no data","need data",null,null,null,null,null,null,{"$error":"#VALUE!"},"no data","no data",{"$f":"IF($J27=\"\",\" \",IF(RoundEven($J27-O27,0)>0,$J27-O27,\" \"))","v":{"$error":"#VALUE!"}},{"$f":"IF(P27=\"no data\",\"no data\",IF(P27=\"\",\" \",IF(RoundEven($J27-P27,0)>0,$J27-P27,\" \")))","v":"no data"},{"$f":"IF(Q27=\"no data\",\"no data\",IF(Q27=\"\",\" \",IF(RoundEven($J27-Q27,0)>0,$J27-Q27,\" \")))","v":"no data"},253,"need data","need data","need data",0,0,0,0,0,0,0,{"$error":"#DIV/0!"},0,0,0]
[11,"2011-09-11",null,null,"",null,"",null,null,"need data",0,"no data","no data","need data",0,"no data","no data","need data",null,null,null,null,null,null,{"$error":"#VALUE!"},"no data","no data",{"$f":"IF($J28=\"\",\" \",IF(RoundEven($J28-O28,0)>0,$J28-O28,\" \"))","v":{"$error":"#VALUE!"}},{"$f":"IF(P28=\"no data\",\"no data\",IF(P28=\"\",\" \",IF(RoundEven($J28-P28,0)>0,$J28-P28,\" \")))","v":"no data"},{"$f":"IF(Q28=\"no data\",\"no data\",IF(Q28=\"\",\" \",IF(RoundEven($J28-Q28,0)>0,$J28-Q28,\" \")))","v":"no data"},254,"need data","need data","need data",0,0,0,0,0,0,0,{"$error":"#DIV/0!"},0,0,0]
[12,"2011-09-12",null,null,"",null,"",null,null,"need data",0,"no data","no data","need data",0,"no data","no data","need data",null,null,null,null,null,null,{"$error":"#VALUE!"},"no data","no data",{"$f":"IF($J29=\"\",\" \",IF(RoundEven($J29-O29,0)>0,$J29-O29,\" \"))","v":{"$error":"#VALUE!"}},{"$f":"IF(P29=\"no data\",\"no data\",IF(P29=\"\",\" \",IF(RoundEven($J29-P29,0)>0,$J29-P29,\" \")))","v":"no data"},{"$f":"IF(Q29=\"no data\",\"no data\",IF(Q29=\"\",\" \",IF(RoundEven($J29-Q29,0)>0,$J29-Q29,\" \")))","v":"no data"},255,"need data","need data","need data",0,0,0,0,0,0,0,{"$error":"#DIV/0!"},0,0,0]
[13,"2011-09-13",null,null,"",null,"",null,null,"need data",0,"no data","no data","need data",0,"no data","no data","need data",null,null,null,null,null,null,{"$error":"#VALUE!"},"no data","no data",{"$f":"IF($J30=\"\",\" \",IF(RoundEven($J30-O30,0)>0,$J30-O30,\" \"))","v":{"$error":"#VALUE!"}},{"$f":"IF(P30=\"no data\",\"no data\",IF(P30=\"\",\" \",IF(RoundEven($J30-P30,0)>0,$J30-P30,\" \")))","v":"no data"},{"$f":"IF(Q30=\"no data\",\"no data\",IF(Q30=\"\",\" \",IF(RoundEven($J30-Q30,0)>0,$J30-Q30,\" \")))","v":"no data"},256,"need data","need data","need data",0,0,0,0,0,0,0,{"$error":"#DIV/0!"},0,0,0]
[14,"2011-09-14",null,null,"",null,"",null,null,"need data",0,"no data","no data","need data",0,"no data","no data","need data",null,null,null,null,null,null,{"$error":"#VALUE!"},"no data","no data",{"$f":"IF($J31=\"\",\" \",IF(RoundEven($J31-O31,0)>0,$J31-O31,\" \"))","v":{"$error":"#VALUE!"}},{"$f":"IF(P31=\"no data\",\"no data\",IF(P31=\"\",\" \",IF(RoundEven($J31-P31,0)>0,$J31-P31,\" \")))","v":"no data"},{"$f":"IF(Q31=\"no data\",\"no data\",IF(Q31=\"\",\" \",IF(RoundEven($J31-Q31,0)>0,$J31-Q31,\" \")))","v":"no data"},257,"need data","need data","need data",0,0,0,0,0,0,0,{"$error":"#DIV/0!"},0,0,0]
[15,"2011-09-15",null,null,"",null,"",null,null,"need data",0,"no data","no data","need data",0,"no data","no data","need data",null,null,null,null,null,null,{"$error":"#VALUE!"},"no data","no data",{"$f":"IF($J32=\"\",\" \",IF(RoundEven($J32-O32,0)>0,$J32-O32,\" \"))","v":{"$error":"#VALUE!"}},{"$f":"IF(P32=\"no data\",\"no data\",IF(P32=\"\",\" \",IF(RoundEven($J32-P32,0)>0,$J32-P32,\" \")))","v":"no data"},{"$f":"IF(Q32=\"no data\",\"no data\",IF(Q32=\"\",\" \",IF(RoundEven($J32-Q32,0)>0,$J32-Q32,\" \")))","v":"no data"},258,"need data","need data","need data",0,0,0,0,0,0,0,{"$error":"#DIV/0!"},0,0,0]
[16,"2011-09-16",null,null,"",null,"",null,null,"need data",0,"no data","no data","need data",0,"no data","no data","need data",null,null,null,null,null,null,{"$error":"#VALUE!"},"no data","no data",{"$f":"IF($J33=\"\",\" \",IF(RoundEven($J33-O33,0)>0,$J33-O33,\" \"))","v":{"$error":"#VALUE!"}},{"$f":"IF(P33=\"no data\",\"no data\",IF(P33=\"\",\" \",IF(RoundEven($J33-P33,0)>0,$J33-P33,\" \")))","v":"no data"},{"$f":"IF(Q33=\"no data\",\"no data\",IF(Q33=\"\",\" \",IF(RoundEven($J33-Q33,0)>0,$J33-Q33,\" \")))","v":"no data"},259,"need data","need data","need data",0,0,0,0,0,0,0,{"$error":"#DIV/0!"},0,0,0]
[17,"2011-09-17",null,null,"",null,"",null,null,"need data",0,"no data","no data","need data",0,"no data","no data","need data",null,null,null,null,null,null,{"$error":"#VALUE!"},"no data","no data",{"$f":"IF($J34=\"\",\" \",IF(RoundEven($J34-O34,0)>0,$J34-O34,\" \"))","v":{"$error":"#VALUE!"}},{"$f":"IF(P34=\"no data\",\"no data\",IF(P34=\"\",\" \",IF(RoundEven($J34-P34,0)>0,$J34-P34,\" \")))","v":"no data"},{"$f":"IF(Q34=\"no data\",\"no data\",IF(Q34=\"\",\" \",IF(RoundEven($J34-Q34,0)>0,$J34-Q34,\" \")))","v":"no data"},260,"need data","need data","need data",0,0,0,0,0,0,0,{"$error":"#DIV/0!"},0,0,0]
[18,"2011-09-18",null,null,"",null,"",null,null,"need data",0,"no data","no data","need data",0,"no data","no data","need data",null,null,null,null,null,null,{"$error":"#VALUE!"},"no data","no data",{"$f":"IF($J35=\"\",\" \",IF(RoundEven($J35-O35,0)>0,$J35-O35,\" \"))","v":{"$error":"#VALUE!"}},{"$f":"IF(P35=\"no data\",\"no data\",IF(P35=\"\",\" \",IF(RoundEven($J35-P35,0)>0,$J35-P35,\" \")))","v":"no data"},{"$f":"IF(Q35=\"no data\",\"no data\",IF(Q35=\"\",\" \",IF(RoundEven($J35-Q35,0)>0,$J35-Q35,\" \")))","v":"no data"},261,"need data","need data","need data",0,0,0,0,0,0,0,{"$error":"#DIV/0!"},0,0,0]
[19,"2011-09-19",null,null,"",null,"",null,null,"need data",0,"no data","no data","need data",0,"no data","no data","need data",null,null,null,null,null,null,{"$error":"#VALUE!"},"no data","no data",{"$f":"IF($J36=\"\",\" \",IF(RoundEven($J36-O36,0)>0,$J36-O36,\" \"))","v":{"$error":"#VALUE!"}},{"$f":"IF(P36=\"no data\",\"no data\",IF(P36=\"\",\" \",IF(RoundEven($J36-P36,0)>0,$J36-P36,\" \")))","v":"no data"},{"$f":"IF(Q36=\"no data\",\"no data\",IF(Q36=\"\",\" \",IF(RoundEven($J36-Q36,0)>0,$J36-Q36,\" \")))","v":"no data"},262,"need data","need data","need data",0,0,0,0,0,0,0,{"$error":"#DIV/0!"},0,0,0]
[20,"2011-09-20",null,null,"",null,"",null,null,"need data",0,"no data","no data","need data",0,"no data","no data","need data",null,null,null,null,null,null,{"$error":"#VALUE!"},"no data","no data",{"$f":"IF($J37=\"\",\" \",IF(RoundEven($J37-O37,0)>0,$J37-O37,\" \"))","v":{"$error":"#VALUE!"}},{"$f":"IF(P37=\"no data\",\"no data\",IF(P37=\"\",\" \",IF(RoundEven($J37-P37,0)>0,$J37-P37,\" \")))","v":"no data"},{"$f":"IF(Q37=\"no data\",\"no data\",IF(Q37=\"\",\" \",IF(RoundEven($J37-Q37,0)>0,$J37-Q37,\" \")))","v":"no data"},263,"need data","need data","need data",0,0,0,0,0,0,0,{"$error":"#DIV/0!"},0,0,0]
[21,"2011-09-21",null,null,"",null,"",null,null,"need data",0,"no data","no data","need data",0,"no data","no data","need data",null,null,null,null,null,null,{"$error":"#VALUE!"},"no data","no data",{"$f":"IF($J38=\"\",\" \",IF(RoundEven($J38-O38,0)>0,$J38-O38,\" \"))","v":{"$error":"#VALUE!"}},{"$f":"IF(P38=\"no data\",\"no data\",IF(P38=\"\",\" \",IF(RoundEven($J38-P38,0)>0,$J38-P38,\" \")))","v":"no data"},{"$f":"IF(Q38=\"no data\",\"no data\",IF(Q38=\"\",\" \",IF(RoundEven($J38-Q38,0)>0,$J38-Q38,\" \")))","v":"no data"},264,"need data","need data","need data",0,0,0,0,0,0,0,{"$error":"#DIV/0!"},0,0,0]
[22,"2011-09-22",null,null,"",null,"",null,null,"need data",0,"no data","no data","need data",0,"no data","no data","need data",null,null,null,null,null,null,{"$error":"#VALUE!"},"no data","no data",{"$f":"IF($J39=\"\",\" \",IF(RoundEven($J39-O39,0)>0,$J39-O39,\" \"))","v":{"$error":"#VALUE!"}},{"$f":"IF(P39=\"no data\",\"no data\",IF(P39=\"\",\" \",IF(RoundEven($J39-P39,0)>0,$J39-P39,\" \")))","v":"no data"},{"$f":"IF(Q39=\"no data\",\"no data\",IF(Q39=\"\",\" \",IF(RoundEven($J39-Q39,0)>0,$J39-Q39,\" \")))","v":"no data"},265,"need data","need data","need data",0,0,0,0,0,0,0,{"$error":"#DIV/0!"},0,0,0]
[23,"2011-09-23",null,null,"",null,"",null,null,"need data",0,"no data","no data","need data",0,"no data","no data","need data",null,null,null,null,null,null,{"$error":"#VALUE!"},"no data","no data",{"$f":"IF($J40=\"\",\" \",IF(RoundEven($J40-O40,0)>0,$J40-O40,\" \"))","v":{"$error":"#VALUE!"}},{"$f":"IF(P40=\"no data\",\"no data\",IF(P40=\"\",\" \",IF(RoundEven($J40-P40,0)>0,$J40-P40,\" \")))","v":"no data"},{"$f":"IF(Q40=\"no data\",\"no data\",IF(Q40=\"\",\" \",IF(RoundEven($J40-Q40,0)>0,$J40-Q40,\" \")))","v":"no data"},266,"need data","need data",{"$f":"IF(COUNT(F34:F40)<>7,\"need data\",AVERAGE(F34:F40))","v":"need data"},0,0,0,0,0,0,0,{"$error":"#DIV/0!"},0,0,0]
[24,"2011-09-24",null,null,"",null,"",null,null,"need data",0,"no data","no data",{"$f":"IF(K41=\"\",\"\",IF(J41=\"need data\",\"need data\",IF(AA41<>\"no data\",AA41,IF(Z41<>\"no data\",Z41,Y41))))","v":"need data"},0,"no data","no data","need data",null,null,null,null,null,null,{"$error":"#VALUE!"},"no data","no data",{"$f":"IF($J41=\"\",\" \",IF(RoundEven($J41-O41,0)>0,$J41-O41,\" \"))","v":{"$error":"#VALUE!"}},{"$f":"IF(P41=\"no data\",\"no data\",IF(P41=\"\",\" \",IF(RoundEven($J41-P41,0)>0,$J41-P41,\" \")))","v":"no data"},{"$f":"IF(Q41=\"no data\",\"no data\",IF(Q41=\"\",\" \",IF(RoundEven($J41-Q41,0)>0,$J41-Q41,\" \")))","v":"no data"},267,"need data","need data",{"$f":"IF(COUNT(F35:F41)<>7,\"need data\",AVERAGE(F35:F41))","v":"need data"},0,0,0,0,0,0,0,{"$error":"#DIV/0!"},0,0,0]
[25,"2011-09-25",null,null,"",null,"",null,null,"need data",0,"no data","no data","need data",0,"no data","no data","need data",null,null,null,null,null,null,{"$error":"#VALUE!"},"no data","no data",{"$f":"IF($J42=\"\",\" \",IF(RoundEven($J42-O42,0)>0,$J42-O42,\" \"))","v":{"$error":"#VALUE!"}},{"$f":"IF(P42=\"no data\",\"no data\",IF(P42=\"\",\" \",IF(RoundEven($J42-P42,0)>0,$J42-P42,\" \")))","v":"no data"},{"$f":"IF(Q42=\"no data\",\"no data\",IF(Q42=\"\",\" \",IF(RoundEven($J42-Q42,0)>0,$J42-Q42,\" \")))","v":"no data"},268,"need data","need data","need data",0,0,0,0,0,0,0,{"$error":"#DIV/0!"},0,0,0]
[26,"2011-09-26",null,null,"",null,"",null,null,"need data",0,"no data","no data","need data",0,"no data","no data","need data",null,null,null,null,null,null,{"$error":"#VALUE!"},"no data","no data",{"$f":"IF($J43=\"\",\" \",IF(RoundEven($J43-O43,0)>0,$J43-O43,\" \"))","v":{"$error":"#VALUE!"}},{"$f":"IF(P43=\"no data\",\"no data\",IF(P43=\"\",\" \",IF(RoundEven($J43-P43,0)>0,$J43-P43,\" \")))","v":"no data"},{"$f":"IF(Q43=\"no data\",\"no data\",IF(Q43=\"\",\" \",IF(RoundEven($J43-Q43,0)>0,$J43-Q43,\" \")))","v":"no data"},269,"need data","need data","need data",0,0,0,0,0,0,0,{"$error":"#DIV/0!"},0,0,0]
[27,"2011-09-27",null,null,"",null,"",null,null,"need data",0,"no data","no data","need data",0,"no data","no data","need data",null,null,null,null,null,null,{"$error":"#VALUE!"},"no data","no data",{"$f":"IF($J44=\"\",\" \",IF(RoundEven($J44-O44,0)>0,$J44-O44,\" \"))","v":{"$error":"#VALUE!"}},{"$f":"IF(P44=\"no data\",\"no data\",IF(P44=\"\",\" \",IF(RoundEven($J44-P44,0)>0,$J44-P44,\" \")))","v":"no data"},{"$f":"IF(Q44=\"no data\",\"no data\",IF(Q44=\"\",\" \",IF(RoundEven($J44-Q44,0)>0,$J44-Q44,\" \")))","v":"no data"},270,"need data","need data","need data",0,0,0,0,0,0,0,{"$error":"#DIV/0!"},0,0,0]
[28,"2011-09-28",null,null,"",null,"",null,null,"need data",0,"no data","no data","need data",0,"no data","no data","need data",null,null,null,null,null,null,{"$error":"#VALUE!"},"no data","no data",{"$f":"IF($J45=\"\",\" \",IF(RoundEven($J45-O45,0)>0,$J45-O45,\" \"))","v":{"$error":"#VALUE!"}},{"$f":"IF(P45=\"no data\",\"no data\",IF(P45=\"\",\" \",IF(RoundEven($J45-P45,0)>0,$J45-P45,\" \")))","v":"no data"},{"$f":"IF(Q45=\"no data\",\"no data\",IF(Q45=\"\",\" \",IF(RoundEven($J45-Q45,0)>0,$J45-Q45,\" \")))","v":"no data"},271,"need data","need data","need data",0,0,0,0,0,0,0,{"$error":"#DIV/0!"},0,0,0]
[29,"2011-09-29",null,null,"",null,"",null,null,"need data",0,"no data","no data","need data",0,"no data","no data","need data",null,null,null,null,null,null,{"$error":"#VALUE!"},"no data","no data",{"$f":"IF($J46=\"\",\" \",IF(RoundEven($J46-O46,0)>0,$J46-O46,\" \"))","v":{"$error":"#VALUE!"}},{"$f":"IF(P46=\"no data\",\"no data\",IF(P46=\"\",\" \",IF(RoundEven($J46-P46,0)>0,$J46-P46,\" \")))","v":"no data"},{"$f":"IF(Q46=\"no data\",\"no data\",IF(Q46=\"\",\" \",IF(RoundEven($J46-Q46,0)>0,$J46-Q46,\" \")))","v":"no data"},272,"need data","need data","need data",0,0,0,0,0,0,0,{"$error":"#DIV/0!"},0,0,0]
[30,"2011-09-30",null,null,"",null,"",null,null,"need data",0,"no data","no data","need data",0,"no data","no data","need data",null,null,null,null,null,null,{"$error":"#VALUE!"},"no data","no data",{"$f":"IF($J47=\"\",\" \",IF(RoundEven($J47-O47,0)>0,$J47-O47,\" \"))","v":{"$error":"#VALUE!"}},{"$f":"IF(P47=\"no data\",\"no data\",IF(P47=\"\",\" \",IF(RoundEven($J47-P47,0)>0,$J47-P47,\" \")))","v":"no data"},{"$f":"IF(Q47=\"no data\",\"no data\",IF(Q47=\"\",\" \",IF(RoundEven($J47-Q47,0)>0,$J47-Q47,\" \")))","v":"no data"},273,"need data","need data","need data",0,0,0,0,0,0,0,{"$error":"#DIV/0!"},0,0,0]
[null,null,null,null,null,null,null,null,null,null,null,null,null,null,null,null,null,null,null,null,null,null,null,null,null,{"$f":"IF($H48=\"\",\" \",IF(RoundEven($H48-M48,0)>0,$H48-M48,\" \"))","v":" "},{"$f":"IF(N48=\"no data\",\"no data\",IF(N48=\"\",\" \",IF(RoundEven($H48-N48,0)>0,$H48-N48,\" \")))","v":" "}," "]

{"sheet":"October","index":7,"n_rows":48,"n_cols":45,"rows_kept":48,"cut":false,"hidden":false,"merged":[[15,27,15,29],[9,11,10,11],[14,14,14,16],[15,14,15,16],[3,4,3,10],[9,4,10,5],[15,10,15,12],[4,2,4,10],[5,4,5,5],[5,6,5,7],[5,23,5,24],[14,2,14,4],[14,5,14,8]]}
[]
[]
[]
[null,null,null,"Facility Name:",{"$f":"April!E4","v":"Enter Name Here"}]
[null,null,"Constants used to calculate Thermal Load Limits (TLL)"]
[null,null,null,null,"Start",null,"End",null,null,null,null,"Option 2","Option 1","TRC Loan",null,null,null,null,null,null,null,null,null,"Julian Dates"]
[null,null,null,null,"Month","Day","Month","Day","Trc","m","b","TRA_N","TLL","Factor",null,null,null,null,null,null,null,null,null,"Rearing/Mig","Spawning"]
[null,null,null,"Rearing & Migration",{"$f":"April!E8","v":5},{"$f":"April!F8","v":16},{"$f":"April!G8","v":10},{"$f":"April!H8","v":14},{"$f":"April!I8","v":0},{"$f":"April!J8","v":0},{"$f":"April!K8","v":0},{"$f":"April!L8","v":0},{"$f":"April!M8","v":0},{"$f":"April!N8","v":0},null,null,null,null,null,null,null,null,null,{"$f":"X9-DATEVALUE(\"1/1/\"&$B16)+1","v":136},{"$f":"Y9-DATEVALUE(\"1/1/\"&B16)+1","v":287},null,null,null,null,null,null,"Qe","Te","Qr"]
[null,null,null,"Spawning",null,null,null,null,{"$f":"April!I9","v":0},{"$f":"April!J9","v":0},{"$f":"April!K9","v":0},{"$f":"April!L9","v":0},{"$f":"April!M9","v":0},{"$f":"April!N9","v":0},null,null,null,null,null,null,null,null,null,{"$f":"DATE($B16,E8,F8)","v":"2011-05-16"},{"$f":"DATE($B16,G8,H8)","v":"2011-10-14"},null,null,null,null,null,null,{"$f":"IF(September!C42=\"\",\"\",September!C42)","v":""},{"$f":"IF(September!D42=\"\",\"\",September!D42)","v":""},{"$f":"IF(September!F42=\"\",\"\",September!F42)","v":""}]
[null,null,"TPS","QPS","NTP Coefficients",null,"Maximum",{"$f":"April!H10","v":0},{"$f":"April!I10","v":0},null,null,null,null,null,null,null,null,null,null,null,null,null,null,null,null,null,null,null,null,null,null,{"$f":"IF(September!C43=\"\",\"\",September!C43)","v":""},{"$f":"IF(September!D43=\"\",\"\",September!D43)","v":""},{"$f":"IF(September!F43=\"\",\"\",September!F43)","v":""}]
[null,null,{"$f":"April!C11","v":0},{"$f":"April!D11","v":0},null,null,"Average",{"$f":"April!H11","v":0},{"$f":"April!I11","v":0},null,null,null,null,null,null,null,null,null,null,null,null,null,null,null,null,null,null,null,null,null,"Last 6 days",{"$f":"IF(September!C44=\"\",\"\",September!C44)","v":""},{"$f":"IF(September!D44=\"\",\"\",September!D44)","v":""},{"$f":"IF(September!F44=\"\",\"\",September!F44)","v":""}]
[null,null,null,null,null,null,null,null,null,null,null,{"$f":"April!L12","v":"Version 1.1"},null,null,null,null,null,null,null,null,null,null,null,null,null,null,null,null,null,null,"in Sept",{"$f":"IF(September!C45=\"\",\"\",September!C45)","v":""},{"$f":"IF(September!D45=\"\",\"\",September!D45)","v":""},{"$f":"IF(September!F45=\"\",\"\",September!F45)","v":""}]
[null,null,null,null,null,null,null,null,null,null,null,null,null,null,null,null,null,null,null,null,null,null,null,null,null,null,null,null,null,null,null,{"$f":"IF(September!C46=\"\",\"\",September!C46)","v":""},{"$f":"IF(September!D46=\"\",\"\",September!D46)","v":""},{"$f":"IF(September!F46=\"\",\"\",September!F46)","v":""}]
[null,{"$f":"IF(B15=\"april\",4,IF(B15=\"may\",5,IF(B15=\"june\",6,IF(B15=\"july\",7,IF(B15=\"august\",8,IF(B15=\"september\",9,10))))))","v":10},null,null,null,null,null,null,null,null,null,null,null,null,null,null,null,null,null,null,null,null,null,null,null,null,null,null,null,null,null,{"$f":"IF(September!C47=\"\",\"\",September!C47)","v":""},{"$f":"IF(September!D47=\"\",\"\",September!D47)","v":""},{"$f":"IF(September!F47=\"\",\"\",September!F47)","v":""}]
[null,"October","Effluent",null,null,"Ambient",null,null,null,null,null,null,null,null,"Thermal Load Option"]
[null,{"$f":"April!B16","v":2011},"Flow","Max Temp","7-day Temp","Flow","7-day Flow","Avg Temp","Max Temp",null,"Thermal Load Option",null,null,null,"With Temporary Loan",null,null,null,null,null,null,null,null,null,"Exceedances",null,null,"Exceedances with loan"]
[null,"Date","(mgd)","(deg C)","(deg C)","(cfs)","(cfs)","TRA","TRM","ETL","Option 1","Option 2","Option 3","Exceedance","Option 1","Option 2","Option 3","Exceedance","Comments",null,null,null,null,null,"Option 1","Option 2","Option 3","Option 1","Option 2","Option 3","Julian Day","Qe7 (cfs)","Te7","Qr7","TRA_N","TRA_N7","TRA_N'","TRM_N","TRM_N7","Trc","a","a'","m","b","d"]
[1,{"$f":"DATE(B$16,B$14,A18)","v":"2011-10-01"},null,null,{"$f":"IF(AG18=\"need data\",\"\",AG18)","v":""},null,{"$f":"IF(AH18=\"need data\",\"\",AH18)","v":""},null,null,{"$f":"IF(K18=\"\",\"\",IF(OR(AF18=\"need data\",AG18=\"need data\"),\"need data\",IF(AF18*2.447*(AG18-AN18)*1.547<0,0,AF18*2.447*(AG18-AN18)*1.547)))","v":"need data"},{"$f":"IF(OR(AND($AE18>=X$8,$AE18<X$8+6),AND($AE18>Y$8,$AE18<Y$8+7)),\"\",IF(AND($AE18>=X$8,$AE18<=Y$8),$M$8,$M$9))","v":0},{"$f":"IF(K18=\"\",\"\",IF(COUNT(September!F42:F47,October!F18)<>7,\"no data\",($AQ18*$AH18+$AR18-$AP18)*$D$11*2.447*($C$11-$AN18)))","v":"no data"},{"$f":"IF(K18=\"\",\"\",IF(OR(COUNT(September!F$42:F$47,October!F18)<>7,COUNT(September!H42:H47,October!H18)<>7,COUNT(September!I42:I47,October!I18)<>7),\"no data\",($AQ18*$AH18+$AR18-$AO18)*$D$11*2.447*($C$11-$AN18)))","v":"no data"},{"$f":"IF(K18=\"\",\"\",IF(J18=\"need data\",\"need data\",IF(AA18<>\"no data\",AA18,IF(Z18<>\"no data\",Z18,Y18))))","v":"need data"},{"$f":"IF($K18=\"\",\"\",IF($K18=$M$9,K18*$N$9,K18*$N$8))","v":0},{"$f":"IF($K18=\"\",\"\",IF(L18=\"no data\",\"no data\",IF($K18=$M$9,L18*$N$9,L18*$N$8)))","v":"no data"},{"$f":"IF($K18=\"\",\"\",IF(M18=\"no data\",\"no data\",IF($K18=$M$9,M18*$N$9,M18*$N$8)))","v":"no data"},{"$f":"IF(O18=\"\",\"\",IF(J18=\"need data\",\"need data\",IF(AD18<>\"no data\",AD18,IF(AC18<>\"no data\",AC18,AB18))))","v":"need data"},null,null,null,null,null,null,{"$f":"IF(J18=\"\",\" \",IF(RoundEven($J18-K18,0)>0,$J18-K18,\" \"))","v":{"$error":"#VALUE!"}},{"$f":"IF(L18=\"no data\",\"no data\",IF(L18=\"\",\" \",IF(RoundEven($J18-L18,0)>0,$J18-L18,\" \")))","v":"no data"},{"$f":"IF(M18=\"no data\",\"no data\",IF(M18=\"\",\" \",IF(RoundEven($J18-M18,0)>0,$J18-M18,\" \")))","v":"no data"},{"$f":"IF($J18=\"\",\" \",IF(RoundEven($J18-O18,0)>0,$J18-O18,\" \"))","v":{"$error":"#VALUE!"}},{"$f":"IF(P18=\"no data\",\"no data\",IF(P18=\"\",\" \",IF(RoundEven($J18-P18,0)>0,$J18-P18,\" \")))","v":"no data"},{"$f":"IF(Q18=\"no data\",\"no data\",IF(Q18=\"\",\" \",IF(RoundEven($J18-Q18,0)>0,$J18-Q18,\" \")))","v":"no data"},{"$f":"VALUE(TEXT((B18-DATEVALUE(\"1/1/\"&TEXT(B18,\"yy\"))+1),\"000\"))","v":274},{"$f":"IF(COUNT(AF9:AF14,C18)<>7,\"need data\",AVERAGE(AF9:AF14,C18))","v":"need data"},{"$f":"IF(COUNT(AG9:AG14,D18)<>7,\"need data\",AVERAGE(AG9:AG14,D18))","v":"need data"},{"$f":"IF(COUNT(AH9:AH14,F18)<>7,\"need data\",AVERAGE(AH9:AH14,F18))","v":"need data"},{"$f":"H$11*H18+I$11","v":0},{"$f":"AVERAGE(September!AI42:AI47,October!AI18)","v":0},{"$f":"IF(AND($AE18>=$X$8,$AE18<=$Y$8),$L$8,$L$9)","v":0},{"$f":"H$10*I18+I$10","v":0},{"$f":"AVERAGE(September!AL42:AL47,October!AL18)","v":0},{"$f":"IF(AND($AE18>=$X$8,$AE18<=$Y$8),$I$8,$I$9)","v":0},{"$f":"IF(OR(AM18<=AN18,AND(AM18>AN18,AJ18>=AN18)),0,(1-(AJ18/AN18)))","v":0},{"$f":"1-AK18/AN18","v":{"$error":"#DIV/0!"}},{"$f":"IF($AN18=13,J$9,J$8)","v":0},{"$f":"IF($AN18=13,K$9,K$8)","v":0},{"$f":"(AQ18*F18+AR18-AO18)","v":0}]
[2,"2011-10-02",null,null,{"$f":"IF(AG19=\"need data\",\"\",AG19)","v":""},null,{"$f":"IF(AH19=\"need data\",\"\",AH19)","v":""},null,null,{"$f":"IF(K19=\"\",\"\",IF(OR(AF19=\"need data\",AG19=\"need data\"),\"need data\",IF(AF19*2.447*(AG19-AN19)*1.547<0,0,AF19*2.447*(AG19-AN19)*1.547)))","v":"need data"},0,{"$f":"IF(K19=\"\",\"\",IF(COUNT(September!F43:F47,October!F18:F19)<>7,\"no data\",($AQ19*$AH19+$AR19-$AP19)*$D$11*2.447*($C$11-$AN19)))","v":"no data"},{"$f":"IF(K19=\"\",\"\",IF(OR(COUNT(September!F$43:F$47,October!F18:F19)<>7,COUNT(September!H$43:H$47,October!H18:H19)<>7,COUNT(September!I$43:I$47,October!I18:I19)<>7),\"no data\",($AQ19*$AH19+$AR19-$AO19)*$D$11*2.447*($C$11-$AN19)))","v":"no data"},"need data",0,"no data","no data",{"$f":"IF(O19=\"\",\"\",IF(J19=\"need data\",\"need data\",IF(AD19<>\"no data\",AD19,IF(AC19<>\"no data\",AC19,AB19))))","v":"need data"},null,null,null,null,null,null,{"$f":"IF(J19=\"\",\" \",IF(RoundEven($J19-K19,0)>0,$J19-K19,\" \"))","v":{"$error":"#VALUE!"}},{"$f":"IF(L19=\"no data\",\"no data\",IF(L19=\"\",\" \",IF(RoundEven($J19-L19,0)>0,$J19-L19,\" \")))","v":"no data"},{"$f":"IF(M19=\"no data\",\"no data\",IF(M19=\"\",\" \",IF(RoundEven($J19-M19,0)>0,$J19-M19,\" \")))","v":"no data"},{"$f":"IF($J19=\"\",\" \",IF(RoundEven($J19-O19,0)>0,$J19-O19,\" \"))","v":{"$error":"#VALUE!"}},{"$f":"IF(P19=\"no data\",\"no data\",IF(P19=\"\",\" \",IF(RoundEven($J19-P19,0)>0,$J19-P19,\" \")))","v":"no data"},{"$f":"IF(Q19=\"no data\",\"no data\",IF(Q19=\"\",\" \",IF(RoundEven($J19-Q19,0)>0,$J19-Q19,\" \")))","v":"no data"},275,{"$f":"IF(COUNT(AF10:AF14,C18:C19)<>7,\"need data\",AVERAGE(AF10:AF14,C18:C19))","v":"need data"},{"$f":"IF(COUNT(AG10:AG14,D18:D19)<>7,\"need data\",AVERAGE(AG10:AG14,D18:D19))","v":"need data"},{"$f":"IF(COUNT(AH10:AH14,F18:F19)<>7,\"need data\",AVERAGE(AH10:AH14,F18:F19))","v":"need data"},0,{"$f":"AVERAGE(September!AI43:AI47,October!AI18:AI19)","v":0},0,0,{"$f":"AVERAGE(September!AL43:AL47,October!AL18:AL19)","v":0},0,0,{"$error":"#DIV/0!"},0,0,0]
[3,"2011-10-03",null,null,"",null,"",null,null,"need data",0,{"$f":"IF(K20=\"\",\"\",IF(COUNT(September!F44:F47,October!F18:F20)<>7,\"no data\",($AQ20*$AH20+$AR20-$AP20)*$D$11*2.447*($C$11-$AN20)))","v":"no data"},{"$f":"IF(K20=\"\",\"\",IF(OR(COUNT(September!F44:F47,October!F18:F20)<>7,COUNT(September!H44:H47,October!H18:H20)<>7,COUNT(September!I44:I47,October!I18:I20)<>7),\"no data\",($AQ20*$AH20+$AR20-$AO20)*$D$11*2.447*($C$11-$AN20)))","v":"no data"},"need data",0,"no data","no data","need data",null,null,null,null,null,null,{"$error":"#VALUE!"},"no data","no data",{"$error":"#VALUE!"},"no data","no data",276,{"$f":"IF(COUNT(AF11:AF14,C18:C20)<>7,\"need data\",AVERAGE(AF11:AF14,C18:C20))","v":"need data"},{"$f":"IF(COUNT(AG11:AG14,D18:D20)<>7,\"need data\",AVERAGE(AG11:AG14,D18:D20))","v":"need data"},{"$f":"IF(COUNT(AH11:AH14,F18:F20)<>7,\"need data\",AVERAGE(AH11:AH14,F18:F20))","v":"need data"},0,{"$f":"AVERAGE(September!AI44:AI47,October!AI18:AI20)","v":0},0,0,{"$f":"AVERAGE(September!AL44:AL47,October!AL18:AL20)","v":0},0,0,{"$error":"#DIV/0!"},0,0,0]
[4,"2011-10-04",null,null,"",null,"",null,null,"need data",0,{"$f":"IF(K21=\"\",\"\",IF(COUNT(September!F45:F47,October!F18:F21)<>7,\"no data\",($AQ21*$AH21+$AR21-$AP21)*$D$11*2.447*($C$11-$AN21)))","v":"no data"},{"$f":"IF(K21=\"\",\"\",IF(OR(COUNT(September!F45:F47,October!F18:F21)<>7,COUNT(September!H45:H47,October!H18:H21)<>7,COUNT(September!I45:I47,October!I18:I21)<>7),\"no data\",($AQ21*$AH21+$AR21-$AO21)*$D$11*2.447*($C$11-$AN21)))","v":"no data"},"need data",0,"no data","no data","need data",null,null,null,null,null,null,{"$error":"#VALUE!"},"no data","no data",{"$error":"#VALUE!"},"no data","no data",277,{"$f":"IF(COUNT(AF12:AF14,C18:C21)<>7,\"need data\",AVERAGE(AF12:AF14,C18:C21))","v":"need data"},{"$f":"IF(COUNT(AG12:AG14,D18:D21)<>7,\"need data\",AVERAGE(AG12:AG14,D18:D21))","v":"need data"},{"$f":"IF(COUNT(AH12:AH14,F18:F21)<>7,\"need data\",AVERAGE(AH12:AH14,F18:F21))","v":"need data"},0,{"$f":"AVERAGE(September!AI45:AI47,October!AI18:AI21)","v":0},0,0,{"$f":"AVERAGE(September!AL45:AL47,October!AL18:AL21)","v":0},0,0,{"$error":"#DIV/0!"},0,0,0]
[5,"2011-10-05",null,null,"",null,"",null,null,"need data",0,{"$f":"IF(K22=\"\",\"\",IF(COUNT(September!F46:F47,October!F18:F22)<>7,\"no data\",($AQ22*$AH22+$AR22-$AP22)*$D$11*2.447*($C$11-$AN22)))","v":"no data"},{"$f":"IF(K22=\"\",\"\",IF(OR(COUNT(September!F46:F47,October!F18:F22)<>7,COUNT(September!H46:H47,October!H18:H22)<>7,COUNT(September!I46:I47,October!I18:I22)<>7),\"no data\",($AQ22*$AH22+$AR22-$AO22)*$D$11*2.447*($C$11-$AN22)))","v":"no data"},"need data",0,"no data","no data","need data",null,null,null,null,null,null,{"$error":"#VALUE!"},"no data","no data",{"$error":"#VALUE!"},"no data","no data",278,{"$f":"IF(COUNT(AF13:AF14,C18:C22)<>7,\"need data\",AVERAGE(AF13:AF14,C18:C22))","v":"need data"},{"$f":"IF(COUNT(AG13:AG14,D18:D22)<>7,\"need data\",AVERAGE(AG13:AG14,D18:D22))","v":"need data"},{"$f":"IF(COUNT(AH13:AH14,F18:F22)<>7,\"need data\",AVERAGE(AH13:AH14,F18:F22))","v":"need data"},0,{"$f":"AVERAGE(September!AI46:AI47,October!AI18:AI22)","v":0},0,0,{"$f":"AVERAGE(September!AL46:AL47,October!AL18:AL22)","v":0},0,0,{"$error":"#DIV/0!"},0,0,0]
[6,"2011-10-06",null,null,"",null,"",null,null,"need data",0,{"$f":"IF(K23=\"\",\"\",IF(COUNT(September!F47:F47,October!F18:F23)<>7,\"no data\",($AQ23*$AH23+$AR23-$AP23)*$D$11*2.447*($C$11-$AN23)))","v":"no data"},{"$f":"IF(K23=\"\",\"\",IF(OR(COUNT(September!F47:F47,October!F18:F23)<>7,COUNT(September!H47:H47,October!H18:H23)<>7,COUNT(September!I47:I47,October!I18:I23)<>7),\"no data\",($AQ23*$AH23+$AR23-$AO23)*$D$11*2.447*($C$11-$AN23)))","v":"no data"},"need data",0,"no data","no data","need data",null,null,null,null,null,null,{"$error":"#VALUE!"},"no data","no data",{"$error":"#VALUE!"},"no data","no data",279,{"$f":"IF(COUNT(AF14,C18:C23)<>7,\"need data\",AVERAGE(AF14,C18:C23))","v":"need data"},{"$f":"IF(COUNT(AG14,D18:D23)<>7,\"need data\",AVERAGE(AG14,D18:D23))","v":"need data"},{"$f":"IF(COUNT(AH14,F18:F23)<>7,\"need data\",AVERAGE(AH14,F18:F23))","v":"need data"},0,{"$f":"AVERAGE(September!AI47:AI47,October!AI18:AI23)","v":0},0,0,{"$f":"AVERAGE(September!AL47:AL47,October!AL18:AL23)","v":0},0,0,{"$error":"#DIV/0!"},0,0,0]
[7,"2011-10-07",null,null,"",null,"",null,null,"need data",0,{"$f":"IF(K24=\"\",\"\",IF(COUNT(F18:F24)<>7,\"no data\",($AQ24*$AH24+$AR24-$AP24)*$D$11*2.447*($C$11-$AN24)))","v":"no data"},{"$f":"IF(K24=\"\",\"\",IF(OR(COUNT(F18:F24)<>7,COUNT(H18:H24)<>7,COUNT(I18:I24)<>7),\"no data\",($AQ24*$AH24+$AR24-$AO24)*$D$11*2.447*($C$11-$AN24)))","v":"no data"},"need data",0,"no data","no data","need data",null,null,null,null,null,null,{"$error":"#VALUE!"},"no data","no data",{"$error":"#VALUE!"},"no data","no data",280,{"$f":"IF(COUNT(C18:C24)<>7,\"need data\",AVERAGE(C18:C24))","v":"need data"},{"$f":"IF(COUNT(D18:D24)<>7,\"need data\",AVERAGE(D18:D24))","v":"need data"},{"$f":"IF(COUNT(F18:F24)<>7,\"need data\",AVERAGE(F18:F24))","v":"need data"},0,{"$f":"AVERAGE(AI18:AI24)","v":0},0,0,{"$f":"AVERAGE(AL18:AL24)","v":0},0,0,{"$error":"#DIV/0!"},0,0,0]
[8,"2011-10-08",null,null,"",null,"",null,null,"need data",0,"no data","no data",{"$f":"IF(K25=\"\",\"\",IF(J25=\"need data\",\"need data\",IF(AA25<>\"no data\",AA25,IF(Z25<>\"no data\",Z25,Y25))))","v":"need data"},0,"no data","no data","need data",null,null,null,null,null,null,{"$error":"#VALUE!"},"no data","no data",{"$error":"#VALUE!"},"no data","no data",281,{"$f":"IF(COUNT(C19:C25)<>7,\"need data\",AVERAGE(C19:C25))","v":"need data"},{"$f":"IF(COUNT(D19:D25)<>7,\"need data\",AVERAGE(D19:D25))","v":"need data"},"need data",0,0,0,0,0,0,0,{"$error":"#DIV/0!"},0,0,0]
[9,"2011-10-09",null,null,"",null,"",null,null,"need data",0,"no data","no data",{"$f":"IF(K26=\"\",\"\",IF(J26=\"need data\",\"need data\",IF(AA26<>\"no data\",AA26,IF(Z26<>\"no data\",Z26,Y26))))","v":"need data"},0,"no data","no data","need data",null,null,null,null,null,null,{"$error":"#VALUE!"},"no data","no data",{"$error":"#VALUE!"},"no data","no data",282,"need data","need data","need data",0,0,0,0,0,0,0,{"$error":"#DIV/0!"},0,0,0]
[10,"2011-10-10",null,null,"",null,"",null,null,"need data",0,"no data","no data","need data",0,"no data","no data","need data",null,null,null,null,null,null,{"$error":"#VALUE!"},"no data","no data",{"$error":"#VALUE!"},"no data","no data",283,"need data","need data","need data",0,0,0,0,0,0,0,{"$error":"#DIV/0!"},0,0,0]
[11,"2011-10-11",null,null,"",null,"",null,null,"need data",0,"no data","no data","need data",0,"no data","no data","need data",null,null,null,null,null,null,{"$error":"#VALUE!"},"no data","no data",{"$error":"#VALUE!"},"no data","no data",284,"need data","need data","need data",0,0,0,0,0,0,0,{"$error":"#DIV/0!"},0,0,0]
[12,"2011-10-12",null,null,"",null,"",null,null,"need data",0,"no data","no data","need data",0,"no data","no data","need data",null,null,null,null,null,null,{"$error":"#VALUE!"},"no data","no data",{"$error":"#VALUE!"},"no data","no data",285,"need data","need data","need data",0,0,0,0,0,0,0,{"$error":"#DIV/0!"},0,0,0]
[13,"2011-10-13",null,null,"",null,"",null,null,"need data",0,"no data","no data","need data",0,"no data","no data","need data",null,null,null,null,null,null,{"$error":"#VALUE!"},"no data","no data",{"$error":"#VALUE!"},"no data","no data",286,"need data","need data","need data",0,0,0,0,0,0,0,{"$error":"#DIV/0!"},0,0,0]
[14,"2011-10-14",null,null,"",null,"",null,null,"need data",0,"no data","no data","need data",0,"no data","no data","need data",null,null,null,null,null,null,{"$error":"#VALUE!"},"no data","no data",{"$error":"#VALUE!"},"no data","no data",287,"need data","need data","need data",0,0,0,0,0,0,0,{"$error":"#DIV/0!"},0,0,0]
[15,"2011-10-15",null,null,"",null,"",null,null,"","","","","","","","","",null,null,null,null,null,null," "," "," "," "," "," ",288,"need data","need data","need data",0,0,0,0,0,0,0,{"$error":"#DIV/0!"},0,0,0]
[16,"2011-10-16",null,null,"",null,"",null,null,"","","","","","","","","",null,null,null,null,null,null," "," "," "," "," "," ",289,"need data","need data","need data",0,0,0,0,0,0,0,{"$error":"#DIV/0!"},0,0,0]
[17,"2011-10-17",null,null,"",null,"",null,null,"","","","","","","","","",null,null,null,null,null,null," "," "," "," "," "," ",290,"need data","need data","need data",0,0,0,0,0,0,0,{"$error":"#DIV/0!"},0,0,0]
[18,"2011-10-18",null,null,"",null,"",null,null,"","","","","","","","","",null,null,null,null,null,null," "," "," "," "," "," ",291,"need data","need data","need data",0,0,0,0,0,0,0,{"$error":"#DIV/0!"},0,0,0]
[19,"2011-10-19",null,null,"",null,"",null,null,"","","","","","","","","",null,null,null,null,null,null," "," "," "," "," "," ",292,"need data","need data","need data",0,0,0,0,0,0,0,{"$error":"#DIV/0!"},0,0,0]
[20,"2011-10-20",null,null,"",null,"",null,null,"","","","","","","","","",null,null,null,null,null,null," "," "," "," "," "," ",293,"need data","need data","need data",0,0,0,0,0,0,0,{"$error":"#DIV/0!"},0,0,0]
[21,"2011-10-21",null,null,"",null,"",null,null,"need data",0,"no data","no data","need data",0,"no data","no data","need data",null,null,null,null,null,null,{"$error":"#VALUE!"},"no data","no data",{"$error":"#VALUE!"},"no data","no data",294,"need data","need data","need data",0,0,0,0,0,0,0,{"$error":"#DIV/0!"},0,0,0]
[22,"2011-10-22",null,null,"",null,"",null,null,"need data",0,"no data","no data","need data",0,"no data","no data","need data",null,null,null,null,null,null,{"$error":"#VALUE!"},"no data","no data",{"$error":"#VALUE!"},"no data","no data",295,"need data","need data","need data",0,0,0,0,0,0,0,{"$error":"#DIV/0!"},0,0,0]
[23,"2011-10-23",null,null,"",null,"",null,null,"need data",0,"no data","no data","need data",0,"no data","no data","need data",null,null,null,null,null,null,{"$error":"#VALUE!"},"no data","no data",{"$error":"#VALUE!"},"no data","no data",296,"need data",{"$f":"IF(COUNT(D34:D40)<>7,\"need data\",AVERAGE(D34:D40))","v":"need data"},{"$f":"IF(COUNT(F34:F40)<>7,\"need data\",AVERAGE(F34:F40))","v":"need data"},0,0,0,0,0,0,0,{"$error":"#DIV/0!"},0,0,0]
[24,"2011-10-24",null,null,"",null,"",null,null,"need data",0,"no data","no data",{"$f":"IF(K41=\"\",\"\",IF(J41=\"need data\",\"need data\",IF(AA41<>\"no data\",AA41,IF(Z41<>\"no data\",Z41,Y41))))","v":"need data"},0,"no data","no data","need data",null,null,null,null,null,null,{"$error":"#VALUE!"},"no data","no data",{"$error":"#VALUE!"},"no data","no data",297,"need data","need data","need data",0,0,0,0,0,0,0,{"$error":"#DIV/0!"},0,0,0]
[25,"2011-10-25",null,null,"",null,"",null,null,"need data",0,"no data","no data","need data",0,"no data","no data","need data",null,null,null,null,null,null,{"$error":"#VALUE!"},"no data","no data",{"$error":"#VALUE!"},"no data","no data",298,"need data","need data","need data",0,0,0,0,0,0,0,{"$error":"#DIV/0!"},0,0,0]
[26,"2011-10-26",null,null,"",null,"",null,null,"need data",0,"no data","no data","need data",0,"no data","no data","need data",null,null,null,null,null,null,{"$error":"#VALUE!"},"no data","no data",{"$error":"#VALUE!"},"no data","no data",299,"need data","need data","need data",0,0,0,0,0,0,0,{"$error":"#DIV/0!"},0,0,0]
[27,"2011-10-27",null,null,"",null,"",null,null,"need data",0,"no data","no data","need data",0,"no data","no data","need data",null,null,null,null,null,null,{"$error":"#VALUE!"},"no data","no data",{"$error":"#VALUE!"},"no data","no data",300,"need data","need data","need data",0,0,0,0,0,0,0,{"$error":"#DIV/0!"},0,0,0]
[28,"2011-10-28",null,null,"",null,"",null,null,"need data",0,"no data","no data","need data",0,"no data","no data","need data",null,null,null,null,null,null,{"$error":"#VALUE!"},"no data","no data",{"$error":"#VALUE!"},"no data","no data",301,"need data","need data","need data",0,0,0,0,0,0,0,{"$error":"#DIV/0!"},0,0,0]
[29,"2011-10-29",null,null,"",null,"",null,null,"need data",0,"no data","no data","need data",0,"no data","no data","need data",null,null,null,null,null,null,{"$error":"#VALUE!"},"no data","no data",{"$error":"#VALUE!"},"no data","no data",302,"need data","need data","need data",0,0,0,0,0,0,0,{"$error":"#DIV/0!"},0,0,0]
[30,"2011-10-30",null,null,"",null,"",null,null,"need data",0,"no data","no data","need data",0,"no data","no data","need data",null,null,null,null,null,null,{"$error":"#VALUE!"},"no data","no data",{"$error":"#VALUE!"},"no data","no data",303,"need data","need data","need data",0,0,0,0,0,0,0,{"$error":"#DIV/0!"},0,0,0]
[31,"2011-10-31",null,null,"",null,"",null,null,"need data",0,"no data","no data","need data",0,"no data","no data","need data",null,null,null,null,null,null,{"$error":"#VALUE!"},"no data","no data",{"$error":"#VALUE!"},"no data","no data",304,"need data","need data","need data",0,0,0,0,0,0,0,{"$error":"#DIV/0!"},0,0,0]